Workbook

Sheet Ex 1 HDD
A1: Heating Degree Days | G1: Docket | I1: Dominion Energy Utah
I2: Docket No. 21-057-01
I3: DEU Variance Exhibit
A7: Month/Year | B7: Actual | C7: Normal | F7: Actual | G7: Normal
A8: 2021-06-01 | B8: 2 | C8: 37.52 | D8: =B8-C8 -> -35.52 | F8: =B8 -> 2 | G8: =C8 -> 37.52
A9: 2021-07-01 | B9: 0 | C9: 0 | D9: =B9-C9 -> 0 | F9: =B9+F8 -> 2 | G9: =G8+C9 -> 37.52
A10: 2021-08-01 | B10: 8 | C10: 1.87 | D10: 6.13 | F10: 10 | G10: =G9+C10 -> 39.39
A11: 2021-09-01 | B11: 41 | C11: 61.41 | D11: -20.41 | F11: 51 | G11: 100.8
A12: 2021-10-01 | B12: 367 | C12: 342.03 | D12: 24.97 | F12: =B12+F11 -> 418 | G12: 442.83
A13: 2021-11-01 | B13: 596 | C13: 711.58 | D13: -115.58 | F13: =B13+F12 -> 1014 | G13: 1154.41
A14: 2021-12-01 | B14: 929 | C14: 1054.69 | D14: -125.69 | F14: 1943 | G14: 2209.1
A15: 2022-01-01 | B15: 1019 | C15: 1083.33 | D15: -64.33 | F15: 2962 | G15: 3292.43
A16: 2022-02-01 | B16: 882 | C16: 819.68 | D16: 62.32 | F16: 3844 | G16: 4112.11
A17: 2022-03-01 | B17: 577 | C17: 620.3 | D17: -43.3 | F17: 4421 | G17: 4732.41
A18: 2022-04-01 | B18: 419 | C18: 423.69 | D18: -4.69 | F18: 4840 | G18: 5156.1
A19: 2022-05-01 | B19: 221 | C19: 196.8 | D19: 24.2 | F19: 5061 | G19: 5352.9
B20: =SUM(B8:B19) -> 5061 | C20: =SUM(G8:G19) -> 26667.52 | D20: =SUM(D8:D19) -> -291.9

Sheet Exhibit 1.1
O31: ='Ex 1 HDD'!I3 -> DEU Variance Exhibit | P31: ='Ex 1 HDD'!I2 -> Docket No. 21-057-01 | Q31: ='Ex 1 HDD'!I1 -> Dominion Energy Utah
O32: 1.1

Sheet Exhibit 1.2
O31: ='Ex 1 HDD'!I3 -> DEU Variance Exhibit | P31: ='Ex 1 HDD'!I2 -> Docket No. 21-057-01 | Q31: ='Ex 1 HDD'!I1 -> Dominion Energy Utah
O32: 1.2

Sheet Exhibit 1.3
O31: ='Ex 1 HDD'!I3 -> DEU Variance Exhibit | P31: ='Ex 1 HDD'!I2 -> Docket No. 21-057-01 | Q31: ='Ex 1 HDD'!I1 -> Dominion Energy Utah
O32: 1.3

Sheet Ex 2 Clay Basin
A1: Clay Basin Ending Inventory (MDths)
M5: Plan Year 1 | N5: 1106
K6: Month/Year | L6: Month | M6: Inj | N6: With | O6: Total
A7: Month/Year | B7: Actual | C7: Normal | E7: Actual | F7: Actual/1000 | H7: Actual | I7: Normal | O7: 3200
A8: 2021-06-01 | B8: =F8 -> 5609.574 | C8: =O8 -> 5366.181 | D8: =B8-C8 -> 243.393 | E8: 5609574 | F8: =E8/1000 -> 5609.574 | H8: =F8 -> 5609.574 | I8: =C8 -> 5366.181 | K8: =A8 -> 2021-06-01 | L8: =O7 -> 3200 | M8: 2166.181 | N8: 0 | O8: =L8+M8-N8 -> 5366.181
A9: 2021-07-01 | B9: =F9 -> 7468.248 | C9: =O9 -> 7604.567 | D9: -136.319 | E9: 7468248 | F9: =E9/1000 -> 7468.248 | H9: =H8+F9 -> 13077.822 | I9: =C9+I8 -> 12970.748 | K9: =A9 -> 2021-07-01 | L9: =O8 -> 5366.181 | M9: 2238.386 | N9: 0 | O9: 7604.567
A10: 2021-08-01 | B10: 9143.92 | C10: 9656.426 | D10: -512.506 | E10: 9143920 | F10: 9143.92 | H10: =H9+F10 -> 22221.742 | I10: 22627.174 | K10: 2021-08-01 | L10: =O9 -> 7604.567 | M10: 2051.859 | N10: 0 | O10: 9656.426
A11: 2021-09-01 | B11: 10475.325 | C11: 11423.148 | D11: -947.823 | E11: 10475325 | F11: 10475.325 | H11: 32697.067 | I11: =C11+I10 -> 34050.322 | K11: 2021-09-01 | L11: 9656.426 | M11: 1766.722 | N11: 0 | O11: 11423.148
A12: 2021-10-01 | B12: 11809.095 | C12: 13000.002 | D12: -1190.907 | E12: 11809095 | F12: 11809.095 | H12: 44506.162 | I12: 47050.324 | K12: 2021-10-01 | L12: 11423.148 | M12: 1576.854 | N12: 0 | O12: 13000.002
A13: 2021-11-01 | B13: 11196.438 | C13: 12157.641 | D13: -961.203 | E13: 11196438 | F13: 11196.438 | H13: 55702.6 | I13: 59207.965 | K13: 2021-11-01 | L13: 13000.002 | M13: 0 | N13: 842.361 | O13: 12157.641
A14: 2021-12-01 | B14: 10114.311 | C14: 8089.202 | D14: 2025.109 | E14: 10114311 | F14: 10114.311 | H14: 65816.911 | I14: 67297.167 | K14: 2021-12-01 | L14: 12157.641 | M14: 0 | N14: 4068.439 | O14: 8089.202
A15: 2022-01-01 | B15: 6135.31 | C15: =O15 -> 4679.152 | D15: 1456.158 | E15: 6135310 | F15: 6135.31 | H15: 71952.221 | I15: 71976.319 | K15: 2022-01-01 | L15: 8089.202 | M15: 0 | N15: 3410.05 | O15: 4679.152
A16: 2022-02-01 | B16: 4526.588 | C16: =O16 -> 1599.107 | D16: 2927.481 | E16: 4526588 | F16: 4526.588 | H16: 76478.809 | I16: 73575.426 | K16: 2022-02-01 | L16: 4679.152 | M16: 0 | N16: 3080.045 | O16: 1599.107
A17: 2022-03-01 | B17: 2012 | C17: =O17 -> 0.0009999999997 | D17: 2011.999 | E17: 2012172 | F17: 2012.172 | H17: 78490.981 | I17: 73575.427 | K17: 2022-03-01 | L17: 1599.107 | M17: 0 | N17: 1599.106 | O17: 0.0009999999997
A18: 2022-04-01 | B18: 251 | C18: =O18 -> 945.001 | D18: -694.001 | E18: 251176 | F18: 251.176 | H18: 78742.157 | I18: 74520.428 | K18: 2022-04-01 | L18: 0.0009999999997 | M18: 945 | N18: 0 | O18: 945.001
A19: 2022-05-01 | B19: 311 | C19: =O19 -> 3363.002 | D19: -3052.002 | E19: 310564 | F19: 310.564 | H19: 79052.721 | I19: 77883.43 | K19: 2022-05-01 | L19: 945.001 | M19: 2418.001 | N19: 0 | O19: 3363.002
M21: =SUM(M8:M19) -> 13163.003 | N21: =SUM(N8:N19) -> 13000.001 | O21: =SUM(N8:N19) -> 13000.001
F26: June | G26: July | H26: August | I26: September | J26: October | K26: November | L26: December | M26: January | N26: February | O26: March | P26: April | Q26: May
F27: 4587175 | G27: 7350188 | H27: 10347695 | I27: 12594397 | J27: 12186418 | K27: =E13 -> 11196438 | L27: =E14 -> 10114311 | M27: =E15 -> 6135310 | N27: =E16 -> 4526588
E28: 0.4444444 | F28: =$E28*F$27/1000 -> 2038.744241 | G28: =$E28*G$27/1000 -> 3266.749896 | H28: 4598.975096 | I28: 5597.509218 | J28: 5416.185236 | K28: 4976.194169 | L28: 4495.248884 | M28: 2726.804172 | N28: 2011.816688
E29: 0.2777778 | F29: =$E29*F$27/1000 -> 1274.21538 | G29: =$E29*G$27/1000 -> 2041.719052 | H29: 2874.359952 | I29: 3498.443891 | J29: 3385.116382 | K29: 3110.121915 | L29: 2809.531058 | M29: 1704.252914 | N29: 1257.385656
E30: 0.2777778 | F30: =$E30*F$27/1000 -> 1274.21538 | G30: 2041.719052 | H30: 2874.359952 | I30: 3498.443891 | J30: 3385.116382 | K30: 3110.121915 | L30: 2809.531058 | M30: 1704.252914 | N30: 1257.385656
E31: =SUM(E28:E30) -> 1 | F31: =SUM(F28:F30) -> 4587.175 | G31: =SUM(G28:G30) -> 7350.188 | H31: 10347.695 | I31: 12594.397 | J31: 12186.418 | K31: 11196.438 | L31: 10114.311 | M31: 6135.31 | N31: 4526.588
F33: 13419
F34: =F28/$F$33 -> 0.1519296699 | G34: 0.2434421265 | H34: 0.3427211488 | I34: 0.4171331111 | J34: 0.4036206302 | K34: 0.3708319673 | L34: 0.3349913469 | M34: 0.2032047225 | N34: 0.1499229963
F35: =F29/$F$33 -> 0.09495606079 | G35: 0.1521513565 | H35: 0.2142007566 | I35: 0.2607082414 | J35: 0.2522629393 | K35: 0.2317700213 | L35: 0.2093696295 | M35: 0.1270029744 | N35: 0.09370188957
F36: =F30/$F$33 -> 0.09495606079 | G36: 0.1521513565 | H36: 0.2142007566 | I36: 0.2607082414 | J36: 0.2522629393 | K36: 0.2317700213 | L36: 0.2093696295 | M36: 0.1270029744 | N36: 0.09370188957
F37: =F31/$F$33 -> 0.3418417915 | G37: 0.5477448394 | H37: 0.7711226619 | I37: 0.9385495939 | J37: 0.9081465087 | K37: 0.8343720098 | L37: 0.7537306059 | M37: 0.4572106714 | N37: 0.3373267755
F40: 13419
F41: =F28/$F$33*100 -> 15.19296699 | G41: =G28/$F$33*100 -> 24.34421265 | H41: 34.27211488 | I41: 41.71331111 | J41: 40.36206302 | K41: 37.08319673 | L41: 33.49913469 | M41: 20.32047225 | N41: 14.99229963
F42: =F29/$F$33*100 -> 9.495606079 | G42: 15.21513565 | H42: 21.42007566 | I42: 26.07082414 | J42: 25.22629393 | K42: 23.17700213 | L42: 20.93696295 | M42: 12.70029744 | N42: 9.370188957
F43: =F30/$F$33*100 -> 9.495606079 | G43: 15.21513565 | H43: 21.42007566 | I43: 26.07082414 | J43: 25.22629393 | K43: 23.17700213 | L43: 20.93696295 | M43: 12.70029744 | N43: 9.370188957
F44: =F38/$F$33 -> 0 | G44: 0 | H44: 0 | I44: 0 | J44: 0 | K44: 0 | L44: 0 | M44: 0 | N44: 0

Sheet Ex 2 Aquifers
A1: Total Aquifer Storage Ending Inventory (MDths)
O4: 1082 | P4: 1106
H6: 1.055 | M6: Month/Year | N6: Month | O6: Inj | P6: With | Q6: Total
A7: Month/Year | B7: Actual | C7: Normal | E7: Actual | F7: IRP | H7: MCF | I7: DTH | J7: MDTH | Q7: 724.5079939
A8: ='Ex 1 HDD'!$A$8 -> 2021-06-01 | B8: =J8 -> 763.977 | C8: =Q8 -> 724.5079939 | D8: =B8-C8 -> 39.46900606 | E8: =B8 -> 763.977 | F8: =C8 -> 724.5079939 | H8: =I8/$H$6 -> 724148.8152 | I8: 763977 | J8: =I8/1000 -> 763.977 | M8: =A8 -> 2021-06-01 | N8: =Q7 -> 724.5079939 | O8: 0 | P8: 0 | Q8: =N8+O8-P8 -> 724.5079939
A9: ='Ex 1 HDD'!$A$9 -> 2021-07-01 | B9: =J9 -> 761.374 | C9: =Q9 -> 724.5079939 | D9: =B9-C9 -> 36.86600606 | E9: =B9+E8 -> 1525.351 | F9: =C9+F8 -> 1449.015988 | H9: =I9/$H$6 -> 721681.5166 | I9: 761374 | J9: =I9/1000 -> 761.374 | M9: =A9 -> 2021-07-01 | N9: =Q8 -> 724.5079939 | O9: 0 | P9: 0 | Q9: 724.5079939
A10: ='Ex 1 HDD'!$A$10 -> 2021-08-01 | B10: 759.649 | C10: 724.5079939 | D10: =B10-C10 -> 35.14100606 | E10: =B10+E9 -> 2285 | F10: 2173.523982 | H10: 720046.4455 | I10: 759649 | J10: 759.649 | M10: 2021-08-01 | N10: =Q9 -> 724.5079939 | O10: 0 | P10: 0 | Q10: 724.5079939
A11: ='Ex 1 HDD'!$A$11 -> 2021-09-01 | B11: 1129.942 | C11: 836.7939939 | D11: =B11-C11 -> 293.1480061 | E11: =B11+E10 -> 3414.942 | F11: 3010.317976 | H11: =I11/$H$6 -> 1071035.071 | I11: 1129942 | J11: =I11/1000 -> 1129.942 | M11: 2021-09-01 | N11: 724.5079939 | O11: 112.286 | P11: 0 | Q11: 836.7939939
A12: ='Ex 1 HDD'!$A12 -> 2021-10-01 | B12: 1717.292 | C12: 1307.993994 | D12: 409.2980061 | E12: 5132.234 | F12: 4318.31197 | H12: =I12/$H$6 -> 1627764.929 | I12: 1717292 | J12: =I12/1000 -> 1717.292 | M12: 2021-10-01 | N12: 836.7939939 | O12: 471.2 | P12: 0 | Q12: 1307.993994
A13: ='Ex 1 HDD'!$A13 -> 2021-11-01 | B13: 1859.92 | C13: 1788.179994 | D13: 71.74000606 | E13: 6992.154 | F13: 6106.491964 | H13: 1762957.346 | I13: 1859920 | J13: 1859.92 | M13: 2021-11-01 | N13: 1307.993994 | O13: 480.186 | P13: 0 | Q13: 1788.179994
A14: ='Ex 1 HDD'!$A14 -> 2021-12-01 | B14: 1873.002 | C14: 1928.367994 | D14: -55.36599394 | E14: 8865.156 | F14: 8034.859958 | H14: =I14/$H$6 -> 1775357.346 | I14: 1873002 | J14: 1873.002 | M14: 2021-12-01 | N14: 1788.179994 | O14: 140.188 | P14: 0 | Q14: 1928.367994
A15: ='Ex 1 HDD'!$A15 -> 2022-01-01 | B15: 1866.375 | C15: 552.3699939 | D15: 1314.005006 | E15: 10731.531 | F15: 8587.229951 | H15: 1769075.829 | I15: 1866375 | J15: 1866.375 | M15: 2022-01-01 | N15: 1928.367994 | O15: 0 | P15: 1375.998 | Q15: =N15+O15-P15 -> 552.3699939
A16: ='Ex 1 HDD'!$A16 -> 2022-02-01 | B16: 1215.712 | C16: 478.6839939 | D16: 737.0280061 | E16: 11947.243 | F16: 9065.913945 | H16: 1152333.649 | I16: 1215712 | J16: =I16/1000 -> 1215.712 | M16: 2022-02-01 | N16: 552.3699939 | O16: 0 | P16: 73.686 | Q16: 478.6839939
A17: ='Ex 1 HDD'!$A17 -> 2022-03-01 | B17: 1075.336 | C17: 803.6839939 | D17: 271.6520061 | E17: 13022.579 | F17: 9869.597939 | H17: 1019275.829 | I17: 1075336 | J17: =I17/1000 -> 1075.336 | M17: 2022-03-01 | N17: 478.6839939 | O17: 325 | P17: 0 | Q17: 803.6839939
A18: ='Ex 1 HDD'!$A18 -> 2022-04-01 | B18: 770.899 | C18: 803.6839939 | D18: -32.78499394 | E18: 13793.478 | F18: 10673.28193 | H18: 730709.9526 | I18: 770899 | J18: =I18/1000 -> 770.899 | M18: 2022-04-01 | N18: 803.6839939 | O18: 0 | P18: 0 | Q18: 803.6839939
A19: ='Ex 1 HDD'!$A19 -> 2022-05-01 | B19: 648.657 | C19: 803.6839939 | D19: -155.0269939 | E19: 14442.135 | F19: 11476.96593 | H19: 614840.7583 | I19: 648657 | J19: =I19/1000 -> 648.657 | M19: 2022-05-01 | N19: 803.6839939 | O19: 0 | P19: 0 | Q19: 803.6839939
O20: =SUM(O8:O19) -> 1528.86 | P20: =SUM(P8:P19) -> 1449.684

Sheet Ex 2 Spire Storage West (hidden)
O5: 1082 | P5: 1106
H6: 1000 | N6: Month | O6: Inj | P6: With | Q6: Total
A7: ='Ex 1 HDD'!A7 -> Month/Year | B7: Actual | C7: Normal | D7: Days | E7: Daily Demand | G7: Actual Dth | H7: MDth | J7: Actual | K7: Normal | Q7: 731
A8: ='Ex 1 HDD'!A8 -> 2021-06-01 | B8: =H8 -> 799.215 | C8: =Q8 -> 1072.73 | D8: =DAY(EOMONTH(A8,0)) -> 30 | E8: =C8/D8 -> 35.75766667 | G8: 799215 | H8: =G8/$H$6 -> 799.215 | J8: 949.736 | K8: =C8 -> 1072.73 | M8: =A8 -> 2021-06-01 | N8: =Q7 -> 731 | O8: 341.73 | P8: 0 | Q8: =N8+O8-P8 -> 1072.73
A9: ='Ex 1 HDD'!A9 -> 2021-07-01 | B9: =H9 -> 1151.344 | C9: =Q9 -> 1425.85 | D9: =DAY(EOMONTH(A9,0)) -> 31 | E9: =C9/D9 -> 45.99516129 | G9: 1151344 | H9: =G9/$H$6 -> 1151.344 | J9: =B9+J8 -> 2101.08 | K9: =C9+K8 -> 2498.58 | M9: =A9 -> 2021-07-01 | N9: =Q8 -> 1072.73 | O9: 353.12 | P9: 0 | Q9: 1425.85
A10: ='Ex 1 HDD'!A10 -> 2021-08-01 | B10: =H10 -> 1503.473 | C10: 1778.97 | D10: 31 | E10: 57.38612903 | G10: 1503473 | H10: 1503.473 | J10: 3604.553 | K10: 4277.55 | M10: 2021-08-01 | N10: =Q9 -> 1425.85 | O10: 353.12 | P10: 0 | Q10: 1778.97
A11: ='Ex 1 HDD'!A11 -> 2021-09-01 | B11: =H11 -> 1844.243 | C11: 2120.7 | D11: 30 | E11: 70.69 | G11: 1844243 | H11: 1844.243 | J11: 5448.796 | K11: 6398.25 | M11: 2021-09-01 | N11: 1778.97 | O11: 341.73 | P11: 0 | Q11: 2120.7
A12: ='Ex 1 HDD'!A12 -> 2021-10-01 | B12: 2052.456 | C12: 2473.819 | D12: 31 | E12: 79.8006129 | G12: 2052456 | H12: 2052.456 | J12: 7501.252 | K12: 8872.069 | M12: 2021-10-01 | N12: 2120.7 | O12: 353.119 | P12: 0 | Q12: 2473.819
A13: ='Ex 1 HDD'!A13 -> 2021-11-01 | B13: 1782.492 | C13: 2511.007 | D13: 30 | E13: 83.70023333 | G13: 1782492 | H13: 1782.492 | J13: 9283.744 | K13: 11383.076 | M13: 2021-11-01 | N13: 2473.819 | O13: 37.188 | P13: 0 | Q13: 2511.007
A14: ='Ex 1 HDD'!A14 -> 2021-12-01 | B14: 1267.892 | C14: 2003.007 | D14: 31 | E14: 64.61312903 | G14: 1267892 | H14: 1267.892 | J14: 10551.636 | K14: 13386.083 | M14: 2021-12-01 | N14: 2511.007 | O14: 0 | P14: 508 | Q14: 2003.007
A15: ='Ex 1 HDD'!A15 -> 2022-01-01 | B15: 763.667 | C15: 1488.407 | D15: 31 | E15: 48.01312903 | G15: 763667 | H15: 763.667 | J15: 11315.303 | K15: 14874.49 | M15: 2022-01-01 | N15: 2003.007 | O15: 0 | P15: 514.6 | Q15: 1488.407
A16: ='Ex 1 HDD'!A16 -> 2022-02-01 | B16: 398.467 | C16: 1023.607 | D16: 28 | E16: 36.55739286 | G16: 398467 | H16: 398.467 | J16: 11713.77 | K16: 15898.097 | M16: 2022-02-01 | N16: 1488.407 | O16: 0 | P16: 464.8 | Q16: 1023.607
A17: ='Ex 1 HDD'!A17 -> 2022-03-01 | B17: =G17 -> 0 | C17: 509.007 | D17: 31 | E17: 16.41958065 | H17: 0 | J17: 11713.77 | K17: 16407.104 | M17: 2022-03-01 | N17: 1023.607 | O17: 0 | P17: 514.6 | Q17: 509.007
A18: ='Ex 1 HDD'!A18 -> 2022-04-01 | B18: 0 | C18: 11.007 | D18: 30 | E18: 0.3669 | H18: 0 | J18: 11713.77 | K18: 16418.111 | M18: 2022-04-01 | N18: 509.007 | O18: 0 | P18: 498 | Q18: 11.007
A19: ='Ex 1 HDD'!A19 -> 2022-05-01 | B19: 0 | C19: 11.007 | D19: 31 | E19: 0.3550645161 | H19: 0 | J19: 11713.77 | K19: 16429.118 | M19: 2022-05-01 | N19: 11.007 | O19: 0 | P19: 0 | Q19: 11.007
O21: =SUM(O8:O20) -> 1780.007 | P21: =SUM(O8:O19) -> 1780.007 | Q21: =SUM(P8:P19) -> 2500

Sheet Exhibit 2.1
O31: ='Exhibit 1.1'!O31 -> DEU Variance Exhibit | P31: ='Exhibit 1.1'!P31 -> Docket No. 21-057-01 | Q31: ='Exhibit 1.1'!Q31 -> Dominion Energy Utah
O32: 2.1

Sheet Exhibit 2.3 (hidden)
O31: ='Exhibit 1.1'!O31 -> DEU Variance Exhibit | P31: ='Exhibit 1.1'!P31 -> Docket No. 21-057-01 | Q31: ='Exhibit 1.1'!Q31 -> Dominion Energy Utah
O32: 2.3

Sheet Exhibit 2.2
O31: ='Exhibit 1.1'!O31 -> DEU Variance Exhibit | P31: ='Exhibit 1.1'!P31 -> Docket No. 21-057-01 | Q31: ='Exhibit 1.1'!Q31 -> Dominion Energy Utah
O32: 2.2

Sheet Exhibit 2.3
O31: ='Exhibit 1.1'!O31 -> DEU Variance Exhibit | P31: ='Exhibit 1.1'!P31 -> Docket No. 21-057-01 | Q31: ='Exhibit 1.1'!Q31 -> Dominion Energy Utah
O32: 2.3

Sheet Exhibit 2.4
O31: ='Exhibit 1.1'!O31 -> DEU Variance Exhibit | P31: ='Exhibit 1.1'!P31 -> Docket No. 21-057-01 | Q31: ='Exhibit 1.1'!Q31 -> Dominion Energy Utah
O32: 2.4

Sheet Exhibit 2.6 (hidden)
O31: ='Exhibit 1.1'!O31 -> DEU Variance Exhibit | P31: ='Exhibit 1.1'!P31 -> Docket No. 21-057-01 | Q31: ='Exhibit 1.1'!Q31 -> Dominion Energy Utah
O32: 2.6

Sheet Exhibit Firm Sales Volume
A1: Demand
G6: Cumulative
A7: ='Ex 1 HDD'!A7 -> Month/Year | B7: Actual | C7: IRP Forecast (Normal) | D7: Days | E7: Daily Demand | G7: Actual | H7: IRP Forecast (Normal)
A8: 2021-06-01 | B8: 2614.548315 | C8: 3139.509 | D8: =DAY(EOMONTH(A8,0)) -> 30 | E8: =C8/D8 -> 104.6503 | G8: =B8 -> 2614.548315 | H8: =C8 -> 3139.509
A9: 2021-07-01 | B9: 2546.965084 | C9: 2551.198 | D9: =DAY(EOMONTH(A9,0)) -> 31 | E9: =C9/D9 -> 82.29670968 | G9: =B9+G8 -> 5161.513399 | H9: =C9+H8 -> 5690.707
A10: 2021-08-01 | B10: 2446.767618 | C10: 2497.839 | D10: 31 | E10: 80.57545161 | G10: =B10+G9 -> 7608.281017 | H10: =C10+H9 -> 8188.546
A11: 2021-09-01 | B11: 2864.894759 | C11: 2918.777 | D11: 30 | E11: 97.29256667 | G11: 10473.17578 | H11: 11107.323
A12: 2021-10-01 | B12: 7660.866624 | C12: 7003.665 | D12: 31 | E12: 225.9246774 | G12: 18134.0424 | H12: 18110.988
A13: 2021-11-01 | B13: 10491.4178 | C13: 12306.282 | D13: 30 | E13: 410.2094 | G13: 28625.4602 | H13: 30417.27
A14: 2021-12-01 | B14: 17567.33974 | C14: 18804.154 | D14: 31 | E14: 606.5856129 | G14: 46192.79994 | H14: 49221.424
A15: 2022-01-01 | B15: 21608.89421 | C15: 21282.724 | D15: 31 | E15: 686.5394839 | G15: 67801.69416 | H15: 70504.148
A16: 2022-02-01 | B16: 17464.55296 | C16: 17912.103 | D16: 28 | E16: 639.7179643 | G16: 85266.24711 | H16: 88416.251
A17: 2022-03-01 | B17: 12878.23788 | C17: 13824.278 | D17: 31 | E17: 445.9444516 | G17: 98144.485 | H17: 102240.529
A18: 2022-04-01 | B18: 9551.628462 | C18: 9529.655 | D18: 30 | E18: 317.6551667 | G18: 107696.1135 | H18: 111770.184
A19: 2022-05-01 | B19: 5875.793063 | C19: 5590.985 | D19: 31 | E19: 180.3543548 | G19: 113571.9065 | H19: 117361.169
C20: =SUM(C8:C19) -> 117361.169

Sheet Exhibit 3.1
O31: DEU Variance Exhibit | P31: Docket No. 21-057-01 | Q31: Dominion Energy Utah
O32: 3.1

Sheet Exhibit 3.2
O31: DEU Variance Exhibit | P31: Docket No. 21-057-01 | Q31: Dominion Energy Utah
O32: 3.2

Sheet Exhibit 3.3
O31: DEU Variance Exhibit | P31: Docket No. 21-057-01 | Q31: Dominion Energy Utah
O32: 3.3

Sheet Exhibit 3.4
H1: Dominion Energy Utah
H2: Docket No. 21-057-01
H3: DEU Variance Exhibit 3.4
B6: IRP Variance
B8: Actual Results
C9: 2022-03-07 | E9: 2022-04-07 | G9: 2022-05-08
B10: SUPPLY | C10: Actual | D10: IRP | E10: Actual | F10: IRP | G10: Actual | H10: IRP
A11: 1 | B11: Cost of Service Prod (Mbtu) | C11: 4811 | D11: 5155.955 | E11: 4750 | F11: 4714.368 | G11: 4686 | H11: 4794.916
A12: =A11+1 -> 2 | B12: Purchases (Mbtu) | C12: 5376 | D12: 7286.468 | E12: 2946 | F12: 5658.297 | G12: 1018 | H12: 3102.498
A13: =A12+1 -> 3 | B13: Clay Basin With (Mbtu) | C13: 2683.85 | D13: 0 | E13: 1778.816 | F13: 0 | G13: 593.422 | H13: 0
A14: =A13+1 -> 4 | B14: Acquifers With (Mbtu) | C14: 440.423 | D14: 1599.106 | E14: 373.207 | F14: 0 | G14: 131.821 | H14: 0
A15: 5 | B15: Off-System | C15: 18.91325 | D15: 39.677 | E15: 8.94796 | F15: 38.397 | G15: 32.13396 | H15: 39.677
A17: =A15+1 -> 6 | B17: Total Supply | C17: 13330.18625 | D17: 14081.206 | E17: 9856.97096 | F17: 10411.062 | G17: 6461.37696 | H17: 7937.091
B19: DEMAND
A20: =A17+1 -> 7 | B20: Firm Sales (Mbtu) | C20: 12878.23788 | D20: 13386.88733 | E20: 9551.628462 | F20: 9176.420287 | G20: 5875.793063 | H20: 5275.255693
A21: =A20+1 -> 8 | B21: Interruptible Sales (Mbtu) | C21: 45.928728 | D21: 43.19055557 | E21: 34.376972 | F21: 34.18309784 | G21: 29.255696 | H21: 21.97106743
A22: =A21+1 -> 9 | B22: Clay Basin Inj (Mbtu) | C22: 212.397 | D22: 0 | E22: 17.845 | F22: 945 | G22: 652.821 | H22: 2418
A23: =A22+1 -> 10 | B23: Acquifers Inj (Mbtu) | C23: 311.117 | D23: 325 | E23: 74.421 | F23: 0 | G23: 12.553 | H23: 0
A24: 11 | B24: Off-System | C24: 18.91325 | D24: 37.60145187 | E24: 8.94796 | F24: 36.38850021 | G24: 32.13396 | H24: 37.60145187
A25: =A24+1 -> 12 | B25: Fuel | C25: 92.026 | D25: 215.733 | E25: 74.296 | F25: 169.149 | G25: 76.375 | H25: 155.552
A26: =A25+1 -> 13 | B26: Company Use / L&U | C26: -228.806 | D26: 72.79102549 | E26: 95.191 | F26: 49.92147382 | G26: -217.234 | H26: 28.71096899
A28: =A26+1 -> 14 | B28: Total Demand | C28: 13329.81386 | D28: 14081.20337 | E28: 9856.706394 | F28: 10411.06236 | G28: 6461.697719 | H28: 7937.091181
A31: =A28+1 -> 15 | B31: Clay Basin Fuel Usage Adjustment | C31: -0.029 | D31: 0 | E31: -0.025 | F31: 0 | G31: -0.011 | H31: 0
A32: =A31+1 -> 16 | B32: Clay Basin Transfers | C32: 0 | D32: 0 | E32: 0 | F32: 0 | G32: 0 | H32: 0
A33: =A32+1 -> 17 | B33: Acquifers Fuel Usage Adjustment | C33: -11.07 | D33: 0 | E33: -5.651 | F33: 0 | G33: -2.974 | H33: 0
A34: =A33+1 -> 18 | B34: Acquifers Transfers | C34: 0 | D34: 0 | E34: 0 | F34: 0 | G34: 0 | H34: 0
A35: =A34+1 -> 19 | B35: Clay Basin Current Bal | C35: 2012.172 | D35: 0.0009999999997 | E35: 251.176 | F35: 945.001 | G35: 310.564 | H35: 3363.002
A36: =A35+1 -> 20 | B36: Acquifers Current Bal | C36: 1075.336 | D36: 0 | E36: 770.899 | F36: 0 | G36: 648.657 | H36: 0
A38: 21 | B38: Purchases($/Dth) | C38: 4.41 | D38: 2.7720248 | E38: 5.83 | F38: 2.350479305 | G38: 7.58 | H38: 2.289518317
A39: =A38+1 -> 22 | B39: Purchases $ (000) | C39: 23708.16 | D39: 20198.27 | E39: 17175.18 | F39: 13299.71 | G39: 7716.44 | H39: 7103.226
B42: Variances
A43: =A39+1 -> 23 | B43: Cost of service volumes | C43: 0 | D43: 0 | E43: 35.632 | F43: 0 | G43: 0 | H43: 0
A44: =A43+1 -> 24 | B44: Purchase volumes | C44: 0 | D44: 0 | E44: 0 | F44: 0 | G44: 0 | H44: 0
A45: 25 | B45: Purchase $ Act over (under) IRP | C45: 3509.89 | D45: 0 | E45: 3875.47 | F45: 0 | G45: 613.214 | H45: 0
A46: 26 | B46: Purchase Variance | C46: 0 | D46: -5295.864675 | E46: 0 | F46: -6375.197967 | G46: 0 | H46: -4772.496353
A47: 27 | B47: $ Variance | C47: 0 | D47: 8805.754675 | E47: 0 | F47: 10250.66797 | G47: 0 | H47: 5385.710353
A48: 28 | B48: Check | C48: 3509.89 | D48: -3509.89 | E48: 3875.47 | F48: -3875.47 | G48: 613.214 | H48: -613.214
A49: 29 | B49: Quarter Variance | G49: 7998.574
A50: 30 | B50: Purchase Variance | G50: -16443.559
A51: 31 | B51: $ Variance | G51: 24442.133
A52: 32 | B52: Check | G52: 0

Sheet Ex 4 Purchase Gas
A1: Purchase Gas Variance (Brady Included) MDths
G6: Cumulative
A7: Month/Year | B7: Actual | C7: IRP Normal | E7: Month/Year | F7: Actual | G7: Normal | I7: Month/Year | J7: DTHS | K7: MDTHS | L7: $'S | M7: $1,000'S
A8: ='Ex 1 HDD'!A8 -> 2021-06-01 | B8: =K8 -> 0 | C8: 528.775 | E8: =A8 -> 2021-06-01 | F8: =K8 -> 0 | G8: =C8 -> 528.775 | I8: =A8 -> 2021-06-01 | J8: 0 | K8: =J8/1000 -> 0 | L8: 0 | M8: =L8/1000 -> 0
A9: ='Ex 1 HDD'!A9 -> 2021-07-01 | B9: =K9 -> 0 | C9: 58.162 | E9: 2021-07-01 | F9: =F8+K9 -> 0 | G9: =G8+C9 -> 586.937 | I9: 2021-07-01 | J9: 0 | K9: =J9/1000 -> 0 | L9: 0 | M9: 0
A10: ='Ex 1 HDD'!A10 -> 2021-08-01 | B10: 70 | C10: 91.244 | E10: 2021-08-01 | F10: 70 | G10: 678.181 | I10: 2021-08-01 | J10: 70000 | K10: =J10/1000 -> 70 | L10: 262800 | M10: 262.8
A11: ='Ex 1 HDD'!A11 -> 2021-09-01 | B11: 558.699 | C11: 1151.47 | E11: 2021-09-01 | F11: 628.699 | G11: 1829.651 | I11: 2021-09-01 | J11: 558699 | K11: 558.699 | L11: 2666026 | M11: 2666.026
A12: ='Ex 1 HDD'!A12 -> 2021-10-01 | B12: 5376.806 | C12: 4409.59 | E12: 2021-10-01 | F12: 6005.505 | G12: 6239.241 | I12: 2021-10-01 | J12: 5376806 | K12: 5376.806 | L12: 29004796 | M12: 29004.796
A13: ='Ex 1 HDD'!A13 -> 2021-11-01 | B13: 6573.12 | C13: 6661.925 | E13: 2021-11-01 | F13: 12578.625 | G13: 12901.166 | I13: 2021-11-01 | J13: 6573120 | K13: 6573.12 | L13: 33754182 | M13: 33754.182
A14: ='Ex 1 HDD'!A14 -> 2021-12-01 | B14: 12438.054 | C14: 9621.875 | E14: 2021-12-01 | F14: 25016.679 | G14: 22523.041 | I14: 2021-12-01 | J14: 12438054 | K14: 12438.054 | L14: 73704630 | M14: 73704.63
A15: ='Ex 1 HDD'!A15 -> 2022-01-01 | B15: 12925.585 | C15: 11451.82 | E15: 2022-01-01 | F15: 37942.264 | G15: 33974.861 | I15: 2022-01-01 | J15: 12925585 | K15: 12925.585 | L15: 81524649 | M15: 81524.649
A16: ='Ex 1 HDD'!A16 -> 2022-02-01 | B16: 11200.611 | C16: 10038.777 | E16: 2022-02-01 | F16: 49142.875 | G16: 44013.638 | I16: 2022-02-01 | J16: 11200611 | K16: 11200.611 | L16: 58371761 | M16: 58371.761
A17: ='Ex 1 HDD'!A17 -> 2022-03-01 | B17: 5376.039 | C17: 7286.468 | E17: 2022-03-01 | F17: 54518.914 | G17: 51300.106 | I17: 2022-03-01 | J17: 5376039 | K17: 5376.039 | L17: 23719354.57 | M17: 23719.35457
A18: ='Ex 1 HDD'!A18 -> 2022-04-01 | B18: 2945.827 | C18: 5658.297 | E18: 2022-04-01 | F18: 57464.741 | G18: =G17+C18 -> 56958.403 | I18: 2022-04-01 | J18: 2945827 | K18: 2945.827 | L18: 17170484.19 | M18: 17170.48419
A19: ='Ex 1 HDD'!A19 -> 2022-05-01 | B19: 1018.369 | C19: 3102.498 | E19: 2022-05-01 | F19: 58483.11 | G19: 60060.901 | I19: 2022-05-01 | J19: 1018369 | K19: 1018.369 | L19: 7718640.83 | M19: 7718.64083
B21: =SUM(B8:B19) -> 58483.11 | C21: =SUM(C8:C20) -> 60060.901
B23: =B16-B17 -> 5824.572

Sheet Exhibit 4.1
O31: ='Exhibit 1.1'!O31 -> DEU Variance Exhibit | P31: ='Exhibit 1.1'!P31 -> Docket No. 21-057-01 | Q31: ='Exhibit 1.1'!Q31 -> Dominion Energy Utah
O32: 4.1

Sheet Exhibit 4.2
O30: ='Exhibit 1.1'!O31 -> DEU Variance Exhibit | P30: ='Exhibit 1.1'!P31 -> Docket No. 21-057-01 | Q30: ='Exhibit 1.1'!Q31 -> Dominion Energy Utah
O31: 4.2

Sheet Exhibit 4.3
O31: ='Exhibit 1.1'!O31 -> DEU Variance Exhibit | P31: ='Exhibit 1.1'!P31 -> Docket No. 21-057-01 | Q31: ='Exhibit 1.1'!Q31 -> Dominion Energy Utah
O32: 4.3

Sheet Ex 5 Purchase Gas Cost
A1: Purchase Gas Cost Variance ($1,000's)
E6: Cumulative
A7: Month/Year | B7: Actual | C7: Normal | E7: Actual | F7: Normal
A8: ='Ex 1 HDD'!A8 -> 2021-06-01 | B8: ='Ex 4 Purchase Gas'!M8 -> 0 | C8: 1302.127 | E8: =B8 -> 0 | F8: =C8 -> 1302.127
A9: ='Ex 1 HDD'!A9 -> 2021-07-01 | B9: ='Ex 4 Purchase Gas'!M9 -> 0 | C9: 150.544 | E9: =E8+B9 -> 0 | F9: =C9+F8 -> 1452.671
A10: ='Ex 1 HDD'!A10 -> 2021-08-01 | B10: ='Ex 4 Purchase Gas'!M10 -> 262.8 | C10: 242.49 | E10: 262.8 | F10: =C10+F9 -> 1695.161
A11: ='Ex 1 HDD'!A11 -> 2021-09-01 | B11: ='Ex 4 Purchase Gas'!M11 -> 2666.026 | C11: 2667.016 | E11: 2928.826 | F11: 4362.177
A12: ='Ex 1 HDD'!A12 -> 2021-10-01 | B12: ='Ex 4 Purchase Gas'!M12 -> 29004.796 | C12: 11151.42 | E12: 31933.622 | F12: 15513.597
A13: ='Ex 1 HDD'!A13 -> 2021-11-01 | B13: ='Ex 4 Purchase Gas'!M13 -> 33754.182 | C13: 18111.22 | E13: 65687.804 | F13: 33624.817
A14: ='Ex 1 HDD'!A14 -> 2021-12-01 | B14: 73705 | C14: 27774.06 | E14: 139392.804 | F14: 61398.877
A15: ='Ex 1 HDD'!A15 -> 2022-01-01 | B15: 81524 | C15: 39159.19 | E15: 220916.804 | F15: 100558.067
A16: ='Ex 1 HDD'!A16 -> 2022-02-01 | B16: 58372 | C16: 32165.38 | E16: 279288.804 | F16: 132723.447
A17: ='Ex 1 HDD'!A17 -> 2022-03-01 | B17: 23719.35457 | C17: 20198.27 | E17: 303008.1586 | F17: 152921.717
A18: ='Ex 1 HDD'!A18 -> 2022-04-01 | B18: 17170.48419 | C18: 13299.71 | E18: 320178.6428 | F18: 166221.427
A19: ='Ex 1 HDD'!A19 -> 2022-05-01 | B19: 7718.64083 | C19: 7103.226 | E19: 327897.2836 | F19: 173324.653
C21: =SUM(C8:C19) -> 173324.653

Sheet Exhibit 5.1
N31: ='Exhibit 1.1'!O31 -> DEU Variance Exhibit | O31: ='Exhibit 1.1'!P31 -> Docket No. 21-057-01 | P31: ='Exhibit 1.1'!Q31 -> Dominion Energy Utah
N32: 5.1

Sheet Exhibit 5.2
O31: ='Exhibit 1.1'!O31 -> DEU Variance Exhibit | P31: ='Exhibit 1.1'!P31 -> Docket No. 21-057-01 | Q31: ='Exhibit 1.1'!Q31 -> Dominion Energy Utah
O32: 5.2

Sheet Exhibit 5.3
O31: ='Exhibit 1.1'!O31 -> DEU Variance Exhibit | P31: ='Exhibit 1.1'!P31 -> Docket No. 21-057-01 | Q31: ='Exhibit 1.1'!Q31 -> Dominion Energy Utah
O32: 5.3

Sheet Ex 6 Purch Gas Unit Cost
A1: Purchase Gas Unit Cost Variance ($1,000's)
E6: Actual | F6: Actual | G6: Actual | I6: Normal | J6: Normal | K6: Normal
A7: Month/Year | B7: Actual $/Dth | C7: Normal $/Dth | E7: Dth | F7: Cost | G7: $/Dth | I7: Dth | J7: Cost | K7: $/Dth | M7: May Forward Strip
A8: ='Ex 1 HDD'!A8 -> 2021-06-01 | B8: =G8 -> 0 | C8: =K8 -> 2.462535105 | E8: ='Ex 4 Purchase Gas'!B8 -> 0 | F8: ='Ex 4 Purchase Gas'!M8 -> 0 | G8: =IFERROR(F8/E8,0) -> 0 | I8: ='Ex 4 Purchase Gas'!C8 -> 528.775 | J8: ='Ex 5 Purchase Gas Cost'!C8 -> 1302.127 | K8: =IFERROR(J8/I8,0) -> 2.462535105 | M8: 2.51
A9: ='Ex 1 HDD'!A9 -> 2021-07-01 | B9: 0 | C9: =K9 -> 2.588356659 | E9: ='Ex 4 Purchase Gas'!B9 -> 0 | F9: ='Ex 4 Purchase Gas'!M9 -> 0 | G9: =IFERROR(F9/E9,0) -> 0 | I9: ='Ex 4 Purchase Gas'!C9 -> 58.162 | J9: ='Ex 5 Purchase Gas Cost'!C9 -> 150.544 | K9: =IFERROR(J9/I9,0) -> 2.588356659 | M9: 2.57
A10: ='Ex 1 HDD'!A10 -> 2021-08-01 | B10: 3.754285714 | C10: 2.657599404 | E10: ='Ex 4 Purchase Gas'!B10 -> 70 | F10: ='Ex 4 Purchase Gas'!M10 -> 262.8 | G10: 3.754285714 | I10: ='Ex 4 Purchase Gas'!C10 -> 91.244 | J10: ='Ex 5 Purchase Gas Cost'!C10 -> 242.49 | K10: 2.657599404 | M10: 2.54
A11: ='Ex 1 HDD'!A11 -> 2021-09-01 | B11: 4.771846737 | C11: =K11 -> 2.316183661 | E11: ='Ex 4 Purchase Gas'!B11 -> 558.699 | F11: ='Ex 4 Purchase Gas'!M11 -> 2666.026 | G11: 4.771846737 | I11: ='Ex 4 Purchase Gas'!C11 -> 1151.47 | J11: ='Ex 5 Purchase Gas Cost'!C11 -> 2667.016 | K11: 2.316183661 | M11: 2.7
A12: ='Ex 1 HDD'!A12 -> 2021-10-01 | B12: 5.394428588 | C12: =K12 -> 2.52890178 | E12: ='Ex 4 Purchase Gas'!B12 -> 5376.806 | F12: ='Ex 4 Purchase Gas'!M12 -> 29004.796 | G12: 5.394428588 | I12: ='Ex 4 Purchase Gas'!C12 -> 4409.59 | J12: ='Ex 5 Purchase Gas Cost'!C12 -> 11151.42 | K12: 2.52890178 | M12: 2.83
A13: ='Ex 1 HDD'!A13 -> 2021-11-01 | B13: 5.135184205 | C13: =K13 -> 2.718616616 | E13: ='Ex 4 Purchase Gas'!B13 -> 6573.12 | F13: ='Ex 4 Purchase Gas'!M13 -> 33754.182 | G13: 5.135184205 | I13: ='Ex 4 Purchase Gas'!C13 -> 6661.925 | J13: ='Ex 5 Purchase Gas Cost'!C13 -> 18111.22 | K13: =IFERROR(J13/I13,0) -> 2.718616616 | M13: 2.79
A14: ='Ex 1 HDD'!A14 -> 2021-12-01 | B14: 5.925736454 | C14: 2.886553816 | E14: ='Ex 4 Purchase Gas'!B14 -> 12438.054 | F14: ='Ex 4 Purchase Gas'!M14 -> 73704.63 | G14: 5.925736454 | I14: ='Ex 4 Purchase Gas'!C14 -> 9621.875 | J14: ='Ex 5 Purchase Gas Cost'!C14 -> 27774.06 | K14: 2.886553816 | M14: 2.75
A15: ='Ex 1 HDD'!A15 -> 2022-01-01 | B15: 6.307230891 | C15: 3.419473062 | E15: ='Ex 4 Purchase Gas'!B15 -> 12925.585 | F15: ='Ex 4 Purchase Gas'!M15 -> 81524.649 | G15: 6.307230891 | I15: ='Ex 4 Purchase Gas'!C15 -> 11451.82 | J15: ='Ex 5 Purchase Gas Cost'!C15 -> 39159.19 | K15: 3.419473062 | M15: 3.12
A16: ='Ex 1 HDD'!A16 -> 2022-02-01 | B16: 5.21148007 | C16: 3.204113409 | E16: ='Ex 4 Purchase Gas'!B16 -> 11200.611 | F16: ='Ex 4 Purchase Gas'!M16 -> 58371.761 | G16: 5.21148007 | I16: ='Ex 4 Purchase Gas'!C16 -> 10038.777 | J16: ='Ex 5 Purchase Gas Cost'!C16 -> 32165.38 | K16: 3.204113409 | M16: 3.5
A17: ='Ex 1 HDD'!A17 -> 2022-03-01 | B17: 4.412050316 | C17: 2.7720248 | E17: ='Ex 4 Purchase Gas'!B17 -> 5376.039 | F17: ='Ex 4 Purchase Gas'!M17 -> 23719.35457 | G17: 4.412050316 | I17: ='Ex 4 Purchase Gas'!C17 -> 7286.468 | J17: ='Ex 5 Purchase Gas Cost'!C17 -> 20198.27 | K17: 2.7720248 | M17: 3.66
A18: ='Ex 1 HDD'!A18 -> 2022-04-01 | B18: 5.828748324 | C18: 2.350479305 | E18: ='Ex 4 Purchase Gas'!B18 -> 2945.827 | F18: ='Ex 4 Purchase Gas'!M18 -> 17170.48419 | G18: 5.828748324 | I18: ='Ex 4 Purchase Gas'!C18 -> 5658.297 | J18: ='Ex 5 Purchase Gas Cost'!C18 -> 13299.71 | K18: 2.350479305 | M18: 3.43
A19: ='Ex 1 HDD'!A19 -> 2022-05-01 | B19: 7.579414564 | C19: 2.289518317 | E19: ='Ex 4 Purchase Gas'!B19 -> 1018.369 | F19: ='Ex 4 Purchase Gas'!M19 -> 7718.64083 | G19: 7.579414564 | I19: ='Ex 4 Purchase Gas'!C19 -> 3102.498 | J19: ='Ex 5 Purchase Gas Cost'!C19 -> 7103.226 | K19: 2.289518317 | M19: 2.88

Sheet Exhibit 6.1
O31: ='Exhibit 1.1'!O31 -> DEU Variance Exhibit | P31: ='Exhibit 1.1'!P31 -> Docket No. 21-057-01 | Q31: ='Exhibit 1.1'!Q31 -> Dominion Energy Utah
O32: 6.1

Sheet Exhibit 6.2
O31: ='Exhibit 1.1'!O31 -> DEU Variance Exhibit | P31: ='Exhibit 1.1'!P31 -> Docket No. 21-057-01 | Q31: ='Exhibit 1.1'!Q31 -> Dominion Energy Utah
O32: 6.2

Sheet Ex 7 Co. Owned Gas
A1: Cost-of-Service Gas Variance (MDths)
H6: Cumulative
A7: Month/Year | B7: Actual | C7: Normal | D7: Full Production | E7: Shut-in Est. Month | F7: Shut-in Daily | H7: Actual | I7: Normal | K7: Days in Mo. | L7: Dthms | M7: Dthms/Day
A8: ='Ex 1 HDD'!A8 -> 2021-06-01 | B8: ='Company Nom Groups'!S115 -> 4656.166 | C8: 4722.177 | D8: 4936.908343 | E8: =D8-C8 -> 214.7313426 | F8: =(E8/30)*1000 -> 7157.71142 | H8: =B8 -> 4656.166 | I8: =C8 -> 4722.177 | K8: =DAY(EOMONTH(A8,0)) -> 30 | L8: =C8 -> 4722.177 | M8: =L8/K8 -> 157.4059 | Q8: 5754.478384
A9: ='Ex 1 HDD'!A9 -> 2021-07-01 | B9: ='Company Nom Groups'!W115 -> 4613.595 | C9: 4800.331 | D9: 5020.999016 | E9: 220.6680156 | F9: =(E9/30)*1000 -> 7355.600519 | H9: =H8+B9 -> 9269.761 | I9: =I8+C9 -> 9522.508 | K9: =DAY(EOMONTH(A9,0)) -> 31 | L9: =C9 -> 4800.331 | M9: =L9/K9 -> 154.8493871 | Q9: 5867.413019
A10: ='Ex 1 HDD'!A10 -> 2021-08-01 | B10: ='Company Nom Groups'!AA115 -> 4623.568 | C10: 4608.729 | D10: 4666.952814 | E10: 58.22381433 | F10: 1940.793811 | H10: 13893.329 | I10: 14131.237 | K10: 31 | L10: 4608.729 | M10: 148.6686774 | Q10: 5986.085205
A11: ='Ex 1 HDD'!A11 -> 2021-09-01 | B11: ='Company Nom Groups'!AM115 -> 4468.642 | C11: 4373.679 | D11: 4512.285937 | E11: 138.6069366 | F11: 4620.23122 | H11: 18361.971 | I11: 18504.916 | K11: 30 | L11: 4373.679 | M11: 145.7893 | Q11: 5618.719149
A12: ='Ex 1 HDD'!A12 -> 2021-10-01 | B12: ='Company Nom Groups'!AQ115 -> 4639.253 | C12: 4516.218 | D12: 4590.929025 | E12: 74.71102525 | F12: 2490.367508 | H12: 23001.224 | I12: 23021.134 | K12: 31 | L12: 4516.218 | M12: 145.6844516 | Q12: 5665.433802
A13: ='Ex 1 HDD'!A13 -> 2021-11-01 | B13: ='Company Nom Groups'!AU115 -> 4516.209 | C13: 5297.355 | D13: 5301.550122 | E13: 4.195121967 | F13: 139.8373989 | H13: 27517.433 | I13: 28318.489 | K13: 30 | L13: 5297.355 | M13: 176.5785 | Q13: 5366.261282
A14: ='Ex 1 HDD'!A14 -> 2021-12-01 | B14: 4780 | C14: 5402.657 | D14: 5406.970879 | E14: 4.313878792 | F14: 143.7959597 | H14: 32297.433 | I14: 33721.146 | K14: 31 | L14: 5402.657 | M14: 174.2792581 | Q14: 5567.876643
A15: ='Ex 1 HDD'!A15 -> 2022-01-01 | B15: 4638 | C15: 5318.111 | D15: 5322.393884 | E15: 4.282884231 | F15: 142.7628077 | H15: 36935.433 | I15: 39039.257 | K15: 31 | L15: 5318.111 | M15: 171.5519677 | Q15: 5438.795676
A16: ='Ex 1 HDD'!A16 -> 2022-02-01 | B16: 4154 | C16: 4734.414 | D16: 4738.253276 | E16: 3.839276178 | F16: 127.9758726 | H16: 41089.433 | I16: 43773.671 | K16: 28 | L16: 4734.414 | M16: 169.0862143 | Q16: 5101.590072
A17: ='Ex 1 HDD'!A17 -> 2022-03-01 | B17: 4811.359 | C17: 5155.956 | D17: 5160.188376 | E17: 4.232376001 | F17: 141.0792 | H17: 45900.792 | I17: 48929.627 | K17: 31 | L17: 5155.956 | M17: 166.3211613 | Q17: 5326.091886
A18: ='Ex 1 HDD'!A18 -> 2022-04-01 | B18: 4749.848 | C18: 4714.368 | D18: 4914.063903 | E18: =D18-C18 -> 199.6959031 | F18: 6656.530102 | H18: 50650.64 | I18: 53643.995 | K18: 30 | L18: 4714.368 | M18: 157.1456 | Q18: 5051.585887
A19: ='Ex 1 HDD'!A19 -> 2022-05-01 | B19: 4686.044 | C19: 4794.916 | D19: 4999.484049 | E19: 204.5680492 | F19: =(E19/30)*1000 -> 6818.934975 | H19: 55336.684 | I19: 58438.911 | K19: 31 | L19: 4794.916 | M19: 154.6747097 | Q19: 5126.305828
B21: =SUM(B8:B19) -> 55336.684 | C21: =SUM(C8:C19) -> 58438.911 | D21: =SUM(D8:D19) -> 59570.97962

Sheet Exhibit 7.1
O32: ='Exhibit 1.1'!O31 -> DEU Variance Exhibit | P32: ='Exhibit 1.1'!P31 -> Docket No. 21-057-01 | Q32: ='Exhibit 1.1'!Q31 -> Dominion Energy Utah
O33: 7.1

Sheet Exhibit 7.2
O31: ='Exhibit 1.1'!O31 -> DEU Variance Exhibit | P31: ='Exhibit 1.1'!P31 -> Docket No. 21-057-01 | Q31: ='Exhibit 1.1'!Q31 -> Dominion Energy Utah
O32: 7.2

Sheet Exhibit 7.3
O31: ='Exhibit 1.1'!O31 -> DEU Variance Exhibit | P31: ='Exhibit 1.1'!P31 -> Docket No. 21-057-01 | Q31: ='Exhibit 1.1'!Q31 -> Dominion Energy Utah
O32: 7.3

Sheet Ex 8 New Drill
A1: Isolated New Drill Component (MDths)
J6: Cumulative | L6: Cumulative
A7: Month/Year | B7: ND Actual | C7: ND Normal | D7: Legacy Actual | E7: Legacy Normal | H7: Prod Actual | I7: Prod Normal | J7: ND Actual | K7: ND Normal | L7: =D7 -> Legacy Actual | M7: =E7 -> Legacy Normal
A8: ='Ex 1 HDD'!A8 -> 2021-06-01 | B8: 0 | C8: ='Company Nom Groups'!B133 -> 0 | D8: =H8-B8 -> 4656.166 | E8: =I8-C8 -> 4722.177 | H8: ='Ex 7 Co. Owned Gas'!B8 -> 4656.166 | I8: ='Ex 7 Co. Owned Gas'!C8 -> 4722.177 | J8: =B8 -> 0 | K8: =C8 -> 0 | L8: =D8 -> 4656.166 | M8: =E8 -> 4722.177
A9: ='Ex 1 HDD'!A9 -> 2021-07-01 | B9: 0 | C9: ='Company Nom Groups'!C133 -> 0 | D9: 4613.595 | E9: 4800.331 | H9: ='Ex 7 Co. Owned Gas'!B9 -> 4613.595 | I9: ='Ex 7 Co. Owned Gas'!C9 -> 4800.331 | J9: =B8+B9 -> 0 | K9: =K8+C9 -> 0 | L9: 9269.761 | M9: 9522.508
A10: ='Ex 1 HDD'!A10 -> 2021-08-01 | B10: 0 | C10: ='Company Nom Groups'!D133 -> 0 | D10: 4623.568 | E10: 4608.729 | H10: ='Ex 7 Co. Owned Gas'!B10 -> 4623.568 | I10: ='Ex 7 Co. Owned Gas'!C10 -> 4608.729 | J10: =J9+B10 -> 0 | K10: 0 | L10: 13893.329 | M10: 14131.237
A11: ='Ex 1 HDD'!A11 -> 2021-09-01 | B11: 0 | C11: ='Company Nom Groups'!E133 -> 0 | D11: 4468.642 | E11: 4373.679 | H11: ='Ex 7 Co. Owned Gas'!B11 -> 4468.642 | I11: ='Ex 7 Co. Owned Gas'!C11 -> 4373.679 | J11: 0 | K11: =K10+C11 -> 0 | L11: =L10+D11 -> 18361.971 | M11: =M10+E11 -> 18504.916
A12: ='Ex 1 HDD'!A12 -> 2021-10-01 | B12: 0 | C12: ='Company Nom Groups'!F133 -> 0 | D12: 4639.253 | E12: 4516.218 | H12: ='Ex 7 Co. Owned Gas'!B12 -> 4639.253 | I12: ='Ex 7 Co. Owned Gas'!C12 -> 4516.218 | J12: 0 | K12: 0 | L12: =L11+D12 -> 23001.224 | M12: 23021.134
A13: ='Ex 1 HDD'!A13 -> 2021-11-01 | B13: 177 | C13: ='Company Nom Groups'!G133 -> 470.04 | D13: 4339.209 | E13: 4827.315 | H13: ='Ex 7 Co. Owned Gas'!B13 -> 4516.209 | I13: ='Ex 7 Co. Owned Gas'!C13 -> 5297.355 | J13: 177 | K13: 470.04 | L13: 27340.433 | M13: 27848.449
A14: ='Ex 1 HDD'!A14 -> 2021-12-01 | B14: 476.685 | C14: 0 | D14: 4303.315 | E14: 5402.657 | H14: ='Ex 7 Co. Owned Gas'!B14 -> 4780 | I14: ='Ex 7 Co. Owned Gas'!C14 -> 5402.657 | J14: 653.685 | K14: 470.04 | L14: 31643.748 | M14: 33251.106
A15: ='Ex 1 HDD'!A15 -> 2022-01-01 | B15: 453.648 | C15: 404 | D15: 4184.352 | E15: 4914.111 | H15: ='Ex 7 Co. Owned Gas'!B15 -> 4638 | I15: ='Ex 7 Co. Owned Gas'!C15 -> 5318.111 | J15: 1107.333 | K15: 874.04 | L15: 35828.1 | M15: 38165.217
A16: ='Ex 1 HDD'!A16 -> 2022-02-01 | B16: 401.547 | C16: 379 | D16: 3752.453 | E16: 4355.414 | H16: ='Ex 7 Co. Owned Gas'!B16 -> 4154 | I16: ='Ex 7 Co. Owned Gas'!C16 -> 4734.414 | J16: 1508.88 | K16: 1253.04 | L16: 39580.553 | M16: 42520.631
A17: ='Ex 1 HDD'!A17 -> 2022-03-01 | B17: 414.582 | C17: 345 | D17: 4396.777 | E17: 4810.956 | H17: ='Ex 7 Co. Owned Gas'!B17 -> 4811.359 | I17: ='Ex 7 Co. Owned Gas'!C17 -> 5155.956 | J17: 1923.462 | K17: 1598.04 | L17: 43977.33 | M17: 47331.587
A18: ='Ex 1 HDD'!A18 -> 2022-04-01 | B18: 344.132 | C18: ='Company Nom Groups'!L133 -> 388.161 | D18: 4405.716 | E18: 4326.207 | H18: ='Ex 7 Co. Owned Gas'!B18 -> 4749.848 | I18: ='Ex 7 Co. Owned Gas'!C18 -> 4714.368 | J18: 2267.594 | K18: 1986.201 | L18: 48383.046 | M18: 51657.794
A19: ='Ex 1 HDD'!A19 -> 2022-05-01 | B19: 257.068 | C19: ='Company Nom Groups'!M133 -> 378.261 | D19: 4428.976 | E19: 4416.655 | H19: ='Ex 7 Co. Owned Gas'!B19 -> 4686.044 | I19: ='Ex 7 Co. Owned Gas'!C19 -> 4794.916 | J19: 2524.662 | K19: 2364.462 | L19: 52812.022 | M19: 56074.449
G26: Total IRP Year | H26: 2021-06-30 | I26: =EOMONTH(H26,1) -> 2021-07-31 | J26: =EOMONTH(I26,1) -> 2021-08-31 | K26: 2021-09-30 | L26: 2021-10-31 | M26: 2021-11-30 | N26: 2021-12-31 | O26: 2022-01-31 | P26: 2022-02-28 | Q26: 2022-03-31 | R26: 2022-04-30 | S26: 2022-05-31
G27: 97642 | H27: 0 | I27: 0 | J27: 0 | K27: 0 | L27: 0 | M27: 0 | N27: 20405 | O27: 18838 | P27: 14931 | Q27: 14606 | R27: 14555 | S27: 14307
G28: 162969 | H28: 0 | I28: 0 | J28: 0 | K28: 0 | L28: 0 | M28: 0 | N28: 22400 | O28: 26427 | P28: 27218 | Q28: 27621 | R28: 28696 | S28: 30607
G29: 162787 | H29: 0 | I29: 0 | J29: 0 | K29: 0 | L29: 0 | M29: 0 | N29: 22956 | O29: 27899 | P29: 28423 | Q29: 28040 | R29: 26912 | S29: 28557
G30: 125934 | H30: 0 | I30: 0 | J30: 0 | K30: 0 | L30: 0 | M30: 0 | N30: 19152 | O30: 23102 | P30: 21786 | Q30: 21163 | R30: 20378 | S30: 20353
G31: 91296 | H31: 0 | I31: 0 | J31: 0 | K31: 0 | L31: 0 | M31: 0 | N31: 16742 | O31: 16821 | P31: 14761 | Q31: 14439 | R31: 14389 | S31: 14144
A32: 2021-11-01 | B32: 0 | G32: 154793 | H32: 0 | I32: 0 | J32: 0 | K32: 0 | L32: 0 | M32: 0 | N32: 18377 | O32: 23597 | P32: 26883 | Q32: 27308 | R32: 28370 | S32: 30258
A33: 2021-12-01 | B33: 404 | G33: 154371 | H33: 0 | I33: 0 | J33: 0 | K33: 0 | L33: 0 | M33: 0 | N33: 18833 | O33: 24910 | P33: 28099 | Q33: 27720 | R33: 26605 | S33: 28204
A34: 2022-01-01 | B34: 379 | G34: 119065 | H34: 0 | I34: 0 | J34: 0 | K34: 0 | L34: 0 | M34: 0 | N34: 15712 | O34: 20627 | P34: 21538 | Q34: 20923 | R34: 20145 | S34: 20120
A35: 2022-02-01 | B35: 345
N36: =SUM(N27:N34)/1000 -> 154.577 | O36: =SUM(O27:O34)/1000 -> 182.221 | P36: 183.639 | Q36: 181.82 | R36: 180.05 | S36: 186.55
V1489: Grand Total | W1489: 32838388 | X1489: 5005150 | Y1489: 4445609 | Z1489: 4812634 | AA1489: 4751061 | AB1489: 4687350

Sheet Exhibit 8.1
O31: ='Exhibit 1.1'!O31 -> DEU Variance Exhibit | P31: ='Exhibit 1.1'!P31 -> Docket No. 21-057-01 | Q31: ='Exhibit 1.1'!Q31 -> Dominion Energy Utah
O32: 8.1

Sheet Exhibit 8.2
O31: ='Exhibit 1.1'!O31 -> DEU Variance Exhibit | P31: ='Exhibit 1.1'!P31 -> Docket No. 21-057-01 | Q31: ='Exhibit 1.1'!Q31 -> Dominion Energy Utah
O32: 8.2

Sheet Exhibit 8.3
O31: ='Exhibit 1.1'!O31 -> DEU Variance Exhibit | P31: ='Exhibit 1.1'!P31 -> Docket No. 21-057-01 | Q31: ='Exhibit 1.1'!Q31 -> Dominion Energy Utah
O32: 8.3

Sheet Company Nom Groups (hidden)
A1: Company Nom Groups
A2: Withdrawn Gross Volume (MDths) | D2: 1106 | R2: June 2021 Cost-of-Service | V2: July 2021 Cost-of-Service | Z2: August 2021 Cost-of-Service | AD2: First Quarter Cost-of-Service | AL2: September 2021 Cost-of-Service | AP2: October 2021 Cost-of-Service | AT2: November 2021 Cost-of-Service | AX2: Second Quarter Cost-of-Service | BG2: December 2021 Cost-of-Service | BK2: January 2022 Cost-of-Service | BO2: February 2022 Cost-of-Service | BS2: Third Quarter Cost-of-Service | CD2: March 2022 Cost-of-Service | CH2: April 2022 Cost-of-Service | CL2: May 2022 Cost-of-Service | CP2: Fourth Quarter Cost-of-Service
A3: Source: IRP Base Case, Monthly Custom Report Writer | R3: Variance Mdth | V3: Variance Mdth | Z3: Variance Mdth | AD3: Variance Mdth | AL3: Variance Mdth | AP3: Variance Mdth | AT3: Variance Mdth | AX3: Variance Mdth | BG3: Variance Mdth | BK3: Variance Mdth | BO3: Variance Mdth | BS3: Variance Mdth | CD3: Variance Mdth | CH3: Variance Mdth | CL3: Variance Mdth | CP3: Variance Mdth
B4: 2 | C4: 3 | D4: 4 | E4: 5 | F4: 6 | G4: 7 | H4: 8 | I4: 9 | J4: 10 | K4: 11 | L4: 12 | M4: 13
A5: Nomination Group Production | B5: 2021-06-01 | C5: 2021-07-01 | D5: 2021-08-01 | E5: 2021-09-01 | F5: 2021-10-01 | G5: 2021-11-01 | H5: 2021-12-01 | I5: 2022-01-01 | J5: 2022-02-01 | K5: 2022-03-01 | L5: 2022-04-01 | M5: 2022-05-01 | N5: Total | R5: Nomination Group | S5: Actual | T5: Normal | V5: Nomination Group | W5: Actual | X5: Normal | Z5: Nomination Group | AA5: Actual | AB5: Normal | AD5: Nomination Group | AE5: Actual | AF5: Normal | AL5: Nomination Group | AM5: Actual | AN5: Normal | AP5: Nomination Group | AQ5: Actual | AR5: Normal | AT5: =AP5 -> Nomination Group | AU5: =AQ5 -> Actual | AV5: Normal | AX5: =AT5 -> Nomination Group | AY5: =AU5 -> Actual | AZ5: =AV5 -> Normal | BG5: =AX5 -> Nomination Group | BH5: =AY5 -> Actual | BI5: Normal | BK5: Nomination Group | BL5: Actual | BM5: Normal | BO5: Nomination Group | BP5: Actual | BQ5: Normal | BS5: =BO5 -> Nomination Group | BT5: =BP5 -> Actual | BU5: =BQ5 -> Normal | CD5: Nomination Group | CE5: Actual | CF5: Normal | CH5: Nomination Group | CI5: Actual | CJ5: Normal | CL5: Nomination Group | CM5: Actual | CN5: Normal | CP5: Nomination Group | CQ5: Actual | CR5: Normal
A6: BIRCH CREEK | B6: 117.702 | C6: 120.894 | D6: 120.168 | E6: 115.596 | F6: 118.739 | G6: 114.228 | H6: 117.338 | I6: 116.644 | J6: 104.737 | K6: 115.28 | L6: 110.91 | M6: 113.937 | N6: =SUM(B6:M6) -> 1386.173 | R6: =A6 -> BIRCH CREEK | S6: =IFERROR(VLOOKUP(R6,$R$119:$S$213,2,FALSE),0) -> 123.146 | T6: =IFERROR(VLOOKUP(R6,$A$6:$M$123,2,FALSE),"") -> 117.702 | V6: =R6 -> BIRCH CREEK | W6: =IFERROR(VLOOKUP(V6,$V$119:$W$213,2,FALSE),0) -> 127.016 | X6: =IFERROR(VLOOKUP(V6,$A$6:$M$123,3,FALSE),"") -> 120.894 | Z6: =R6 -> BIRCH CREEK | AA6: =IFERROR(VLOOKUP(A6,$Z$119:$AA$213,2,FALSE),0) -> 127.571 | AB6: =IFERROR(VLOOKUP(Z6,$A$6:$M$123,4,FALSE),"") -> 120.168 | AD6: =R6 -> BIRCH CREEK | AE6: =SUM(S6,W6,AA6) -> 377.733 | AF6: =SUM(T6,X6,AB6) -> 358.764 | AL6: =AD6 -> BIRCH CREEK | AM6: =IFERROR(VLOOKUP(AL6,$AL$119:$AM$209,2,FALSE),0) -> 122.727 | AN6: =IFERROR(VLOOKUP(AL6,$A$6:$M$123,5,FALSE),"") -> 115.596 | AP6: =AL6 -> BIRCH CREEK | AQ6: =IFERROR(VLOOKUP(AP6,$AP$119:$AQ$218,2,FALSE),0) -> 123.948 | AR6: =IFERROR(VLOOKUP($AP6,$A$6:$M$123,6,FALSE),"") -> 118.739 | AT6: =AP6 -> BIRCH CREEK | AU6: =IFERROR(VLOOKUP(AT6,$AT$119:$AU$211,2,FALSE),0) -> 116.887 | AV6: =IFERROR(VLOOKUP($AT6,$A$6:$M$123,7,FALSE),"") -> 114.228 | AX6: =AT6 -> BIRCH CREEK | AY6: =SUM(AM6,AQ6,AU6) -> 363.562 | AZ6: =SUM(AN6,AR6,AV6) -> 348.563 | BG6: =AX6 -> BIRCH CREEK | BH6: =IFERROR(VLOOKUP(BG6,$BG$119:$BH$211,2,FALSE),0) -> 120.915 | BI6: =IFERROR(VLOOKUP($BG6,$A$6:$M$123,8,FALSE),"") -> 117.338 | BK6: =BG6 -> BIRCH CREEK | BL6: =IFERROR(VLOOKUP(BK6,$BK$119:$BL$211,2,FALSE),0) -> 124.309 | BM6: =IFERROR(VLOOKUP($BG6,$A$6:$M$123,9,FALSE),"") -> 116.644 | BO6: =A6 -> BIRCH CREEK | BP6: =IFERROR(VLOOKUP($BO6,$BO$119:$BP$211,2,FALSE),0) -> 113.126 | BQ6: =IFERROR(VLOOKUP($BO6,$A$6:$M$123,10,FALSE),0) -> 104.737 | BS6: =A6 -> BIRCH CREEK | BT6: =SUM(BH6,BL6,BP6) -> 358.35 | BU6: =SUM(BI6,BM6,BQ6) -> 338.719 | CD6: =A6 -> BIRCH CREEK | CE6: =VLOOKUP(CD6,CD$119:CE$203,2,FALSE) -> 122.512 | CF6: =IFERROR(VLOOKUP($A6,$A$6:$M$123,11,FALSE),"") -> 115.28 | CH6: =A6 -> BIRCH CREEK | CI6: =VLOOKUP(CH6,CH$119:CI$203,2,FALSE) -> 113.696 | CJ6: =IFERROR(VLOOKUP($A6,$A$6:$M$123,12,FALSE),"") -> 110.91 | CL6: =A6 -> BIRCH CREEK | CM6: =VLOOKUP(CL6,CL$119:CM$203,2,FALSE) -> 134.923 | CN6: =IFERROR(VLOOKUP($A6,$A$6:$M$123,13,FALSE),"") -> 113.937 | CP6: =CL6 -> BIRCH CREEK | CQ6: =CE6+CI6+CM6 -> 371.131 | CR6: =CF6+CJ6+CN6 -> 340.127
A7: ACEJDMT D24 | B7: 8.613 | C7: 8.832 | D7: 8.764 | E7: 8.418 | F7: 8.634 | G7: 8.289 | H7: 8.5 | I7: 8.435 | J7: 7.563 | K7: 8.308 | L7: 7.98 | M7: 8.184 | N7: =SUM(B7:M7) -> 100.52 | R7: =A7 -> ACEJDMT D24 | S7: 9.628 | T7: 8.613 | V7: =R7 -> ACEJDMT D24 | W7: 9.788 | X7: 8.832 | Z7: =R7 -> ACEJDMT D24 | AA7: 7.358 | AB7: 8.764 | AD7: =R7 -> ACEJDMT D24 | AE7: =SUM(S7,W7,AA7) -> 26.774 | AF7: =SUM(T7,X7,AB7) -> 26.209 | AL7: =AD7 -> ACEJDMT D24 | AM7: =IFERROR(VLOOKUP(AL7,$AL$119:$AM$209,2,FALSE),0) -> 5.678 | AN7: 8.418 | AP7: =AL7 -> ACEJDMT D24 | AQ7: =IFERROR(VLOOKUP(AP7,$AP$119:$AQ$218,2,FALSE),0) -> 9.1 | AR7: 8.634 | AT7: =AP7 -> ACEJDMT D24 | AU7: =IFERROR(VLOOKUP(AT7,$AT$119:$AU$211,2,FALSE),0) -> 7.945 | AV7: 8.289 | AX7: =AT7 -> ACEJDMT D24 | AY7: =SUM(AM7,AQ7,AU7) -> 22.723 | AZ7: =SUM(AN7,AR7,AV7) -> 25.341 | BG7: ACEJDMT D24 | BH7: =IFERROR(VLOOKUP(BG7,$BG$119:$BH$211,2,FALSE),0) -> 10.644 | BI7: =IFERROR(VLOOKUP($BG7,$A$6:$M$123,8,FALSE),"") -> 8.5 | BK7: =BG7 -> ACEJDMT D24 | BL7: =IFERROR(VLOOKUP(BK7,$BK$119:$BL$211,2,FALSE),0) -> 10.187 | BM7: =IFERROR(VLOOKUP($BG7,$A$6:$M$123,9,FALSE),"") -> 8.435 | BO7: ACEJDMT D24 | BP7: =IFERROR(VLOOKUP($BO7,$BO$119:$BP$211,2,FALSE),0) -> 8.79 | BQ7: 7.563 | BS7: ACEJDMT D24 | BT7: =SUM(BH7,BL7,BP7) -> 29.621 | BU7: =SUM(BI7,BM7,BQ7) -> 24.498 | CD7: ACEJDMT D24 | CE7: =VLOOKUP(CD7,CD$119:CE$203,2,FALSE) -> 8.746 | CF7: =IFERROR(VLOOKUP($A7,$A$6:$M$123,11,FALSE),"") -> 8.308 | CH7: ACEJDMT D24 | CI7: 8.384 | CJ7: 7.98 | CL7: ACEJDMT D24 | CM7: =VLOOKUP(CL7,CL$119:CM$203,2,FALSE) -> 8.174 | CN7: 8.184 | CP7: =CL7 -> ACEJDMT D24 | CQ7: =CE7+CI7+CM7 -> 25.304 | CR7: =CF7+CJ7+CN7 -> 24.472
A8: BRFM D24 | B8: 2.106 | C8: 2.17 | D8: 2.161 | E8: 2.085 | F8: 2.145 | G8: 2.07 | H8: 2.133 | I8: 2.124 | J8: 1.912 | K8: 2.108 | L8: 2.034 | M8: 2.096 | N8: 25.144 | R8: BRFM D24 | S8: 1.52 | T8: 2.106 | V8: BRFM D24 | W8: 1.834 | X8: 2.17 | Z8: BRFM D24 | AA8: 1.828 | AB8: 2.161 | AD8: BRFM D24 | AE8: =SUM(S8,W8,AA8) -> 5.182 | AF8: =SUM(T8,X8,AB8) -> 6.437 | AL8: BRFM D24 | AM8: 1.358 | AN8: 2.085 | AP8: BRFM D24 | AQ8: 1.78 | AR8: 2.145 | AT8: BRFM D24 | AU8: 1.459 | AV8: 2.07 | AX8: BRFM D24 | AY8: =SUM(AM8,AQ8,AU8) -> 4.597 | AZ8: =SUM(AN8,AR8,AV8) -> 6.3 | BG8: BRFM D24 | BH8: 1.875 | BI8: 2.133 | BK8: BRFM D24 | BL8: 2.172 | BM8: 2.124 | BO8: BRFM D24 | BP8: 2.233 | BQ8: 1.912 | BS8: BRFM D24 | BT8: 6.28 | BU8: 6.169 | CD8: BRFM D24 | CE8: 2.178 | CF8: 2.108 | CH8: BRFM D24 | CI8: 2.077 | CJ8: 2.034 | CL8: BRFM D24 | CM8: =VLOOKUP(CL8,CL$119:CM$203,2,FALSE) -> 2.113 | CN8: 2.096 | CP8: =CL8 -> BRFM D24 | CQ8: =CE8+CI8+CM8 -> 6.368 | CR8: 6.238
A9: BRFQ D24 | B9: 140.922 | C9: 144.674 | D9: 143.744 | E9: 138.216 | F9: 141.918 | G9: 136.47 | H9: 140.135 | I9: 139.261 | J9: 125 | K9: 137.538 | L9: 132.282 | M9: 135.854 | N9: 1656.014 | R9: BRFQ D24 | S9: 139.841 | T9: 140.922 | V9: BRFQ D24 | W9: 141.413 | X9: 144.674 | Z9: BRFQ D24 | AA9: 140.148 | AB9: 143.744 | AD9: BRFQ D24 | AE9: 421.402 | AF9: 429.34 | AL9: BRFQ D24 | AM9: 136.891 | AN9: 138.216 | AP9: BRFQ D24 | AQ9: 143.671 | AR9: 141.918 | AT9: BRFQ D24 | AU9: 142.427 | AV9: 136.47 | AX9: BRFQ D24 | AY9: 422.989 | AZ9: 416.604 | BG9: BRFQ D24 | BH9: 141.819 | BI9: 140.135 | BK9: BRFQ D24 | BL9: 129.523 | BM9: 139.261 | BO9: BRFQ D24 | BP9: 124.05 | BQ9: 125 | BS9: BRFQ D24 | BT9: 395.392 | BU9: 404.396 | CD9: BRFQ D24 | CE9: 132.546 | CF9: 137.538 | CH9: BRFQ D24 | CI9: 149.46 | CJ9: 132.282 | CL9: BRFQ D24 | CM9: =VLOOKUP(CL9,CL$119:CM$203,2,FALSE) -> 157.825 | CN9: 135.854 | CP9: BRFQ D24 | CQ9: 439.831 | CR9: 405.674
A10: BRFQMT D24 | B10: 3.285 | C10: 3.376 | D10: 3.36 | E10: 3.234 | F10: 3.323 | G10: 3.201 | H10: 3.292 | I10: 3.274 | J10: 2.943 | K10: 3.239 | L10: 3.12 | M10: 3.209 | N10: 38.856 | R10: BRFQMT D24 | S10: 5.506 | T10: 3.285 | V10: BRFQMT D24 | W10: 0 | X10: 3.376 | Z10: BRFQMT D24 | AA10: 4.425 | AB10: 3.36 | AD10: BRFQMT D24 | AE10: 9.931 | AF10: 10.021 | AL10: BRFQMT D24 | AM10: 0 | AN10: 3.234 | AP10: BRFQMT D24 | AQ10: 6.036 | AR10: 3.323 | AT10: BRFQMT D24 | AU10: 0 | AV10: 3.201 | AX10: BRFQMT D24 | AY10: 6.036 | AZ10: 9.758 | BG10: BRFQMT D24 | BH10: 0 | BI10: 3.292 | BK10: BRFQMT D24 | BL10: 0 | BM10: 3.274 | BO10: BRFQMT D24 | BP10: 0 | BQ10: 2.943 | BS10: BRFQMT D24 | BT10: 0 | BU10: 9.509 | CD10: BRFQMT D24 | CE10: 0 | CF10: 3.239 | CH10: BRFQMT D24 | CI10: 7.372 | CJ10: 3.12 | CL10: BRFQMT D24 | CM10: 0 | CN10: 3.209 | CP10: BRFQMT D24 | CQ10: 7.372 | CR10: 9.568
A11: BRFW D24 | B11: 56.529 | C11: 58.054 | D11: 57.697 | E11: 55.494 | F11: 56.994 | G11: 54.822 | H11: 56.312 | I11: 55.977 | J11: 50.26 | K11: 55.316 | L11: 53.217 | M11: 54.669 | N11: 665.341 | R11: BRFW D24 | S11: 64.286 | T11: 56.529 | V11: BRFW D24 | W11: 64.664 | X11: 58.054 | Z11: BRFW D24 | AA11: 64.168 | AB11: 57.697 | AD11: BRFW D24 | AE11: 193.118 | AF11: 172.28 | AL11: BRFW D24 | AM11: 59.587 | AN11: 55.494 | AP11: BRFW D24 | AQ11: 63.579 | AR11: 56.994 | AT11: BRFW D24 | AU11: 58.128 | AV11: 54.822 | AX11: BRFW D24 | AY11: 181.294 | AZ11: 167.31 | BG11: BRFW D24 | BH11: 59.03 | BI11: 56.312 | BK11: BRFW D24 | BL11: 59.044 | BM11: 55.977 | BO11: BRFW D24 | BP11: 52.579 | BQ11: 50.26 | BS11: BRFW D24 | BT11: 170.653 | BU11: 162.549 | CD11: BRFW D24 | CE11: 55.97 | CF11: 55.316 | CH11: BRFW D24 | CI11: 59.087 | CJ11: 53.217 | CL11: BRFW D24 | CM11: =VLOOKUP(CL11,CL$119:CM$203,2,FALSE) -> 49.855 | CN11: 54.669 | CP11: BRFW D24 | CQ11: 164.912 | CR11: 163.202
A12: CBFR D24 | B12: 16.335 | C12: 16.79 | D12: 16.703 | E12: 16.083 | F12: 16.532 | G12: 15.915 | H12: 16.362 | I12: 16.278 | J12: 14.627 | K12: 16.111 | L12: 15.51 | M12: 15.943 | N12: 193.189 | R12: CBFR D24 | S12: 1.383 | T12: 16.335 | V12: CBFR D24 | W12: 0 | X12: 16.79 | Z12: CBFR D24 | AA12: 3.132 | AB12: 16.703 | AD12: CBFR D24 | AE12: 4.515 | AF12: 49.828 | AL12: CBFR D24 | AM12: 13.731 | AN12: 16.083 | AP12: CBFR D24 | AQ12: 18.358 | AR12: 16.532 | AT12: CBFR D24 | AU12: 22.116 | AV12: 15.915 | AX12: CBFR D24 | AY12: 54.205 | AZ12: 48.53 | BG12: CBFR D24 | BH12: 19.477 | BI12: 16.362 | BK12: CBFR D24 | BL12: 16.777 | BM12: 16.278 | BO12: CBFR D24 | BP12: 16.618 | BQ12: 14.627 | BS12: CBFR D24 | BT12: 52.872 | BU12: 47.267 | CD12: CBFR D24 | CE12: 13.481 | CF12: 16.111 | CH12: CBFR D24 | CI12: 19.603 | CJ12: 15.51 | CL12: CBFR D24 | CM12: 17.136 | CN12: 15.943 | CP12: CBFR D24 | CQ12: 50.22 | CR12: 47.564
A13: CCRUNIT D24 | B13: 462.612 | C13: 474.219 | D13: 433.219 | E13: 415.947 | F13: 426.464 | G13: 445.575 | H13: 456.918 | I13: 453.465 | J13: 406.507 | K13: 446.707 | L13: 429.099 | M13: 440.141 | N13: 5290.873 | R13: CCRUNIT D24 | S13: 446.313 | T13: 462.612 | V13: CCRUNIT D24 | W13: 454.24 | X13: 474.219 | Z13: CCRUNIT D24 | AA13: 423.459 | AB13: 433.219 | AD13: CCRUNIT D24 | AE13: 1324.012 | AF13: 1370.05 | AL13: CCRUNIT D24 | AM13: 406.11 | AN13: 415.947 | AP13: CCRUNIT D24 | AQ13: 414.149 | AR13: 426.464 | AT13: CCRUNIT D24 | AU13: 355.622 | AV13: 445.575 | AX13: CCRUNIT D24 | AY13: 1175.881 | AZ13: 1287.986 | BG13: CCRUNIT D24 | BH13: 376.351 | BI13: 456.918 | BK13: CCRUNIT D24 | BL13: 380.027 | BM13: 453.465 | BO13: CCRUNIT D24 | BP13: 332.3 | BQ13: 406.507 | BS13: CCRUNIT D24 | BT13: 1088.678 | BU13: 1316.89 | CD13: CCRUNIT D24 | CE13: 381.023 | CF13: 446.707 | CH13: CCRUNIT D24 | CI13: 377.003 | CJ13: 429.099 | CL13: CCRUNIT D24 | CM13: 385.997 | CN13: 440.141 | CP13: CCRUNIT D24 | CQ13: 1144.023 | CR13: 1315.947
A14: CCRUNITMTD24 | B14: 40.872 | C14: 41.974 | D14: 28.849 | E14: 27.747 | F14: 28.498 | G14: 39.87 | H14: 40.948 | I14: 40.7 | J14: 36.537 | K14: 40.204 | L14: 38.673 | M14: 39.717 | N14: 444.589 | R14: CCRUNITMTD24 | S14: 35.406 | T14: 40.872 | V14: CCRUNITMTD24 | W14: 35.586 | X14: 41.974 | Z14: CCRUNITMTD24 | AA14: 32.072 | AB14: 28.849 | AD14: CCRUNITMTD24 | AE14: 103.064 | AF14: 111.695 | AL14: CCRUNITMTD24 | AM14: 31.818 | AN14: 27.747 | AP14: CCRUNITMTD24 | AQ14: 29.745 | AR14: 28.498 | AT14: CCRUNITMTD24 | AU14: 27.489 | AV14: 39.87 | AX14: CCRUNITMTD24 | AY14: 89.052 | AZ14: 96.115 | BG14: CCRUNITMTD24 | BH14: 37.772 | BI14: 40.948 | BK14: CCRUNITMTD24 | BL14: 38.865 | BM14: 40.7 | BO14: CCRUNITMTD24 | BP14: 30.881 | BQ14: 36.537 | BS14: CCRUNITMTD24 | BT14: 107.518 | BU14: 118.185 | CD14: CCRUNITMTD24 | CE14: 33.769 | CF14: 40.204 | CH14: CCRUNITMTD24 | CI14: 33.465 | CJ14: 38.673 | CL14: CCRUNITMTD24 | CM14: 36.089 | CN14: 39.717 | CP14: CCRUNITMTD24 | CQ14: 103.323 | CR14: 118.594
A15: CHBT MT | B15: 15.408 | C15: 15.853 | D15: 15.785 | E15: 15.213 | F15: 15.652 | G15: 15.084 | H15: 15.519 | I15: 15.454 | J15: 13.899 | K15: 15.323 | L15: 14.766 | M15: 15.193 | N15: 183.149 | R15: CHBT MT | S15: 22.226 | T15: 15.408 | V15: CHBT MT | W15: 23.989 | X15: 15.853 | Z15: CHBT MT | AA15: 22.326 | AB15: 15.785 | AD15: CHBT MT | AE15: 68.541 | AF15: 47.046 | AL15: CHBT MT | AM15: 21.479 | AN15: 15.213 | AP15: CHBT MT | AQ15: 23.676 | AR15: 15.652 | AT15: CHBT MT | AU15: 20.894 | AV15: 15.084 | AX15: CHBT MT | AY15: 66.049 | AZ15: 45.949 | BG15: CHBT MT | BH15: 25.335 | BI15: 15.519 | BK15: CHBT MT | BL15: 24.692 | BM15: 15.454 | BO15: CHBT MT | BP15: 21.931 | BQ15: 13.899 | BS15: CHBT MT | BT15: 71.958 | BU15: 44.872 | CD15: CHBT MT | CE15: 26.761 | CF15: 15.323 | CH15: CHBT MT | CI15: 32.516 | CJ15: 14.766 | CL15: CHBT MT | CM15: 34.872 | CN15: 15.193 | CP15: CHBT MT | CQ15: 94.149 | CR15: 45.282
A16: CHBTBUFF D24 | B16: 0.867 | C16: 0.893 | D16: 0.887 | E16: 0.855 | F16: 0.877 | G16: 0.846 | H16: 0.871 | I16: 0.865 | J16: 0.778 | K16: 0.856 | L16: 0.825 | M16: 0.849 | N16: 10.269 | R16: CHBTBUFF D24 | S16: 0.89 | T16: 0.867 | V16: CHBTBUFF D24 | W16: 0.831 | X16: 0.893 | Z16: CHBTBUFF D24 | AA16: 0.918 | AB16: 0.887 | AD16: CHBTBUFF D24 | AE16: 2.639 | AF16: 2.647 | AL16: CHBTBUFF D24 | AM16: 0.821 | AN16: 0.855 | AP16: CHBTBUFF D24 | AQ16: 0.67 | AR16: 0.877 | AT16: CHBTBUFF D24 | AU16: 0.648 | AV16: 0.846 | AX16: CHBTBUFF D24 | AY16: 2.139 | AZ16: 2.578 | BG16: CHBTBUFF D24 | BH16: 0.655 | BI16: 0.871 | BK16: CHBTBUFF D24 | BL16: 0.712 | BM16: 0.865 | BO16: CHBTBUFF D24 | BP16: 0.638 | BQ16: 0.778 | BS16: CHBTBUFF D24 | BT16: 2.005 | BU16: 2.514 | CD16: CHBTBUFF D24 | CE16: 0.757 | CF16: 0.856 | CH16: CHBTBUFF D24 | CI16: 0.794 | CJ16: 0.825 | CL16: CHBTBUFF D24 | CM16: 0.808 | CN16: 0.849 | CP16: CHBTBUFF D24 | CQ16: 2.359 | CR16: 2.53
A17: CHBTCAT2 D24 | B17: 95.067 | C17: 97.641 | D17: 97.055 | E17: 93.363 | F17: 95.905 | G17: 92.265 | H17: 94.783 | I17: 93.543 | J17: 84 | K17: 92.464 | L17: 88.965 | M17: 91.404 | N17: 1116.455 | R17: CHBTCAT2 D24 | S17: 92.72 | T17: 95.067 | V17: CHBTCAT2 D24 | W17: 85.2 | X17: 97.641 | Z17: CHBTCAT2 D24 | AA17: 88.692 | AB17: 97.055 | AD17: CHBTCAT2 D24 | AE17: 266.612 | AF17: 289.763 | AL17: CHBTCAT2 D24 | AM17: 94.764 | AN17: 93.363 | AP17: CHBTCAT2 D24 | AQ17: 89.641 | AR17: 95.905 | AT17: CHBTCAT2 D24 | AU17: 85.995 | AV17: 92.265 | AX17: CHBTCAT2 D24 | AY17: 270.4 | AZ17: 281.533 | BG17: CHBTCAT2 D24 | BH17: 88.934 | BI17: 94.783 | BK17: CHBTCAT2 D24 | BL17: 87.425 | BM17: 93.543 | BO17: CHBTCAT2 D24 | BP17: 79.757 | BQ17: 84 | BS17: CHBTCAT2 D24 | BT17: 256.116 | BU17: 272.326 | CD17: CHBTCAT2 D24 | CE17: 99.002 | CF17: 92.464 | CH17: CHBTCAT2 D24 | CI17: 132.808 | CJ17: 88.965 | CL17: CHBTCAT2 D24 | CM17: 128.05 | CN17: 91.404 | CP17: CHBTCAT2 D24 | CQ17: 359.86 | CR17: 272.833
A18: CHBTCAT3 D24 | B18: 0 | C18: 0 | D18: 160.878 | E18: 72.276 | F18: 142.082 | G18: 153.273 | H18: 157.557 | I18: 156.739 | J18: 140.837 | K18: 155.118 | L18: 0 | M18: 0 | N18: 1138.76 | R18: CHBTCAT3 D24 | S18: 147.553 | T18: 0 | V18: CHBTCAT3 D24 | W18: 148.588 | X18: 0 | Z18: CHBTCAT3 D24 | AA18: 153.068 | AB18: 160.878 | AD18: CHBTCAT3 D24 | AE18: 449.209 | AF18: 160.878 | AL18: CHBTCAT3 D24 | AM18: 149.892 | AN18: 72.276 | AP18: CHBTCAT3 D24 | AQ18: 153.885 | AR18: 142.082 | AT18: CHBTCAT3 D24 | AU18: 144.857 | AV18: 153.273 | AX18: CHBTCAT3 D24 | AY18: 448.634 | AZ18: 367.631 | BG18: CHBTCAT3 D24 | BH18: 165.52 | BI18: 157.557 | BK18: CHBTCAT3 D24 | BL18: 162.04 | BM18: 156.739 | BO18: CHBTCAT3 D24 | BP18: 136.609 | BQ18: 140.837 | BS18: CHBTCAT3 D24 | BT18: 464.169 | BU18: 455.133 | CD18: CHBTCAT3 D24 | CE18: 178.325 | CF18: 155.118 | CH18: CHBTCAT3 D24 | CI18: 193.929 | CJ18: 0 | CL18: CHBTCAT3 D24 | CM18: 200.585 | CN18: 0 | CP18: CHBTCAT3 D24 | CQ18: 572.839 | CR18: 155.118
A19: DRY PINY MT | B19: 5.346 | C19: 5.484 | D19: 5.444 | E19: 5.226 | F19: 5.36 | G19: 5.151 | H19: 5.282 | I19: 5.242 | J19: 4.701 | K19: 5.165 | L19: 4.962 | M19: 5.09 | N19: 62.453 | R19: DRY PINY MT | S19: 4.069 | T19: 5.346 | V19: DRY PINY MT | W19: 4.428 | X19: 5.484 | Z19: DRY PINY MT | AA19: 3.493 | AB19: 5.444 | AD19: DRY PINY MT | AE19: 11.99 | AF19: 16.274 | AL19: DRY PINY MT | AM19: 3.186 | AN19: 5.226 | AP19: DRY PINY MT | AQ19: 3.534 | AR19: 5.36 | AT19: DRY PINY MT | AU19: 3.414 | AV19: 5.151 | AX19: DRY PINY MT | AY19: 10.134 | AZ19: 15.737 | BG19: DRY PINY MT | BH19: 3.679 | BI19: 5.282 | BK19: DRY PINY MT | BL19: 3.808 | BM19: 5.242 | BO19: DRY PINY MT | BP19: 3.215 | BQ19: 4.701 | BS19: DRY PINY MT | BT19: 10.702 | BU19: 15.225 | CD19: DRY PINY MT | CE19: 2.945 | CF19: 5.165 | CH19: DRY PINY MT | CI19: 3.447 | CJ19: 4.962 | CL19: DRY PINY MT | CM19: 2.398 | CN19: 5.09 | CP19: DRY PINY MT | CQ19: 8.79 | CR19: 15.217
A20: DRYPINY6 D24 | B20: 0.756 | C20: 0.775 | D20: 0.772 | E20: 0.741 | F20: 0.763 | G20: 0.513 | H20: 0.527 | I20: 0.524 | J20: 0.47 | K20: 0.518 | L20: 0.498 | M20: 0.512 | N20: 7.369 | R20: DRYPINY6 D24 | S20: 0.579 | T20: 0.756 | V20: DRYPINY6 D24 | W20: 1.299 | X20: 0.775 | Z20: DRYPINY6 D24 | AA20: 2.437 | AB20: 0.772 | AD20: DRYPINY6 D24 | AE20: 4.315 | AF20: 2.303 | AL20: DRYPINY6 D24 | AM20: 1.734 | AN20: 0.741 | AP20: DRYPINY6 D24 | AQ20: 1.602 | AR20: 0.763 | AT20: DRYPINY6 D24 | AU20: 1.334 | AV20: 0.513 | AX20: DRYPINY6 D24 | AY20: 4.67 | AZ20: 2.017 | BG20: DRYPINY6 D24 | BH20: 1.908 | BI20: 0.527 | BK20: DRYPINY6 D24 | BL20: 1.882 | BM20: 0.524 | BO20: DRYPINY6 D24 | BP20: 1.54 | BQ20: 0.47 | BS20: DRYPINY6 D24 | BT20: 5.33 | BU20: 1.521 | CD20: DRYPINY6 D24 | CE20: 1.244 | CF20: 0.518 | CH20: DRYPINY6 D24 | CI20: 1.251 | CJ20: 0.498 | CL20: DRYPINY6 D24 | CM20: 0.61 | CN20: 0.512 | CP20: DRYPINY6 D24 | CQ20: 3.105 | CR20: 1.528
A21: DRYPINYU D24 | B21: 1.776 | C21: 1.823 | D21: 1.814 | E21: 1.743 | F21: 1.792 | G21: 1.725 | H21: 1.77 | I21: 1.761 | J21: 1.582 | K21: 1.739 | L21: 1.674 | M21: 1.72 | N21: 20.919 | R21: DRYPINYU D24 | S21: 1.803 | T21: 1.776 | V21: DRYPINYU D24 | W21: 1.944 | X21: 1.823 | Z21: DRYPINYU D24 | AA21: 2.381 | AB21: 1.814 | AD21: DRYPINYU D24 | AE21: 6.128 | AF21: 5.413 | AL21: DRYPINYU D24 | AM21: 2.353 | AN21: 1.743 | AP21: DRYPINYU D24 | AQ21: 2.346 | AR21: 1.792 | AT21: DRYPINYU D24 | AU21: 2.235 | AV21: 1.725 | AX21: DRYPINYU D24 | AY21: 6.934 | AZ21: 5.26 | BG21: DRYPINYU D24 | BH21: 2.239 | BI21: 1.77 | BK21: DRYPINYU D24 | BL21: 0.14 | BM21: 1.761 | BO21: DRYPINYU D24 | BP21: 0 | BQ21: 1.582 | BS21: DRYPINYU D24 | BT21: 2.379 | BU21: 5.113 | CD21: DRYPINYU D24 | CE21: 0 | CF21: 1.739 | CH21: DRYPINYU D24 | CI21: 0.786 | CJ21: 1.674 | CL21: DRYPINYU D24 | CM21: 2.965 | CN21: 1.72 | CP21: DRYPINYU D24 | CQ21: 3.751 | CR21: 5.133
A22: HWA DEEP D24 | B22: 0.111 | C22: 0.112 | D22: 0.112 | E22: 0.108 | F22: 0.109 | G22: 0.105 | H22: 0.109 | I22: 0.109 | J22: 0.095 | K22: 0.105 | L22: 0.102 | M22: 0.105 | N22: 1.282 | R22: HWA DEEP D24 | S22: 0.214 | T22: 0.111 | V22: HWA DEEP D24 | W22: 0.416 | X22: 0.112 | Z22: HWA DEEP D24 | AA22: 0.302 | AB22: 0.112 | AD22: HWA DEEP D24 | AE22: 0.932 | AF22: 0.335 | AL22: HWA DEEP D24 | AM22: 0.294 | AN22: 0.108 | AP22: HWA DEEP D24 | AQ22: 0 | AR22: 0.109 | AT22: HWA DEEP D24 | AU22: 0.474 | AV22: 0.105 | AX22: HWA DEEP D24 | AY22: 0.768 | AZ22: 0.322 | BG22: HWA DEEP D24 | BH22: 0.252 | BI22: 0.109 | BK22: HWA DEEP D24 | BL22: 0.148 | BM22: 0.109 | BO22: HWA DEEP D24 | BP22: 0.212 | BQ22: 0.095 | BS22: HWA DEEP D24 | BT22: 0.612 | BU22: 0.313 | CD22: HWA DEEP D24 | CE22: 0.26 | CF22: 0.105 | CH22: HWA DEEP D24 | CI22: 0.064 | CJ22: 0.102 | CL22: HWA DEEP D24 | CM22: 0.436 | CN22: 0.105 | CP22: HWA DEEP D24 | CQ22: 0.76 | CR22: 0.312
A23: HWA MT | B23: 2.964 | C23: 3.047 | D23: 3.032 | E23: 2.919 | F23: 3.001 | G23: 2.889 | H23: 2.97 | I23: 2.954 | J23: 2.654 | K23: 2.923 | L23: 2.814 | M23: 2.892 | N23: 35.059 | R23: HWA MT | S23: 1.087 | T23: 2.964 | V23: HWA MT | W23: 1.514 | X23: 3.047 | Z23: HWA MT | AA23: 1.318 | AB23: 3.032 | AD23: HWA MT | AE23: 3.919 | AF23: 9.043 | AL23: HWA MT | AM23: 0.437 | AN23: 2.919 | AP23: HWA MT | AQ23: 1.802 | AR23: 3.001 | AT23: HWA MT | AU23: 0.934 | AV23: 2.889 | AX23: HWA MT | AY23: 3.173 | AZ23: 8.809 | BG23: HWA MT | BH23: 0.853 | BI23: 2.97 | BK23: HWA MT | BL23: 0.464 | BM23: 2.954 | BO23: HWA MT | BP23: 0.376 | BQ23: 2.654 | BS23: HWA MT | BT23: 1.693 | BU23: 8.578 | CD23: HWA MT | CE23: 0.797 | CF23: 2.923 | CH23: HWA MT | CI23: 0.582 | CJ23: 2.814 | CL23: HWA MT | CM23: 1.235 | CN23: 2.892 | CP23: HWA MT | CQ23: 2.614 | CR23: 8.629
A24: HWADEEPMTD24 | B24: 13.116 | C24: 13.482 | D24: 13.414 | E24: 12.912 | F24: 13.274 | G24: 12.78 | H24: 13.138 | I24: 13.07 | J24: 11.743 | K24: 12.933 | L24: 12.453 | M24: 12.8 | N24: 155.115 | R24: HWADEEPMTD24 | S24: 12.411 | T24: 13.116 | V24: HWADEEPMTD24 | W24: 10.357 | X24: 13.482 | Z24: HWADEEPMTD24 | AA24: 16.704 | AB24: 13.414 | AD24: HWADEEPMTD24 | AE24: 39.472 | AF24: 40.012 | AL24: HWADEEPMTD24 | AM24: 14.619 | AN24: 12.912 | AP24: HWADEEPMTD24 | AQ24: 0 | AR24: 13.274 | AT24: HWADEEPMTD24 | AU24: 11.976 | AV24: 12.78 | AX24: HWADEEPMTD24 | AY24: 26.595 | AZ24: 38.966 | BG24: HWADEEPMTD24 | BH24: 15.094 | BI24: 13.138 | BK24: HWADEEPMTD24 | BL24: 16.74 | BM24: 13.07 | BO24: HWADEEPMTD24 | BP24: 13.638 | BQ24: 11.743 | BS24: HWADEEPMTD24 | BT24: 45.472 | BU24: 37.951 | CD24: HWADEEPMTD24 | CE24: 15.208 | CF24: 12.933 | CH24: HWADEEPMTD24 | CI24: 9.333 | CJ24: 12.453 | CL24: HWADEEPMTD24 | CM24: 13.785 | CN24: 12.8 | CP24: HWADEEPMTD24 | CQ24: 38.326 | CR24: 38.186
A25: HWPL1&3MTD24 | B25: 7.581 | C25: 7.796 | D25: 7.759 | E25: 7.473 | F25: 7.685 | G25: 7.401 | H25: 7.61 | I25: 7.573 | J25: 6.81 | K25: 7.502 | L25: 7.224 | M25: 7.431 | N25: 89.845 | R25: HWPL1&3MTD24 | S25: 7.899 | T25: 7.581 | V25: HWPL1&3MTD24 | W25: 4.56 | X25: 7.796 | Z25: HWPL1&3MTD24 | AA25: 8.103 | AB25: 7.759 | AD25: HWPL1&3MTD24 | AE25: 20.562 | AF25: 23.136 | AL25: HWPL1&3MTD24 | AM25: 5.058 | AN25: 7.473 | AP25: HWPL1&3MTD24 | AQ25: 6.293 | AR25: 7.685 | AT25: HWPL1&3MTD24 | AU25: 7.683 | AV25: 7.401 | AX25: HWPL1&3MTD24 | AY25: 19.034 | AZ25: 22.559 | BG25: HWPL1&3MTD24 | BH25: 7.672 | BI25: 7.61 | BK25: HWPL1&3MTD24 | BL25: 7.076 | BM25: 7.573 | BO25: HWPL1&3MTD24 | BP25: 7.283 | BQ25: 6.81 | BS25: HWPL1&3MTD24 | BT25: 22.031 | BU25: 21.993 | CD25: HWPL1&3MTD24 | CE25: 7.559 | CF25: 7.502 | CH25: HWPL1&3MTD24 | CI25: 7.238 | CJ25: 7.224 | CL25: HWPL1&3MTD24 | CM25: 7.528 | CN25: 7.431 | CP25: HWPL1&3MTD24 | CQ25: 22.325 | CR25: 22.157
A26: HWPLT1&3 D24 | B26: 76.323 | C26: 78.281 | D26: 77.698 | E26: 74.634 | F26: 76.548 | G26: 73.53 | H26: 75.42 | I26: 74.862 | J26: 67.119 | K26: 73.761 | L26: 70.854 | M26: 72.676 | N26: 891.706 | R26: HWPLT1&3 D24 | S26: 60.701 | T26: 76.323 | V26: HWPLT1&3 D24 | W26: 47.184 | X26: 78.281 | Z26: HWPLT1&3 D24 | AA26: 74.793 | AB26: 77.698 | AD26: HWPLT1&3 D24 | AE26: 182.678 | AF26: 232.302 | AL26: HWPLT1&3 D24 | AM26: 60.013 | AN26: 74.634 | AP26: HWPLT1&3 D24 | AQ26: 57.464 | AR26: 76.548 | AT26: HWPLT1&3 D24 | AU26: 71.155 | AV26: 73.53 | AX26: HWPLT1&3 D24 | AY26: 188.632 | AZ26: 224.712 | BG26: HWPLT1&3 D24 | BH26: 73.554 | BI26: 75.42 | BK26: HWPLT1&3 D24 | BL26: 77.715 | BM26: 74.862 | BO26: HWPLT1&3 D24 | BP26: 74.822 | BQ26: 67.119 | BS26: HWPLT1&3 D24 | BT26: 226.091 | BU26: 217.401 | CD26: HWPLT1&3 D24 | CE26: 79.464 | CF26: 73.761 | CH26: HWPLT1&3 D24 | CI26: 78.571 | CJ26: 70.854 | CL26: HWPLT1&3 D24 | CM26: 72.361 | CN26: 72.676 | CP26: HWPLT1&3 D24 | CQ26: 230.396 | CR26: 217.291
A27: HWPLT2 D24 | B27: 5.682 | C27: 5.791 | D27: 5.716 | E27: 5.46 | F27: 5.571 | G27: 5.325 | H27: 5.434 | I27: 5.372 | J27: 4.796 | K27: 5.248 | L27: 5.022 | M27: 5.134 | N27: 64.551 | R27: HWPLT2 D24 | S27: 8.941 | T27: 5.682 | V27: HWPLT2 D24 | W27: 5.632 | X27: 5.791 | Z27: HWPLT2 D24 | AA27: 10.005 | AB27: 5.716 | AD27: HWPLT2 D24 | AE27: 24.578 | AF27: 17.189 | AL27: HWPLT2 D24 | AM27: 6.116 | AN27: 5.46 | AP27: HWPLT2 D24 | AQ27: 4.146 | AR27: 5.571 | AT27: HWPLT2 D24 | AU27: 5.171 | AV27: 5.325 | AX27: HWPLT2 D24 | AY27: 15.433 | AZ27: 16.356 | BG27: HWPLT2 D24 | BH27: 8.62 | BI27: 5.434 | BK27: HWPLT2 D24 | BL27: 7.02 | BM27: 5.372 | BO27: HWPLT2 D24 | BP27: 4.694 | BQ27: 4.796 | BS27: HWPLT2 D24 | BT27: 20.334 | BU27: 15.602 | CD27: HWPLT2 D24 | CE27: 6.216 | CF27: 5.248 | CH27: HWPLT2 D24 | CI27: 1.918 | CJ27: 5.022 | CL27: HWPLT2 D24 | CM27: 3.588 | CN27: 5.134 | CP27: HWPLT2 D24 | CQ27: 11.722 | CR27: 15.404
A28: HWPLT2MT D24 | B28: 3.057 | C28: 3.137 | D28: 3.116 | E28: 2.994 | F28: 3.072 | G28: 2.952 | H28: 3.029 | I28: 3.007 | J28: 2.699 | K28: 2.967 | L28: 2.85 | M28: 2.926 | N28: 35.806 | R28: HWPLT2MT D24 | S28: 1.256 | T28: 3.057 | V28: HWPLT2MT D24 | W28: 1.073 | X28: 3.137 | Z28: HWPLT2MT D24 | AA28: 1.696 | AB28: 3.116 | AD28: HWPLT2MT D24 | AE28: 4.025 | AF28: 9.31 | AL28: HWPLT2MT D24 | AM28: 1.34 | AN28: 2.994 | AP28: HWPLT2MT D24 | AQ28: 1.08 | AR28: 3.072 | AT28: HWPLT2MT D24 | AU28: 1.283 | AV28: 2.952 | AX28: HWPLT2MT D24 | AY28: 3.703 | AZ28: 9.018 | BG28: HWPLT2MT D24 | BH28: 1.231 | BI28: 3.029 | BK28: HWPLT2MT D24 | BL28: 1.343 | BM28: 3.007 | BO28: HWPLT2MT D24 | BP28: 1.059 | BQ28: 2.699 | BS28: HWPLT2MT D24 | BT28: 3.633 | BU28: 8.735 | CD28: HWPLT2MT D24 | CE28: 0.731 | CF28: 2.967 | CH28: HWPLT2MT D24 | CI28: 1.296 | CJ28: 2.85 | CL28: HWPLT2MT D24 | CM28: 1.298 | CN28: 2.926 | CP28: HWPLT2MT D24 | CQ28: 3.325 | CR28: 8.743
A29: ISLAND D24 | B29: 0 | C29: 0 | D29: 0 | E29: 0 | F29: 0 | G29: 51.108 | H29: 52.48 | I29: 52.148 | J29: 46.802 | K29: 51.491 | L29: 0 | M29: 0 | N29: 254.029 | R29: ISLAND D24 | S29: 49.443 | T29: 0 | V29: ISLAND D24 | W29: 43.097 | X29: 0 | Z29: ISLAND D24 | AA29: 28.861 | AB29: 0 | AD29: ISLAND D24 | AE29: 121.401 | AF29: 0 | AL29: ISLAND D24 | AM29: 42.639 | AN29: 0 | AP29: ISLAND D24 | AQ29: 60.119 | AR29: 0 | AT29: ISLAND D24 | AU29: 53.586 | AV29: 51.108 | AX29: ISLAND D24 | AY29: 156.344 | AZ29: 51.108 | BG29: ISLAND D24 | BH29: 64.45 | BI29: 52.48 | BK29: ISLAND D24 | BL29: 58.871 | BM29: 52.148 | BO29: ISLAND D24 | BP29: 50.635 | BQ29: 46.802 | BS29: ISLAND D24 | BT29: 173.956 | BU29: 151.43 | CD29: ISLAND D24 | CE29: 52.23 | CF29: 51.491 | CH29: ISLAND D24 | CI29: 59.959 | CJ29: 0 | CL29: ISLAND D24 | CM29: 60.652 | CN29: 0 | CP29: ISLAND D24 | CQ29: 172.841 | CR29: 51.491
A30: JNSNRDG D24 | B30: 1.854 | C30: 1.906 | D30: 1.897 | E30: 1.827 | F30: 1.882 | G30: 1.812 | H30: 1.863 | I30: 1.857 | J30: 1.669 | K30: 1.841 | L30: 1.773 | M30: 1.823 | N30: 22.004 | R30: JNSNRDG D24 | S30: 5.636 | T30: 1.854 | V30: JNSNRDG D24 | W30: 3.181 | X30: 1.906 | Z30: JNSNRDG D24 | AA30: 2.771 | AB30: 1.897 | AD30: JNSNRDG D24 | AE30: 11.588 | AF30: 5.657 | AL30: JNSNRDG D24 | AM30: 2.579 | AN30: 1.827 | AP30: JNSNRDG D24 | AQ30: 2.983 | AR30: 1.882 | AT30: JNSNRDG D24 | AU30: 2.233 | AV30: 1.812 | AX30: JNSNRDG D24 | AY30: 7.795 | AZ30: 5.521 | BG30: JNSNRDG D24 | BH30: 0.414 | BI30: 1.863 | BK30: JNSNRDG D24 | BL30: 0 | BM30: 1.857 | BO30: JNSNRDG D24 | BP30: 0 | BQ30: 1.669 | BS30: JNSNRDG D24 | BT30: 0.414 | BU30: 5.389 | CD30: JNSNRDG D24 | CE30: 0 | CF30: 1.841 | CH30: JNSNRDG D24 | CI30: 0 | CJ30: 1.773 | CL30: JNSNRDG D24 | CM30: 0 | CN30: 1.823 | CP30: JNSNRDG D24 | CQ30: 0 | CR30: 5.437
A31: JRDG WFS D24 | B31: 2.529 | C31: 2.598 | D31: 2.582 | E31: 2.481 | F31: 2.548 | G31: 2.451 | H31: 2.517 | I31: 2.502 | J31: 2.246 | K31: 2.474 | L31: 2.379 | M31: 2.443 | N31: 29.75 | R31: JRDG WFS D24 | S31: 6.355 | T31: 2.529 | V31: JRDG WFS D24 | W31: 4.266 | X31: 2.598 | Z31: JRDG WFS D24 | AA31: 3.334 | AB31: 2.582 | AD31: JRDG WFS D24 | AE31: 13.955 | AF31: 7.709 | AL31: JRDG WFS D24 | AM31: 3.646 | AN31: 2.481 | AP31: JRDG WFS D24 | AQ31: 3.262 | AR31: 2.548 | AT31: JRDG WFS D24 | AU31: 2.555 | AV31: 2.451 | AX31: JRDG WFS D24 | AY31: 9.463 | AZ31: 7.48 | BG31: JRDG WFS D24 | BH31: 0.382 | BI31: 2.517 | BK31: JRDG WFS D24 | BL31: 0 | BM31: 2.502 | BO31: JRDG WFS D24 | BP31: 0 | BQ31: 2.246 | BS31: JRDG WFS D24 | BT31: 0.382 | BU31: 7.265 | CD31: JRDG WFS D24 | CE31: 0 | CF31: 2.474 | CH31: JRDG WFS D24 | CI31: =VLOOKUP(CH31,CH$119:CI$203,2,FALSE) -> 0 | CJ31: 2.379 | CL31: JRDG WFS D24 | CM31: =VLOOKUP(CL31,CL$119:CM$203,2,FALSE) -> 0.029 | CN31: 2.443 | CP31: JRDG WFS D24 | CQ31: 0.029 | CR31: 7.296
A32: KNY FLD D24 | B32: 11.796 | C32: 12.084 | D32: 11.985 | E32: 11.502 | F32: 11.786 | G32: 11.313 | H32: 11.597 | I32: 11.504 | J32: 10.31 | K32: 11.324 | L32: 10.875 | M32: 11.151 | N32: 137.227 | R32: KNY FLD D24 | S32: 4.105 | T32: 11.796 | V32: KNY FLD D24 | W32: 10.306 | X32: 12.084 | Z32: KNY FLD D24 | AA32: 17.816 | AB32: 11.985 | AD32: KNY FLD D24 | AE32: =SUM(S32,W32,AA32) -> 32.227 | AF32: =SUM(T32,X32,AB32) -> 35.865 | AL32: KNY FLD D24 | AM32: 13.937 | AN32: 11.502 | AP32: KNY FLD D24 | AQ32: 13.447 | AR32: 11.786 | AT32: KNY FLD D24 | AU32: 4.33 | AV32: 11.313 | AX32: KNY FLD D24 | AY32: 31.714 | AZ32: 34.601 | BG32: =AX32 -> KNY FLD D24 | BH32: 4.643 | BI32: 11.597 | BK32: KNY FLD D24 | BL32: 3.723 | BM32: 11.504 | BO32: KNY FLD D24 | BP32: 3.847 | BQ32: 10.31 | BS32: KNY FLD D24 | BT32: 12.213 | BU32: 33.411 | CD32: KNY FLD D24 | CE32: 3.457 | CF32: 11.324 | CH32: KNY FLD D24 | CI32: 5.233 | CJ32: 10.875 | CL32: KNY FLD D24 | CM32: 8.121 | CN32: 11.151 | CP32: KNY FLD D24 | CQ32: 16.811 | CR32: 33.35
A33: MESA D24 | B33: 622.455 | C33: 635.956 | D33: 628.835 | E33: 601.773 | F33: 614.95 | G33: 588.564 | H33: 601.524 | I33: 594.974 | J33: 531.572 | K33: 582.18 | L33: 557.355 | M33: 569.78 | N33: 7129.918 | R33: MESA D24 | S33: 602.341 | T33: 622.455 | V33: MESA D24 | W33: 617.211 | X33: 635.956 | Z33: MESA D24 | AA33: 602.447 | AB33: 628.835 | AD33: MESA D24 | AE33: 1821.999 | AF33: 1887.246 | AL33: MESA D24 | AM33: 570.718 | AN33: 601.773 | AP33: MESA D24 | AQ33: 578.083 | AR33: 614.95 | AT33: MESA D24 | AU33: 542.855 | AV33: 588.564 | AX33: MESA D24 | AY33: 1691.656 | AZ33: 1805.287 | BG33: =AX33 -> MESA D24 | BH33: 545.579 | BI33: 601.524 | BK33: MESA D24 | BL33: 500.289 | BM33: 594.974 | BO33: MESA D24 | BP33: 480.122 | BQ33: 531.572 | BS33: MESA D24 | BT33: 1525.99 | BU33: 1728.07 | CD33: MESA D24 | CE33: 505.754 | CF33: 582.18 | CH33: MESA D24 | CI33: 481.131 | CJ33: 557.355 | CL33: MESA D24 | CM33: 496.33 | CN33: 569.78 | CP33: MESA D24 | CQ33: 1483.215 | CR33: 1709.315
A34: MOSUMT D24 | B34: 1.062 | C34: 1.091 | D34: 1.085 | E34: 1.044 | F34: 1.073 | G34: 1.032 | H34: 1.057 | I34: 1.051 | J34: 0.944 | K34: 1.038 | L34: 0.999 | M34: 1.026 | N34: 12.502 | R34: MOSUMT D24 | S34: 0.69 | T34: 1.062 | V34: MOSUMT D24 | W34: 0.988 | X34: 1.091 | Z34: MOSUMT D24 | AA34: 1.258 | AB34: 1.085 | AD34: MOSUMT D24 | AE34: 2.936 | AF34: 3.238 | AL34: MOSUMT D24 | AM34: 1.046 | AN34: 1.044 | AP34: MOSUMT D24 | AQ34: 1.932 | AR34: 1.073 | AT34: MOSUMT D24 | AU34: 1.739 | AV34: 1.032 | AX34: MOSUMT D24 | AY34: 4.717 | AZ34: 3.149 | BG34: MOSUMT D24 | BH34: 3.182 | BI34: 1.057 | BK34: MOSUMT D24 | BL34: 1.174 | BM34: 1.051 | BO34: MOSUMT D24 | BP34: 0.866 | BQ34: 0.944 | BS34: MOSUMT D24 | BT34: 5.222 | BU34: 3.052 | CD34: MOSUMT D24 | CE34: 0.937 | CF34: 1.038 | CH34: MOSUMT D24 | CI34: 0.92 | CJ34: 0.999 | CL34: MOSUMT D24 | CM34: 1.001 | CN34: 1.026 | CP34: MOSUMT D24 | CQ34: 2.858 | CR34: 3.063
A35: PDW MT | B35: 172.995 | C35: 177.37 | D35: 175.996 | E35: 208.389 | F35: 207.356 | G35: 195.168 | H35: 197.234 | I35: 193.561 | J35: 171.973 | K35: 187.596 | L35: 179.094 | M35: 182.736 | N35: 2249.468 | R35: PDW MT | S35: 189.286 | T35: 172.995 | V35: PDW MT | W35: 169.673 | X35: 177.37 | Z35: PDW MT | AA35: 142.2 | AB35: 175.996 | AD35: PDW MT | AE35: 501.159 | AF35: 526.361 | AL35: PDW MT | AM35: 110.934 | AN35: 208.389 | AP35: PDW MT | AQ35: 153.379 | AR35: 207.356 | AT35: PDW MT | AU35: 172.992 | AV35: 195.168 | AX35: PDW MT | AY35: =SUM(AM35,AQ35,AU35) -> 437.305 | AZ35: =SUM(AN35,AR35,AV35) -> 610.913 | BG35: PDW MT | BH35: 174.595 | BI35: 197.234 | BK35: PDW MT | BL35: 180.475 | BM35: 193.561 | BO35: PDW MT | BP35: 157.391 | BQ35: 171.973 | BS35: PDW MT | BT35: 512.461 | BU35: 562.768 | CD35: PDW MT | CE35: 167.771 | CF35: 187.596 | CH35: PDW MT | CI35: 150.672 | CJ35: 179.094 | CL35: PDW MT | CM35: 149.644 | CN35: 182.736 | CP35: PDW MT | CQ35: 468.087 | CR35: 549.426
A36: PDW1A1B D24 | B36: 0.315 | C36: 0.326 | D36: 0.322 | E36: 0.309 | F36: 0.316 | G36: 0.306 | H36: 0.313 | I36: 0.31 | J36: 0.28 | K36: 0.307 | L36: 0.294 | M36: 0.301 | N36: 3.699 | R36: PDW1A1B D24 | S36: 0.05 | T36: 0.315 | V36: PDW1A1B D24 | W36: 0 | X36: 0.326 | Z36: PDW1A1B D24 | AA36: 0.942 | AB36: 0.322 | AD36: PDW1A1B D24 | AE36: 0.992 | AF36: 0.963 | AL36: PDW1A1B D24 | AM36: 0.762 | AN36: 0.309 | AP36: PDW1A1B D24 | AQ36: 0.769 | AR36: 0.316 | AT36: PDW1A1B D24 | AU36: 0.694 | AV36: 0.306 | AX36: PDW1A1B D24 | AY36: 2.225 | AZ36: 0.931 | BG36: PDW1A1B D24 | BH36: 0.605 | BI36: 0.313 | BK36: PDW1A1B D24 | BL36: 0.564 | BM36: 0.31 | BO36: PDW1A1B D24 | BP36: 0.433 | BQ36: 0.28 | BS36: PDW1A1B D24 | BT36: 1.602 | BU36: 0.903 | CD36: PDW1A1B D24 | CE36: 0.438 | CF36: 0.307 | CH36: PDW1A1B D24 | CI36: 0.542 | CJ36: 0.294 | CL36: PDW1A1B D24 | CM36: 0.581 | CN36: 0.301 | CP36: PDW1A1B D24 | CQ36: 1.561 | CR36: 0.902
A37: PDWCUT D24 | B37: 1.245 | C37: 1.28 | D37: 1.274 | E37: 1.227 | F37: 1.262 | G37: 1.215 | H37: 1.249 | I37: 1.243 | J37: 1.117 | K37: 1.234 | L37: 1.188 | M37: 1.221 | N37: 14.755 | R37: PDWCUT D24 | S37: 0.099 | T37: 1.245 | V37: PDWCUT D24 | W37: 0 | X37: 1.28 | Z37: PDWCUT D24 | AA37: 0 | AB37: 1.274 | AD37: PDWCUT D24 | AE37: 0.099 | AF37: 3.799 | AL37: PDWCUT D24 | AM37: 0 | AN37: 1.227 | AP37: PDWCUT D24 | AQ37: 0 | AR37: 1.262 | AT37: PDWCUT D24 | AU37: 2.37 | AV37: 1.215 | AX37: PDWCUT D24 | AY37: 2.37 | AZ37: 3.704 | BG37: PDWCUT D24 | BH37: 1.852 | BI37: 1.249 | BK37: PDWCUT D24 | BL37: 1.728 | BM37: 1.243 | BO37: PDWCUT D24 | BP37: 1.38 | BQ37: 1.117 | BS37: PDWCUT D24 | BT37: 4.96 | BU37: 3.609 | CD37: PDWCUT D24 | CE37: 1.181 | CF37: 1.234 | CH37: PDWCUT D24 | CI37: 0.065 | CJ37: 1.188 | CL37: PDWCUT D24 | CM37: 0.131 | CN37: 1.221 | CP37: PDWCUT D24 | CQ37: 1.377 | CR37: 3.643
A38: PDWMT D24 | B38: 22.326 | C38: 22.903 | D38: 22.735 | E38: 21.84 | F38: 22.404 | G38: 21.525 | H38: 22.078 | I38: 21.917 | J38: 19.653 | K38: 21.601 | L38: 20.751 | M38: 21.288 | N38: 261.021 | R38: PDWMT D24 | S38: =IFERROR(VLOOKUP(R38,$R$119:$S$213,2,FALSE),0) -> 21.538 | T38: =IFERROR(VLOOKUP(R38,$A$6:$M$123,2,FALSE),"") -> 22.326 | V38: PDWMT D24 | W38: =IFERROR(VLOOKUP(V38,$V$119:$W$213,2,FALSE),0) -> 19.707 | X38: =IFERROR(VLOOKUP(V38,$A$6:$M$123,3,FALSE),"") -> 22.903 | Z38: PDWMT D24 | AA38: =IFERROR(VLOOKUP(A38,$Z$119:$AA$213,2,FALSE),0) -> 13.53 | AB38: =IFERROR(VLOOKUP(Z38,$A$6:$M$123,4,FALSE),"") -> 22.735 | AD38: PDWMT D24 | AE38: 54.775 | AF38: 67.964 | AL38: PDWMT D24 | AM38: 15.73 | AN38: 21.84 | AP38: PDWMT D24 | AQ38: 16.5 | AR38: 22.404 | AT38: PDWMT D24 | AU38: 18.519 | AV38: 21.525 | AX38: PDWMT D24 | AY38: 50.749 | AZ38: 65.769 | BG38: PDWMT D24 | BH38: 19.298 | BI38: 22.078 | BK38: PDWMT D24 | BL38: 22.412 | BM38: 21.917 | BO38: =A38 -> PDWMT D24 | BP38: 19.864 | BQ38: =IFERROR(VLOOKUP($BO38,$A$6:$M$123,10,FALSE),0) -> 19.653 | BS38: =A38 -> PDWMT D24 | BT38: 61.574 | BU38: 63.648 | CD38: PDWMT D24 | CE38: 23.368 | CF38: 21.601 | CH38: PDWMT D24 | CI38: 22.505 | CJ38: 20.751 | CL38: PDWMT D24 | CM38: 20.456 | CN38: 21.288 | CP38: PDWMT D24 | CQ38: 66.329 | CR38: 63.64
A39: PDWPLT2 D24 | B39: 0 | C39: 0 | D39: 0 | E39: 0 | F39: 0 | G39: 0 | H39: 0 | I39: 0 | J39: 0 | K39: 0 | L39: 0 | M39: 0 | N39: 0 | R39: PDWPLT2 D24 | S39: 4.936 | T39: 0 | V39: PDWPLT2 D24 | W39: 3.877 | X39: 0 | Z39: PDWPLT2 D24 | AA39: 3.717 | AB39: 0 | AD39: PDWPLT2 D24 | AE39: 12.53 | AF39: 0 | AL39: PDWPLT2 D24 | AM39: 2.397 | AN39: 0 | AP39: PDWPLT2 D24 | AQ39: 3.308 | AR39: 0 | AT39: PDWPLT2 D24 | AU39: 3.383 | AV39: 0 | AX39: PDWPLT2 D24 | AY39: 9.088 | AZ39: 0 | BG39: PDWPLT2 D24 | BH39: 4.134 | BI39: 0 | BK39: PDWPLT2 D24 | BL39: 4.135 | BM39: 0 | BO39: PDWPLT2 D24 | BP39: 4.881 | BQ39: 0 | BS39: PDWPLT2 D24 | BT39: 13.15 | BU39: 0 | CD39: PDWPLT2 D24 | CE39: 4.333 | CF39: 0 | CH39: PDWPLT2 D24 | CI39: 4.058 | CJ39: 0 | CL39: PDWPLT2 D24 | CM39: 4.176 | CN39: 0 | CP39: PDWPLT2 D24 | CQ39: 12.567 | CR39: 0
A40: SGRLF D24 | B40: 1.428 | C40: 1.466 | D40: 1.454 | E40: 1.398 | F40: 1.435 | G40: 1.38 | H40: 1.414 | I40: 1.404 | J40: 1.26 | K40: 1.386 | L40: 1.332 | M40: 1.367 | N40: 16.724 | R40: SGRLF D24 | S40: 0.162 | T40: 1.428 | V40: SGRLF D24 | W40: 0 | X40: 1.466 | Z40: SGRLF D24 | AA40: 1.901 | AB40: 1.454 | AD40: SGRLF D24 | AE40: 2.063 | AF40: 4.348 | AL40: SGRLF D24 | AM40: 1.775 | AN40: 1.398 | AP40: SGRLF D24 | AQ40: 1.657 | AR40: 1.435 | AT40: SGRLF D24 | AU40: 1.234 | AV40: 1.38 | AX40: SGRLF D24 | AY40: 4.666 | AZ40: 4.213 | BG40: SGRLF D24 | BH40: 1.89 | BI40: 1.414 | BK40: SGRLF D24 | BL40: 1.795 | BM40: 1.404 | BO40: SGRLF D24 | BP40: 1.083 | BQ40: 1.26 | BS40: SGRLF D24 | BT40: 4.768 | BU40: 4.078 | CD40: SGRLF D24 | CE40: 1.019 | CF40: 1.386 | CH40: SGRLF D24 | CI40: 1.572 | CJ40: 1.332 | CL40: SGRLF D24 | CM40: 2.159 | CN40: 1.367 | CP40: SGRLF D24 | CQ40: 4.75 | CR40: 4.085
A41: SGRLFMT D24 | B41: 12.576 | C41: 12.905 | D41: 12.815 | E41: 12.315 | F41: 12.639 | G41: 12.147 | H41: 12.465 | I41: 12.378 | J41: 11.102 | K41: 12.208 | L41: 11.73 | M41: 12.037 | N41: 147.317 | R41: SGRLFMT D24 | S41: 1.329 | T41: 12.576 | V41: SGRLFMT D24 | W41: 0 | X41: 12.905 | Z41: SGRLFMT D24 | AA41: 9.052 | AB41: 12.815 | AD41: SGRLFMT D24 | AE41: 10.381 | AF41: 38.296 | AL41: SGRLFMT D24 | AM41: 17.433 | AN41: 12.315 | AP41: SGRLFMT D24 | AQ41: 20.207 | AR41: 12.639 | AT41: SGRLFMT D24 | AU41: 17.596 | AV41: 12.147 | AX41: SGRLFMT D24 | AY41: 55.236 | AZ41: 37.101 | BG41: SGRLFMT D24 | BH41: 15.267 | BI41: 12.465 | BK41: SGRLFMT D24 | BL41: 15.37 | BM41: 12.378 | BO41: SGRLFMT D24 | BP41: 12.667 | BQ41: 11.102 | BS41: SGRLFMT D24 | BT41: 43.304 | BU41: 35.945 | CD41: SGRLFMT D24 | CE41: 12.982 | CF41: 12.208 | CH41: SGRLFMT D24 | CI41: 13.639 | CJ41: 11.73 | CL41: SGRLFMT D24 | CM41: 13.495 | CN41: 12.037 | CP41: SGRLFMT D24 | CQ41: 40.116 | CR41: 35.975
A42: TRAIL D24 | B42: 310.425 | C42: 315.819 | D42: 250.508 | E42: 239.103 | F42: 243.793 | G42: 315.174 | H42: 321.622 | I42: 317.738 | J42: 282.383 | K42: 306.764 | L42: 291.855 | M42: 296.903 | N42: 3492.087 | R42: TRAIL D24 | S42: 310.996 | T42: 310.425 | V42: TRAIL D24 | W42: 311.73 | X42: 315.819 | Z42: =R42 -> TRAIL D24 | AA42: 297.259 | AB42: 250.508 | AD42: TRAIL D24 | AE42: 919.985 | AF42: 876.752 | AL42: TRAIL D24 | AM42: 275.296 | AN42: 239.103 | AP42: TRAIL D24 | AQ42: 295.459 | AR42: 243.793 | AT42: TRAIL D24 | AU42: 292.786 | AV42: 315.174 | AX42: TRAIL D24 | AY42: 863.541 | AZ42: 798.07 | BG42: TRAIL D24 | BH42: 271.257 | BI42: 321.622 | BK42: TRAIL D24 | BL42: 284.828 | BM42: 317.738 | BO42: TRAIL D24 | BP42: 252.858 | BQ42: 282.383 | BS42: TRAIL D24 | BT42: 808.943 | BU42: 921.743 | CD42: TRAIL D24 | CE42: 268.075 | CF42: 306.764 | CH42: TRAIL D24 | CI42: 261.674 | CJ42: 291.855 | CL42: TRAIL D24 | CM42: 243.62 | CN42: 296.903 | CP42: TRAIL D24 | CQ42: 773.369 | CR42: 895.522
A43: TRAILMT D24 | B43: 47.358 | C43: 48.292 | D43: 47.678 | E43: 45.57 | F43: 46.525 | G43: 44.499 | H43: 45.461 | I43: 44.959 | J43: 40.166 | K43: 43.998 | L43: 42.135 | M43: 43.093 | N43: 539.734 | R43: TRAILMT D24 | S43: 46.652 | T43: 47.358 | V43: TRAILMT D24 | W43: 48.633 | X43: 48.292 | Z43: TRAILMT D24 | AA43: 46.975 | AB43: 47.678 | AD43: TRAILMT D24 | AE43: 142.26 | AF43: 143.328 | AL43: TRAILMT D24 | AM43: 44.634 | AN43: 45.57 | AP43: TRAILMT D24 | AQ43: 47.05 | AR43: 46.525 | AT43: TRAILMT D24 | AU43: 43.504 | AV43: 44.499 | AX43: TRAILMT D24 | AY43: 135.188 | AZ43: 136.594 | BG43: TRAILMT D24 | BH43: 35.835 | BI43: 45.461 | BK43: TRAILMT D24 | BL43: 46.682 | BM43: 44.959 | BO43: TRAILMT D24 | BP43: 42.061 | BQ43: 40.166 | BS43: TRAILMT D24 | BT43: 124.578 | BU43: 130.586 | CD43: TRAILMT D24 | CE43: 43.346 | CF43: 43.998 | CH43: TRAILMT D24 | CI43: 41.773 | CJ43: 42.135 | CL43: TRAILMT D24 | CM43: 37.466 | CN43: 43.093 | CP43: TRAILMT D24 | CQ43: 122.585 | CR43: 129.226
A44: WHLA D24 | B44: 31.611 | C44: 32.432 | D44: 32.206 | E44: 30.948 | F44: 31.753 | G44: 30.513 | H44: 31.31 | I44: 31.09 | J44: 27.885 | K44: 30.656 | L44: 29.457 | M44: 30.225 | N44: 370.086 | R44: WHLA D24 | S44: 30.598 | T44: 31.611 | V44: WHLA D24 | W44: 31.157 | X44: 32.432 | Z44: WHLA D24 | AA44: 36.806 | AB44: 32.206 | AD44: WHLA D24 | AE44: 98.561 | AF44: 96.249 | AL44: WHLA D24 | AM44: 36.458 | AN44: 30.948 | AP44: WHLA D24 | AQ44: 36.173 | AR44: 31.753 | AT44: WHLA D24 | AU44: 27.107 | AV44: 30.513 | AX44: WHLA D24 | AY44: 99.738 | AZ44: 93.214 | BG44: WHLA D24 | BH44: 32.455 | BI44: 31.31 | BK44: WHLA D24 | BL44: 30.302 | BM44: 31.09 | BO44: WHLA D24 | BP44: 26.962 | BQ44: 27.885 | BS44: WHLA D24 | BT44: 89.719 | BU44: 90.285 | CD44: WHLA D24 | CE44: 33.344 | CF44: 30.656 | CH44: WHLA D24 | CI44: 31.179 | CJ44: 29.457 | CL44: WHLA D24 | CM44: 30.595 | CN44: 30.225 | CP44: WHLA D24 | CQ44: 95.118 | CR44: 90.338
A45: WWILSON D24 | B45: 3.51 | C45: 3.608 | D45: 3.59 | E45: 3.453 | F45: 3.55 | G45: 3.417 | H45: 3.512 | I45: 3.494 | J45: 3.139 | K45: 3.457 | L45: 3.327 | M45: 3.419 | N45: 41.476 | R45: WWILSON D24 | S45: 2.359 | T45: 3.51 | V45: WWILSON D24 | W45: 2.187 | X45: 3.608 | Z45: WWILSON D24 | AA45: 2.604 | AB45: 3.59 | AD45: WWILSON D24 | AE45: 7.15 | AF45: 10.708 | AL45: WWILSON D24 | AM45: 1.691 | AN45: 3.453 | AP45: WWILSON D24 | AQ45: 2.102 | AR45: 3.55 | AT45: WWILSON D24 | AU45: 2.031 | AV45: 3.417 | AX45: WWILSON D24 | AY45: 5.824 | AZ45: 10.42 | BG45: WWILSON D24 | BH45: 2.425 | BI45: 3.512 | BK45: WWILSON D24 | BL45: 0.751 | BM45: 3.494 | BO45: WWILSON D24 | BP45: 0.248 | BQ45: 3.139 | BS45: WWILSON D24 | BT45: 3.424 | BU45: 10.145 | CD45: WWILSON D24 | CE45: 0.274 | CF45: 3.457 | CH45: WWILSON D24 | CI45: 0.278 | CJ45: 3.327 | CL45: WWILSON D24 | CM45: 1.234 | CN45: 3.419 | CP45: WWILSON D24 | CQ45: 1.786 | CR45: 10.203
A46: ACEJDMT PC | B46: 3.471 | C46: 3.568 | D46: 3.553 | E46: 3.42 | F46: 3.519 | G46: 3.39 | H46: 3.484 | I46: 3.469 | J46: 3.119 | K46: 3.438 | L46: 3.312 | M46: 3.404 | N46: 41.147 | R46: ACEJDMT PC | S46: 3.586 | T46: 3.471 | V46: ACEJDMT PC | W46: 3.732 | X46: 3.568 | Z46: ACEJDMT PC | AA46: 4.367 | AB46: 3.553 | AD46: ACEJDMT PC | AE46: 11.685 | AF46: 10.592 | AL46: ACEJDMT PC | AM46: 0 | AN46: 3.42 | AP46: ACEJDMT PC | AQ46: 0 | AR46: 3.519 | AT46: ACEJDMT PC | AU46: 0 | AV46: 3.39 | AX46: ACEJDMT PC | AY46: 0 | AZ46: 10.329 | BG46: ACEJDMT PC | BH46: 0 | BI46: 3.484 | BK46: ACEJDMT PC | BL46: 0 | BM46: 3.469 | BO46: ACEJDMT PC | BP46: 0 | BQ46: 3.119 | BS46: ACEJDMT PC | BT46: 0 | BU46: 10.072 | CD46: ACEJDMT PC | CE46: 0 | CF46: 3.438 | CH46: ACEJDMT PC | CI46: 0 | CJ46: 3.312 | CL46: ACEJDMT PC | CM46: 0 | CN46: 3.404 | CP46: ACEJDMT PC | CQ46: 0 | CR46: 10.154
A47: BRFM PC | B47: 0.153 | C47: 0.158 | D47: 0.155 | E47: 0.15 | F47: 0.155 | G47: 0.15 | H47: 0.152 | I47: 0.152 | J47: 0.137 | K47: 0.152 | L47: 0.144 | M47: 0.149 | N47: 1.807 | R47: BRFM PC | S47: 0.147 | T47: 0.153 | V47: BRFM PC | W47: 0.142 | X47: 0.158 | Z47: BRFM PC | AA47: 0.136 | AB47: 0.155 | AD47: BRFM PC | AE47: 0.425 | AF47: 0.466 | AL47: BRFM PC | AM47: 0.13 | AN47: 0.15 | AP47: BRFM PC | AQ47: 0.13 | AR47: 0.155 | AT47: BRFM PC | AU47: 0.127 | AV47: 0.15 | AX47: BRFM PC | AY47: 0.387 | AZ47: 0.455 | BG47: BRFM PC | BH47: 0.152 | BI47: 0.152 | BK47: BRFM PC | BL47: 0.144 | BM47: 0.152 | BO47: BRFM PC | BP47: 0.128 | BQ47: 0.137 | BS47: BRFM PC | BT47: 0.424 | BU47: 0.441 | CD47: BRFM PC | CE47: 0.134 | CF47: 0.152 | CH47: BRFM PC | CI47: =VLOOKUP(CH47,CH$119:CI$203,2,FALSE) -> 0.134 | CJ47: 0.144 | CL47: BRFM PC | CM47: =VLOOKUP(CL47,CL$119:CM$203,2,FALSE) -> 0.145 | CN47: 0.149 | CP47: BRFM PC | CQ47: 0.413 | CR47: 0.445
A48: BRFQ PC | B48: 10.626 | C48: 10.928 | D48: 10.878 | E48: 10.479 | F48: 10.779 | G48: 10.383 | H48: 10.679 | I48: 10.633 | J48: 9.559 | K48: 10.534 | L48: 10.149 | M48: 10.438 | N48: 126.065 | R48: BRFQ PC | S48: 11.42 | T48: 10.626 | V48: BRFQ PC | W48: 10.901 | X48: 10.928 | Z48: BRFQ PC | AA48: 11.492 | AB48: 10.878 | AD48: BRFQ PC | AE48: 33.813 | AF48: 32.432 | AL48: BRFQ PC | AM48: 12.063 | AN48: 10.479 | AP48: BRFQ PC | AQ48: 12.388 | AR48: 10.779 | AT48: BRFQ PC | AU48: 11.153 | AV48: 10.383 | AX48: BRFQ PC | AY48: 35.604 | AZ48: 31.641 | BG48: BRFQ PC | BH48: 11.789 | BI48: 10.679 | BK48: BRFQ PC | BL48: 11.417 | BM48: 10.633 | BO48: BRFQ PC | BP48: 10.115 | BQ48: 9.559 | BS48: BRFQ PC | BT48: 33.321 | BU48: 30.871 | CD48: BRFQ PC | CE48: 11.604 | CF48: 10.534 | CH48: BRFQ PC | CI48: 12.116 | CJ48: 10.149 | CL48: BRFQ PC | CM48: 11.048 | CN48: 10.438 | CP48: BRFQ PC | CQ48: 34.768 | CR48: 31.121
A49: BRFQMT PC | B49: 3.3 | C49: 3.391 | D49: 3.376 | E49: 3.252 | F49: 3.345 | G49: 3.219 | H49: 3.311 | I49: 3.295 | J49: 2.962 | K49: 3.264 | L49: 3.144 | M49: 3.23 | N49: 39.089 | R49: BRFQMT PC | S49: 4.307 | T49: 3.3 | V49: BRFQMT PC | W49: 4.401 | X49: 3.391 | Z49: BRFQMT PC | AA49: 4.297 | AB49: 3.376 | AD49: BRFQMT PC | AE49: 13.005 | AF49: 10.067 | AL49: BRFQMT PC | AM49: 4.094 | AN49: 3.252 | AP49: BRFQMT PC | AQ49: 3.825 | AR49: 3.345 | AT49: BRFQMT PC | AU49: 3.615 | AV49: 3.219 | AX49: BRFQMT PC | AY49: 11.534 | AZ49: 9.816 | BB49: IRP Variance | BC49: Docket No. 17-057-12 | BD49: Dominion Energy Utah | BG49: BRFQMT PC | BH49: 3.193 | BI49: 3.311 | BK49: BRFQMT PC | BL49: 2.402 | BM49: 3.295 | BO49: BRFQMT PC | BP49: 3.757 | BQ49: 2.962 | BS49: BRFQMT PC | BT49: 9.352 | BU49: 9.568 | CD49: BRFQMT PC | CE49: 4.087 | CF49: 3.264 | CH49: BRFQMT PC | CI49: 3.942 | CJ49: 3.144 | CL49: BRFQMT PC | CM49: 3.788 | CN49: 3.23 | CP49: BRFQMT PC | CQ49: 11.817 | CR49: 9.638
A50: BRFW PC | B50: 9.231 | C50: 9.492 | D50: 9.449 | E50: 9.099 | F50: 9.356 | G50: 9.012 | H50: 9.269 | I50: 9.223 | J50: 8.291 | K50: 9.136 | L50: 8.799 | M50: 9.049 | N50: 109.406 | R50: BRFW PC | S50: 10.495 | T50: 9.231 | V50: BRFW PC | W50: 6.943 | X50: 9.492 | Z50: BRFW PC | AA50: 5.116 | AB50: 9.449 | AD50: BRFW PC | AE50: 22.554 | AF50: 28.172 | AL50: BRFW PC | AM50: 4.223 | AN50: 9.099 | AP50: BRFW PC | AQ50: 4.756 | AR50: 9.356 | AT50: BRFW PC | AU50: 11.804 | AV50: 9.012 | AX50: BRFW PC | AY50: 20.783 | AZ50: 27.467 | BC50: 0 | BD50: 0 | BG50: BRFW PC | BH50: 13.289 | BI50: 9.269 | BK50: BRFW PC | BL50: 14.366 | BM50: 9.223 | BO50: BRFW PC | BP50: 10.497 | BQ50: 8.291 | BS50: BRFW PC | BT50: 38.152 | BU50: 26.783 | CD50: BRFW PC | CE50: 10.887 | CF50: 9.136 | CH50: BRFW PC | CI50: 10.095 | CJ50: 8.799 | CL50: BRFW PC | CM50: 9.397 | CN50: 9.049 | CP50: BRFW PC | CQ50: 30.379 | CR50: 26.984
A51: BRUFF MT | B51: 4.806 | C51: 4.941 | D51: 4.913 | E51: 4.731 | F51: 4.861 | G51: 4.68 | H51: 4.811 | I51: 4.783 | J51: 4.298 | K51: 4.734 | L51: 4.557 | M51: 4.684 | N51: 56.799 | R51: BRUFF MT | S51: 8.009 | T51: 4.806 | V51: BRUFF MT | W51: 8.124 | X51: 4.941 | Z51: BRUFF MT | AA51: 8.433 | AB51: 4.913 | AD51: BRUFF MT | AE51: 24.566 | AF51: 14.66 | AH51: ='Ex 1 HDD'!I3 -> DEU Variance Exhibit | AI51: ='Ex 1 HDD'!I2 -> Docket No. 21-057-01 | AJ51: ='Ex 1 HDD'!I1 -> Dominion Energy Utah | AL51: BRUFF MT | AM51: 8.32 | AN51: 4.731 | AP51: BRUFF MT | AQ51: 7.69 | AR51: 4.861 | AT51: BRUFF MT | AU51: 4.81 | AV51: 4.68 | AX51: BRUFF MT | AY51: 20.82 | AZ51: 14.272 | BC51: 0 | BD51: 0 | BG51: BRUFF MT | BH51: 4.447 | BI51: 4.811 | BK51: BRUFF MT | BL51: 4.529 | BM51: 4.783 | BO51: BRUFF MT | BP51: 3.953 | BQ51: 4.298 | BS51: BRUFF MT | BT51: 12.929 | BU51: 13.892 | CD51: BRUFF MT | CE51: 8.627 | CF51: 4.734 | CH51: BRUFF MT | CI51: 6.203 | CJ51: 4.557 | CL51: BRUFF MT | CM51: 5.487 | CN51: 4.684 | CP51: BRUFF MT | CQ51: 20.317 | CR51: 13.975
A52: CBFR PC | B52: 59.169 | C52: 60.813 | D52: 60.487 | E52: 58.221 | F52: 59.839 | G52: 57.597 | H52: 59.201 | I52: 58.881 | J52: 52.898 | K52: 58.252 | L52: 56.07 | M52: 57.629 | N52: 699.057 | R52: CBFR PC | S52: 4.972 | T52: 59.169 | V52: CBFR PC | W52: 0 | X52: 60.813 | Z52: CBFR PC | AA52: 18.273 | AB52: 60.487 | AD52: CBFR PC | AE52: 23.245 | AF52: 180.469 | AL52: CBFR PC | AM52: 85.467 | AN52: 58.221 | AP52: CBFR PC | AQ52: 70.485 | AR52: 59.839 | AT52: CBFR PC | AU52: 73.561 | AV52: 57.597 | AX52: CBFR PC | AY52: 229.513 | AZ52: 175.657 | BC52: 0 | BD52: 0 | BG52: CBFR PC | BH52: 67.324 | BI52: 59.201 | BK52: CBFR PC | BL52: 63.821 | BM52: 58.881 | BO52: CBFR PC | BP52: 58.141 | BQ52: 52.898 | BS52: CBFR PC | BT52: 189.286 | BU52: 170.98 | BV52: QGC Variance Exhibit | BW52: Docket No. 15-057-07 | BX52: Questar Gas Company | CD52: CBFR PC | CE52: 43.836 | CF52: 58.252 | CH52: CBFR PC | CI52: 64.14 | CJ52: 56.07 | CL52: CBFR PC | CM52: 65.496 | CN52: 57.629 | CP52: CBFR PC | CQ52: 173.472 | CR52: 171.951
A53: CCRUNIT MT | B53: 44.337 | C53: 45.167 | D53: 32.349 | E53: 30.879 | F53: 31.487 | G53: 41.877 | H53: 42.712 | I53: 42.172 | J53: 37.615 | K53: 41.137 | L53: 39.33 | M53: 40.161 | N53: 469.223 | R53: CCRUNIT MT | S53: 59.738 | T53: 44.337 | V53: CCRUNIT MT | W53: 56.072 | X53: 45.167 | Z53: CCRUNIT MT | AA53: 45.084 | AB53: 32.349 | AD53: CCRUNIT MT | AE53: 160.894 | AF53: 121.853 | AL53: CCRUNIT MT | AM53: 45.059 | AN53: 30.879 | AP53: CCRUNIT MT | AQ53: 46.273 | AR53: 31.487 | AT53: CCRUNIT MT | AU53: 48.216 | AV53: 41.877 | AX53: CCRUNIT MT | AY53: 139.548 | AZ53: 104.243 | BC53: 0 | BD53: 0 | BG53: CCRUNIT MT | BH53: 69.979 | BI53: 42.712 | BK53: CCRUNIT MT | BL53: 60.625 | BM53: 42.172 | BO53: CCRUNIT MT | BP53: 51.229 | BQ53: 37.615 | BS53: CCRUNIT MT | BT53: 181.833 | BU53: 122.499 | CD53: CCRUNIT MT | CE53: =VLOOKUP(CD53,CD$119:CE$203,2,FALSE)*0.2 -> 11.3984 | CF53: =IFERROR(VLOOKUP($A53,$A$6:$M$123,11,FALSE),"")*0.2 -> 8.2274 | CH53: CCRUNIT MT | CI53: =VLOOKUP(CH53,CH$119:CI$203,2,FALSE)*0.2 -> 11.4584 | CJ53: =IFERROR(VLOOKUP($A53,$A$6:$M$123,12,FALSE),"")*0.2 -> 7.866 | CL53: CCRUNIT MT | CM53: =VLOOKUP(CL53,CL$119:CM$203,2,FALSE)*0.2 -> 11.1614 | CN53: =IFERROR(VLOOKUP($A53,$A$6:$M$123,13,FALSE),"")*0.2 -> 8.0322 | CP53: CCRUNIT MT | CQ53: 34.0182 | CR53: 24.1256
A54: CCRUNIT PC | B54: 48.978 | C54: 50.356 | D54: 50.102 | E54: 48.243 | F54: 49.6 | G54: 47.76 | H54: 49.107 | I54: 48.859 | J54: 43.91 | K54: 48.372 | L54: 46.578 | M54: 47.892 | N54: 579.757 | R54: CCRUNIT PC | S54: 46.007 | T54: 48.978 | V54: CCRUNIT PC | W54: 49.343 | X54: 50.356 | Z54: CCRUNIT PC | AA54: 37.084 | AB54: 50.102 | AD54: CCRUNIT PC | AE54: 132.434 | AF54: 149.436 | AL54: CCRUNIT PC | AM54: 40.599 | AN54: 48.243 | AP54: CCRUNIT PC | AQ54: 34.589 | AR54: 49.6 | AT54: CCRUNIT PC | AU54: 30.316 | AV54: 47.76 | AX54: CCRUNIT PC | AY54: 105.504 | AZ54: 145.603 | BC54: 0 | BD54: 0 | BG54: CCRUNIT PC | BH54: 51.895 | BI54: 49.107 | BK54: CCRUNIT PC | BL54: 47.978 | BM54: 48.859 | BO54: CCRUNIT PC | BP54: 39.435 | BQ54: 43.91 | BS54: CCRUNIT PC | BT54: 139.308 | BU54: 141.876 | CD54: CCRUNIT PC | CE54: =VLOOKUP(CD54,CD$119:CE$203,2,FALSE) -> 44.127 | CF54: 48.372 | CH54: CCRUNIT PC | CI54: =VLOOKUP(CH54,CH$119:CI$203,2,FALSE) -> 47.272 | CJ54: 46.578 | CL54: CCRUNIT PC | CM54: =VLOOKUP(CL54,CL$119:CM$203,2,FALSE) -> 41.905 | CN54: 47.892 | CP54: CCRUNIT PC | CQ54: 133.304 | CR54: 142.842
A55: CCRUNITMT PC | B55: 15.954 | C55: 16.414 | D55: 16.34 | E55: 15.744 | F55: 16.197 | G55: 15.606 | H55: 16.055 | I55: 15.984 | J55: 14.372 | K55: 15.844 | L55: 15.264 | M55: 15.705 | N55: 189.479 | R55: CCRUNITMT PC | S55: 14.906 | T55: 15.954 | V55: CCRUNITMT PC | W55: 16.336 | X55: 16.414 | Z55: CCRUNITMT PC | AA55: 17.482 | AB55: 16.34 | AD55: CCRUNITMT PC | AE55: 48.724 | AF55: 48.708 | AL55: CCRUNITMT PC | AM55: 17.533 | AN55: 15.744 | AP55: CCRUNITMT PC | AQ55: 15.633 | AR55: 16.197 | AT55: CCRUNITMT PC | AU55: 13.075 | AV55: 15.606 | AX55: CCRUNITMT PC | AY55: 46.241 | AZ55: 47.547 | BC55: 0 | BD55: 0 | BG55: CCRUNITMT PC | BH55: 15.402 | BI55: 16.055 | BK55: CCRUNITMT PC | BL55: 15.792 | BM55: 15.984 | BO55: CCRUNITMT PC | BP55: 14.598 | BQ55: 14.372 | BS55: CCRUNITMT PC | BT55: 45.792 | BU55: 46.411 | CD55: CCRUNITMT PC | CE55: =VLOOKUP(CD55,CD$119:CE$203,2,FALSE) -> 15.227 | CF55: 15.844 | CH55: CCRUNITMT PC | CI55: 15.352 | CJ55: 15.264 | CL55: CCRUNITMT PC | CM55: 15.334 | CN55: 15.705 | CP55: CCRUNITMT PC | CQ55: 45.913 | CR55: 46.813
A56: CHBTC1 MT PC | B56: 23.406 | C56: 24.081 | D56: 23.978 | E56: 23.106 | F56: 23.774 | G56: 22.908 | H56: 23.572 | I56: 23.47 | J56: 21.109 | K56: 23.269 | L56: 22.422 | M56: 23.07 | N56: 278.165 | R56: CHBTC1 MT PC | S56: 19.21 | T56: 23.406 | V56: CHBTC1 MT PC | W56: 18.676 | X56: 24.081 | Z56: CHBTC1 MT PC | AA56: 18.323 | AB56: 23.978 | AD56: CHBTC1 MT PC | AE56: 56.209 | AF56: 71.465 | AL56: CHBTC1 MT PC | AM56: 17.694 | AN56: 23.106 | AP56: CHBTC1 MT PC | AQ56: 17.957 | AR56: 23.774 | AT56: CHBTC1 MT PC | AU56: 16.947 | AV56: 22.908 | AX56: CHBTC1 MT PC | AY56: 52.598 | AZ56: 69.788 | BG56: CHBTC1 MT PC | BH56: 19.061 | BI56: 23.572 | BK56: CHBTC1 MT PC | BL56: 19.586 | BM56: 23.47 | BO56: CHBTC1 MT PC | BP56: 15.31 | BQ56: 21.109 | BS56: CHBTC1 MT PC | BT56: 53.957 | BU56: 68.151 | CD56: CHBTC1 MT PC | CE56: 21.527 | CF56: 23.269 | CH56: CHBTC1 MT PC | CI56: 27.074 | CJ56: 22.422 | CL56: CHBTC1 MT PC | CM56: 27.546 | CN56: 23.07 | CP56: CHBTC1 MT PC | CQ56: 76.147 | CR56: 68.761
A57: CHBTCAT1 PC | B57: 45.255 | C57: 46.438 | D57: 46.116 | E57: 44.322 | F57: 45.483 | G57: 43.716 | H57: 44.863 | I57: 44.559 | J57: 39.976 | K57: 43.961 | L57: 42.258 | M57: 43.375 | N57: 530.322 | R57: CHBTCAT1 PC | S57: 24.702 | T57: 45.255 | V57: CHBTCAT1 PC | W57: 32.167 | X57: 46.438 | Z57: CHBTCAT1 PC | AA57: 32.612 | AB57: 46.116 | AD57: CHBTCAT1 PC | AE57: 89.481 | AF57: 137.809 | AL57: CHBTCAT1 PC | AM57: 29.501 | AN57: 44.322 | AP57: CHBTCAT1 PC | AQ57: 37.683 | AR57: 45.483 | AT57: CHBTCAT1 PC | AU57: 32.282 | AV57: 43.716 | AX57: CHBTCAT1 PC | AY57: 99.466 | AZ57: 133.521 | BB57: 9.1 | BG57: CHBTCAT1 PC | BH57: 30.548 | BI57: 44.863 | BK57: CHBTCAT1 PC | BL57: 30.847 | BM57: 44.559 | BO57: CHBTCAT1 PC | BP57: 27.987 | BQ57: 39.976 | BS57: CHBTCAT1 PC | BT57: 89.382 | BU57: 129.398 | CD57: CHBTCAT1 PC | CE57: 38.364 | CF57: 43.961 | CH57: CHBTCAT1 PC | CI57: 49.522 | CJ57: 42.258 | CL57: CHBTCAT1 PC | CM57: 49.115 | CN57: 43.375 | CP57: CHBTCAT1 PC | CQ57: 137.001 | CR57: 129.594
A58: CHBTCAT2 PC | B58: 2.019 | C58: 2.068 | D58: 2.052 | E58: 1.968 | F58: 2.015 | G58: 1.935 | H58: 1.981 | I58: 1.962 | J58: 1.758 | K58: 1.928 | L58: 1.851 | M58: 1.897 | N58: 23.434 | R58: CHBTCAT2 PC | S58: 2.044 | T58: 2.019 | V58: CHBTCAT2 PC | W58: 2.019 | X58: 2.068 | Z58: CHBTCAT2 PC | AA58: 2.029 | AB58: 2.052 | AD58: CHBTCAT2 PC | AE58: 6.092 | AF58: 6.139 | AL58: CHBTCAT2 PC | AM58: 1.947 | AN58: 1.968 | AP58: CHBTCAT2 PC | AQ58: 1.848 | AR58: 2.015 | AT58: CHBTCAT2 PC | AU58: 1.766 | AV58: 1.935 | AX58: CHBTCAT2 PC | AY58: 5.561 | AZ58: 5.918 | BG58: CHBTCAT2 PC | BH58: 1.758 | BI58: 1.981 | BK58: CHBTCAT2 PC | BL58: 1.725 | BM58: 1.962 | BO58: CHBTCAT2 PC | BP58: 1.879 | BQ58: 1.758 | BS58: CHBTCAT2 PC | BT58: 5.362 | BU58: 5.701 | CD58: CHBTCAT2 PC | CE58: 2.265 | CF58: 1.928 | CH58: CHBTCAT2 PC | CI58: 2.751 | CJ58: 1.851 | CL58: CHBTCAT2 PC | CM58: 2.756 | CN58: 1.897 | CP58: CHBTCAT2 PC | CQ58: 7.772 | CR58: 5.676
A59: DRYPINY6 PC | B59: 1.05 | C59: 1.079 | D59: 1.076 | E59: 1.035 | F59: 1.066 | G59: 1.026 | H59: 1.057 | I59: 1.051 | J59: 0.946 | K59: 1.042 | L59: 1.005 | M59: 1.035 | N59: 12.468 | R59: DRYPINY6 PC | S59: 0.938 | T59: 1.05 | V59: DRYPINY6 PC | W59: 1.06 | X59: 1.079 | Z59: DRYPINY6 PC | AA59: 0.106 | AB59: 1.076 | AD59: DRYPINY6 PC | AE59: 2.104 | AF59: 3.205 | AH59: 9.1 | AL59: DRYPINY6 PC | AM59: 0.104 | AN59: 1.035 | AP59: DRYPINY6 PC | AQ59: 0.119 | AR59: 1.066 | AT59: DRYPINY6 PC | AU59: 0.113 | AV59: 1.026 | AX59: DRYPINY6 PC | AY59: 0.336 | AZ59: 3.127 | BG59: DRYPINY6 PC | BH59: 0.11 | BI59: 1.057 | BK59: DRYPINY6 PC | BL59: 0.114 | BM59: 1.051 | BO59: DRYPINY6 PC | BP59: 0.104 | BQ59: 0.946 | BS59: DRYPINY6 PC | BT59: 0.328 | BU59: 3.054 | CD59: DRYPINY6 PC | CE59: 0.115 | CF59: 1.042 | CH59: DRYPINY6 PC | CI59: 0.109 | CJ59: 1.005 | CL59: DRYPINY6 PC | CM59: 0.072 | CN59: 1.035 | CP59: DRYPINY6 PC | CQ59: 0.296 | CR59: 3.082
A60: DRYPINYU PC | B60: 10.557 | C60: 10.841 | D60: 10.772 | E60: 10.359 | F60: 10.636 | G60: 10.227 | H60: 10.5 | I60: 10.435 | J60: 9.366 | K60: 10.304 | L60: 9.909 | M60: 10.174 | N60: 124.08 | R60: DRYPINYU PC | S60: 9.738 | T60: 10.557 | V60: DRYPINYU PC | W60: 10.789 | X60: 10.841 | Z60: DRYPINYU PC | AA60: 8.711 | AB60: 10.772 | AD60: DRYPINYU PC | AE60: 29.238 | AF60: 32.17 | AL60: DRYPINYU PC | AM60: 8.568 | AN60: 10.359 | AP60: DRYPINYU PC | AQ60: 8.614 | AR60: 10.636 | AT60: DRYPINYU PC | AU60: 8.023 | AV60: 10.227 | AX60: DRYPINYU PC | AY60: 25.205 | AZ60: 31.222 | BG60: DRYPINYU PC | BH60: 9.542 | BI60: 10.5 | BK60: DRYPINYU PC | BL60: 8.058 | BM60: 10.435 | BO60: DRYPINYU PC | BP60: 7.58 | BQ60: 9.366 | BS60: DRYPINYU PC | BT60: 25.18 | BU60: 30.301 | CD60: DRYPINYU PC | CE60: 8.647 | CF60: 10.304 | CH60: DRYPINYU PC | CI60: 8.839 | CJ60: 9.909 | CL60: DRYPINYU PC | CM60: 7.017 | CN60: 10.174 | CP60: DRYPINYU PC | CQ60: 24.503 | CR60: 30.387
A61: FOGARTY PC | B61: 0.564 | C61: 0.58 | D61: 0.577 | E61: 0.552 | F61: 0.567 | G61: 0.546 | H61: 0.561 | I61: 0.558 | J61: 0.501 | K61: 0.549 | L61: 0.528 | M61: 0.543 | N61: 6.626 | R61: FOGARTY PC | S61: 1.144 | T61: 0.564 | V61: FOGARTY PC | W61: 1.007 | X61: 0.58 | Z61: FOGARTY PC | AA61: 0.961 | AB61: 0.577 | AD61: FOGARTY PC | AE61: 3.112 | AF61: 1.721 | AL61: FOGARTY PC | AM61: 0.873 | AN61: 0.552 | AP61: FOGARTY PC | AQ61: 0.864 | AR61: 0.567 | AT61: FOGARTY PC | AU61: 0.243 | AV61: 0.546 | AX61: FOGARTY PC | AY61: 1.98 | AZ61: 1.665 | BG61: FOGARTY PC | BH61: 0.213 | BI61: 0.561 | BK61: FOGARTY PC | BL61: 0 | BM61: 0.558 | BO61: FOGARTY PC | BP61: 0 | BQ61: 0.501 | BS61: FOGARTY PC | BT61: 0.213 | BU61: 1.62 | BW61: 9.1 | CD61: FOGARTY PC | CE61: 0 | CF61: 0.549 | CH61: FOGARTY PC | CI61: 0 | CJ61: 0.528 | CL61: FOGARTY PC | CM61: 0 | CN61: 0.543 | CP61: FOGARTY PC | CQ61: 0 | CR61: 1.62
A62: HWA DEEP PC | B62: 0.546 | C62: 0.561 | D62: 0.555 | E62: 0.534 | F62: 0.549 | G62: 0.528 | H62: 0.543 | I62: 0.539 | J62: 0.484 | K62: 0.533 | L62: 0.51 | M62: 0.524 | N62: 6.406 | R62: HWA DEEP PC | S62: 0.125 | T62: 0.546 | V62: HWA DEEP PC | W62: 0.061 | X62: 0.561 | Z62: HWA DEEP PC | AA62: 0.122 | AB62: 0.555 | AD62: HWA DEEP PC | AE62: 0.308 | AF62: 1.662 | AL62: HWA DEEP PC | AM62: 0.18 | AN62: 0.534 | AP62: HWA DEEP PC | AQ62: 0 | AR62: 0.549 | AT62: HWA DEEP PC | AU62: 0.192 | AV62: 0.528 | AX62: HWA DEEP PC | AY62: 0.372 | AZ62: 1.611 | BG62: HWA DEEP PC | BH62: 0.181 | BI62: 0.543 | BK62: HWA DEEP PC | BL62: 0.255 | BM62: 0.539 | BO62: HWA DEEP PC | BP62: 0.202 | BQ62: 0.484 | BS62: HWA DEEP PC | BT62: 0.638 | BU62: 1.566 | CD62: HWA DEEP PC | CE62: 0.239 | CF62: 0.533 | CH62: HWA DEEP PC | CI62: =VLOOKUP(CH62,CH$119:CI$203,2,FALSE) -> 0.033 | CJ62: 0.51 | CL62: HWA DEEP PC | CM62: =VLOOKUP(CL62,CL$119:CM$203,2,FALSE) -> 0.201 | CN62: 0.524 | CP62: HWA DEEP PC | CQ62: 0.473 | CR62: 1.567
A63: HWPL1&3MTPC | B63: 6.255 | C63: 6.429 | D63: 6.392 | E63: 6.153 | F63: 6.321 | G63: 6.084 | H63: 6.25 | I63: 6.216 | J63: 5.583 | K63: 6.147 | L63: 5.916 | M63: 6.076 | N63: 73.822 | R63: HWPL1&3MTPC | S63: 7.72 | T63: 6.255 | V63: HWPL1&3MTPC | W63: 5.84 | X63: 6.429 | Z63: HWPL1&3MTPC | AA63: 7.523 | AB63: 6.392 | AD63: HWPL1&3MTPC | AE63: 21.083 | AF63: 19.076 | AL63: HWPL1&3MTPC | AM63: 4.3 | AN63: 6.153 | AP63: HWPL1&3MTPC | AQ63: 6.58 | AR63: 6.321 | AT63: HWPL1&3MTPC | AU63: 8.001 | AV63: 6.084 | AX63: HWPL1&3MTPC | AY63: 18.881 | AZ63: 18.558 | BG63: HWPL1&3MTPC | BH63: 7.231 | BI63: 6.25 | BK63: HWPL1&3MTPC | BL63: 8.474 | BM63: 6.216 | BO63: HWPL1&3MTPC | BP63: 7.134 | BQ63: 5.583 | BS63: HWPL1&3MTPC | BT63: 22.839 | BU63: 18.049 | CD63: HWPL1&3MTPC | CE63: 7.943 | CF63: 6.147 | CH63: HWPL1&3MTPC | CI63: =VLOOKUP(CH63,CH$119:CI$203,2,FALSE) -> 7.691 | CJ63: 5.916 | CL63: HWPL1&3MTPC | CM63: =VLOOKUP(CL63,CL$119:CM$203,2,FALSE) -> 7.903 | CN63: 6.076 | CP63: HWPL1&3MTPC | CQ63: 23.537 | CR63: 18.139
A64: HWPLT1&3 PC | B64: 53.25 | C64: 54.718 | D64: 54.417 | E64: 52.371 | F64: 53.816 | G64: 51.792 | H64: 53.224 | I64: 52.929 | J64: 47.544 | K64: 52.347 | L64: 50.379 | M64: 51.77 | N64: 628.557 | R64: HWPLT1&3 PC | S64: 14.976 | T64: 53.25 | V64: HWPLT1&3 PC | W64: 5.153 | X64: 54.718 | Z64: =R64 -> HWPLT1&3 PC | AA64: 35.28 | AB64: 54.417 | AD64: HWPLT1&3 PC | AE64: 55.409 | AF64: 162.385 | AL64: HWPLT1&3 PC | AM64: 48.61 | AN64: 52.371 | AP64: HWPLT1&3 PC | AQ64: 46.603 | AR64: 53.816 | AT64: HWPLT1&3 PC | AU64: 52.656 | AV64: 51.792 | AX64: HWPLT1&3 PC | AY64: 147.869 | AZ64: 157.979 | BG64: HWPLT1&3 PC | BH64: 53.568 | BI64: 53.224 | BK64: HWPLT1&3 PC | BL64: 48.498 | BM64: 52.929 | BO64: HWPLT1&3 PC | BP64: 40.808 | BQ64: 47.544 | BS64: HWPLT1&3 PC | BT64: 142.874 | BU64: 153.697 | CD64: HWPLT1&3 PC | CE64: 46.085 | CF64: 52.347 | CH64: HWPLT1&3 PC | CI64: =VLOOKUP(CH64,CH$119:CI$203,2,FALSE) -> 56.836 | CJ64: 50.379 | CL64: HWPLT1&3 PC | CM64: =VLOOKUP(CL64,CL$119:CM$203,2,FALSE) -> 57.554 | CN64: 51.77 | CP64: HWPLT1&3 PC | CQ64: 160.475 | CR64: 154.496
A65: HWPLT2 PC | B65: 0.855 | C65: 0.88 | D65: 0.874 | E65: 0.843 | F65: 0.865 | G65: 0.834 | H65: 0.856 | I65: 0.853 | J65: 0.764 | K65: 0.843 | L65: 0.81 | M65: 0.834 | N65: 10.111 | R65: HWPLT2 PC | S65: 0.809 | T65: 0.855 | V65: HWPLT2 PC | W65: 0.784 | X65: 0.88 | Z65: HWPLT2 PC | AA65: 0.906 | AB65: 0.874 | AD65: HWPLT2 PC | AE65: 2.499 | AF65: 2.609 | AL65: HWPLT2 PC | AM65: 0.61 | AN65: 0.843 | AP65: HWPLT2 PC | AQ65: 0.944 | AR65: 0.865 | AT65: HWPLT2 PC | AU65: 0.96 | AV65: 0.834 | AX65: HWPLT2 PC | AY65: 2.514 | AZ65: 2.542 | BG65: HWPLT2 PC | BH65: 0.87 | BI65: 0.856 | BK65: HWPLT2 PC | BL65: 0.705 | BM65: 0.853 | BO65: HWPLT2 PC | BP65: 0.642 | BQ65: 0.764 | BS65: HWPLT2 PC | BT65: 2.217 | BU65: 2.473 | CD65: HWPLT2 PC | CE65: 0.825 | CF65: 0.843 | CH65: HWPLT2 PC | CI65: =VLOOKUP(CH65,CH$119:CI$203,2,FALSE) -> 0.771 | CJ65: 0.81 | CL65: HWPLT2 PC | CM65: =VLOOKUP(CL65,CL$119:CM$203,2,FALSE) -> 0.752 | CN65: 0.834 | CP65: HWPLT2 PC | CQ65: 2.348 | CR65: 2.487
A66: ISLAND PC | B66: 0.567 | C66: 0.583 | D66: 0.58 | E66: 0.558 | F66: 0.57 | G66: 0.549 | H66: 0.564 | I66: 0.561 | J66: 0.504 | K66: 0.555 | L66: 0.534 | M66: 0.549 | N66: 6.674 | R66: ISLAND PC | S66: 0.666 | T66: 0.567 | V66: ISLAND PC | W66: 0.497 | X66: 0.583 | Z66: ISLAND PC | AA66: 0.418 | AB66: 0.58 | AD66: ISLAND PC | AE66: 1.581 | AF66: 1.73 | AL66: ISLAND PC | AM66: 0.65 | AN66: 0.558 | AP66: ISLAND PC | AQ66: 0.099 | AR66: 0.57 | AT66: ISLAND PC | AU66: 0.701 | AV66: 0.549 | AX66: ISLAND PC | AY66: 1.45 | AZ66: 1.677 | BG66: ISLAND PC | BH66: 0.493 | BI66: 0.564 | BK66: ISLAND PC | BL66: 0.641 | BM66: 0.561 | BO66: ISLAND PC | BP66: 0.55 | BQ66: 0.504 | BS66: ISLAND PC | BT66: 1.684 | BU66: 1.629 | CD66: ISLAND PC | CE66: 0.623 | CF66: 0.555 | CH66: ISLAND PC | CI66: =VLOOKUP(CH66,CH$119:CI$203,2,FALSE) -> 0.627 | CJ66: 0.534 | CL66: ISLAND PC | CM66: =VLOOKUP(CL66,CL$119:CM$203,2,FALSE) -> 0.638 | CN66: 0.549 | CP66: ISLAND PC | CQ66: 1.888 | CR66: 1.638
A67: JNSNRDG PC | B67: 2.01 | C67: 2.071 | D67: 2.062 | E67: 1.986 | F67: 2.043 | G67: 1.971 | H67: 2.027 | I67: 2.018 | J67: 1.814 | K67: 2.003 | L67: 1.929 | M67: 1.984 | N67: 23.918 | R67: JNSNRDG PC | S67: 3.561 | T67: 2.01 | V67: JNSNRDG PC | W67: 3.013 | X67: 2.071 | Z67: JNSNRDG PC | AA67: 2.274 | AB67: 2.062 | AD67: JNSNRDG PC | AE67: 8.848 | AF67: 6.143 | AL67: JNSNRDG PC | AM67: 2.391 | AN67: 1.986 | AP67: JNSNRDG PC | AQ67: 2.39 | AR67: 2.043 | AT67: JNSNRDG PC | AU67: 2.231 | AV67: 1.971 | AX67: JNSNRDG PC | AY67: 7.012 | AZ67: 6 | BG67: JNSNRDG PC | BH67: 0.422 | BI67: 2.027 | BK67: JNSNRDG PC | BL67: 0 | BM67: 2.018 | BO67: JNSNRDG PC | BP67: 0 | BQ67: 1.814 | BS67: JNSNRDG PC | BT67: 0.422 | BU67: 5.859 | CD67: JNSNRDG PC | CE67: 0 | CF67: 2.003 | CH67: JNSNRDG PC | CI67: 0 | CJ67: 1.929 | CL67: JNSNRDG PC | CM67: 0 | CN67: 1.984 | CP67: JNSNRDG PC | CQ67: 0 | CR67: 5.916
A68: KNY FLD PC | B68: 3.246 | C68: 3.342 | D68: 3.329 | E68: 3.207 | F68: 3.302 | G68: 3.183 | H68: 3.277 | I68: 3.264 | J68: 2.937 | K68: 3.236 | L68: 3.12 | M68: 3.212 | N68: 38.655 | R68: KNY FLD PC | S68: 0.75 | T68: 3.246 | V68: KNY FLD PC | W68: 0 | X68: 3.342 | Z68: KNY FLD PC | AA68: 2.468 | AB68: 3.329 | AD68: KNY FLD PC | AE68: 3.218 | AF68: 9.917 | AL68: KNY FLD PC | AM68: 3.499 | AN68: 3.207 | AP68: KNY FLD PC | AQ68: 3.713 | AR68: 3.302 | AT68: KNY FLD PC | AU68: 3.456 | AV68: 3.183 | AX68: KNY FLD PC | AY68: 10.668 | AZ68: 9.692 | BG68: KNY FLD PC | BH68: 2.176 | BI68: 3.277 | BK68: KNY FLD PC | BL68: 2.726 | BM68: 3.264 | BO68: KNY FLD PC | BP68: 2.33 | BQ68: 2.937 | BS68: KNY FLD PC | BT68: 7.232 | BU68: 9.478 | CD68: KNY FLD PC | CE68: 3.561 | CF68: 3.236 | CH68: KNY FLD PC | CI68: =VLOOKUP(CH68,CH$119:CI$203,2,FALSE) -> 2.286 | CJ68: 3.12 | CL68: KNY FLD PC | CM68: =VLOOKUP(CL68,CL$119:CM$203,2,FALSE) -> 2.848 | CN68: 3.212 | CP68: KNY FLD PC | CQ68: 8.695 | CR68: 9.568
A69: MOSUMT PC | B69: 11.028 | C69: 11.318 | D69: 11.241 | E69: 10.806 | F69: 11.089 | G69: 10.659 | H69: 10.94 | I69: 10.865 | J69: 9.75 | K69: 10.72 | L69: 10.305 | M69: 10.577 | N69: 129.298 | R69: MOSUMT PC | S69: 7.02 | T69: 11.028 | V69: MOSUMT PC | W69: 2.759 | X69: 11.318 | Z69: MOSUMT PC | AA69: 8.417 | AB69: 11.241 | AD69: MOSUMT PC | AE69: 18.196 | AF69: 33.587 | AL69: MOSUMT PC | AM69: 4.421 | AN69: =IFERROR(VLOOKUP(AL69,$A$6:$M$123,5,FALSE),"") -> 10.806 | AP69: MOSUMT PC | AQ69: 5.345 | AR69: 11.089 | AT69: MOSUMT PC | AU69: 8.008 | AV69: 10.659 | AX69: MOSUMT PC | AY69: 17.774 | AZ69: 32.554 | BG69: MOSUMT PC | BH69: 6.166 | BI69: 10.94 | BK69: MOSUMT PC | BL69: 5.701 | BM69: 10.865 | BO69: MOSUMT PC | BP69: 5.544 | BQ69: 9.75 | BS69: MOSUMT PC | BT69: 17.411 | BU69: 31.555 | CD69: MOSUMT PC | CE69: 7.441 | CF69: 10.72 | CH69: MOSUMT PC | CI69: =VLOOKUP(CH69,CH$119:CI$203,2,FALSE) -> 6.337 | CJ69: 10.305 | CL69: MOSUMT PC | CM69: =VLOOKUP(CL69,CL$119:CM$203,2,FALSE) -> 7.034 | CN69: 10.577 | CP69: MOSUMT PC | CQ69: 20.812 | CR69: 31.602
A70: PDW1A1B PC | B70: 0.801 | C70: 0.825 | D70: 0.818 | E70: 0.786 | F70: 0.728 | G70: 0.774 | H70: 0.794 | I70: 0.79 | J70: 0.708 | K70: 0.778 | L70: 0.747 | M70: 0.769 | N70: 9.318 | R70: PDW1A1B PC | S70: =IFERROR(VLOOKUP(R70,$R$119:$S$213,2,FALSE),0) -> 0.194 | T70: =IFERROR(VLOOKUP(R70,$A$6:$M$123,2,FALSE),"") -> 0.801 | V70: PDW1A1B PC | W70: =IFERROR(VLOOKUP(V70,$V$119:$W$213,2,FALSE),0) -> 0 | X70: =IFERROR(VLOOKUP(V70,$A$6:$M$123,3,FALSE),"") -> 0.825 | Z70: PDW1A1B PC | AA70: =IFERROR(VLOOKUP(A70,$Z$119:$AA$213,2,FALSE),0) -> 0 | AB70: =IFERROR(VLOOKUP(Z70,$A$6:$M$123,4,FALSE),"") -> 0.818 | AD70: PDW1A1B PC | AE70: 0.194 | AF70: 2.444 | AL70: PDW1A1B PC | AM70: 0 | AN70: =IFERROR(VLOOKUP(AL70,$A$6:$M$123,5,FALSE),"") -> 0.786 | AP70: PDW1A1B PC | AQ70: 0 | AR70: =IFERROR(VLOOKUP($AP70,$A$6:$M$123,6,FALSE),"") -> 0.728 | AT70: PDW1A1B PC | AU70: 0.769 | AV70: =IFERROR(VLOOKUP($AT70,$A$6:$M$123,7,FALSE),"") -> 0.774 | AX70: PDW1A1B PC | AY70: 0.769 | AZ70: 2.288 | BG70: PDW1A1B PC | BH70: 0.856 | BI70: 0.794 | BK70: PDW1A1B PC | BL70: 1.914 | BM70: 0.79 | BO70: =A70 -> PDW1A1B PC | BP70: 0.399 | BQ70: =IFERROR(VLOOKUP($BO70,$A$6:$M$123,10,FALSE),0) -> 0.708 | BS70: =A70 -> PDW1A1B PC | BT70: 3.169 | BU70: 2.292 | CD70: =A70 -> PDW1A1B PC | CE70: 0.693 | CF70: 0.778 | CH70: =A70 -> PDW1A1B PC | CI70: =VLOOKUP(CH70,CH$119:CI$203,2,FALSE) -> 0.103 | CJ70: =IFERROR(VLOOKUP($A70,$A$6:$M$123,12,FALSE),"") -> 0.747 | CL70: =A70 -> PDW1A1B PC | CM70: =VLOOKUP(CL70,CL$119:CM$203,2,FALSE) -> 0.206 | CN70: =IFERROR(VLOOKUP($A70,$A$6:$M$123,13,FALSE),"") -> 0.769 | CP70: PDW1A1B PC | CQ70: 1.002 | CR70: 2.294
A71: PDW1AB MT PC | B71: 3.315 | C71: 3.407 | D71: 3.391 | E71: 3.267 | F71: 3.36 | G71: 3.234 | H71: 3.326 | I71: 3.311 | J71: 2.976 | K71: 3.28 | L71: 3.159 | M71: 3.249 | N71: =SUM(B71:M71) -> 39.275 | R71: PDW1AB MT PC | S71: 3.994 | T71: 3.315 | V71: PDW1AB MT PC | W71: 2.749 | X71: 3.407 | Z71: PDW1AB MT PC | AA71: 4.581 | AB71: 3.391 | AD71: PDW1AB MT PC | AE71: =SUM(S71,W71,AA71) -> 11.324 | AF71: =SUM(T71,X71,AB71) -> 10.113 | AL71: =AD71 -> PDW1AB MT PC | AM71: =IFERROR(VLOOKUP(AL71,$AL$119:$AM$209,2,FALSE),0) -> 3.108 | AN71: 3.267 | AP71: =AL71 -> PDW1AB MT PC | AQ71: =IFERROR(VLOOKUP(AP71,$AP$119:$AQ$218,2,FALSE),0) -> 4.725 | AR71: 3.36 | AT71: =AP71 -> PDW1AB MT PC | AU71: =IFERROR(VLOOKUP(AT71,$AT$119:$AU$211,2,FALSE),0) -> 4.843 | AV71: 3.234 | AX71: PDW1AB MT PC | AY71: 12.676 | AZ71: 9.861 | BG71: =AX71 -> PDW1AB MT PC | BH71: =IFERROR(VLOOKUP(BG71,$BG$119:$BH$211,2,FALSE),0) -> 3.85 | BI71: =IFERROR(VLOOKUP($BG71,$A$6:$M$123,8,FALSE),"") -> 3.326 | BK71: =BG71 -> PDW1AB MT PC | BL71: =IFERROR(VLOOKUP(BK71,$BK$119:$BL$211,2,FALSE),0) -> 3.953 | BM71: =IFERROR(VLOOKUP($BG71,$A$6:$M$123,9,FALSE),"") -> 3.311 | BO71: PDW1AB MT PC | BP71: =IFERROR(VLOOKUP($BO71,$BO$119:$BP$211,2,FALSE),0) -> 1.888 | BQ71: 2.976 | BS71: PDW1AB MT PC | BT71: =SUM(BH71,BL71,BP71) -> 9.691 | BU71: =SUM(BI71,BM71,BQ71) -> 9.613 | CD71: PDW1AB MT PC | CE71: 1.459 | CF71: =IFERROR(VLOOKUP($A71,$A$6:$M$123,11,FALSE),"") -> 3.28 | CH71: PDW1AB MT PC | CI71: =VLOOKUP(CH71,CH$119:CI$203,2,FALSE) -> 0.229 | CJ71: 3.159 | CL71: PDW1AB MT PC | CM71: =VLOOKUP(CL71,CL$119:CM$203,2,FALSE) -> 0.966 | CN71: 3.249 | CP71: PDW1AB MT PC | CQ71: 2.654 | CR71: 9.688
A72: PDWCUT PC | B72: 0.684 | C72: 0.704 | D72: 0.704 | E72: 0.678 | F72: 0.698 | G72: 0.672 | H72: 0.691 | I72: 0.688 | J72: 0.622 | K72: 0.685 | L72: 0.66 | M72: 0.679 | N72: 8.165 | R72: PDWCUT PC | S72: 0.686 | T72: 0.684 | V72: PDWCUT PC | W72: 0.034 | X72: 0.704 | Z72: PDWCUT PC | AA72: 0 | AB72: 0.704 | AD72: PDWCUT PC | AE72: 0.72 | AF72: 2.092 | AL72: PDWCUT PC | AM72: 0 | AN72: 0.678 | AP72: PDWCUT PC | AQ72: 0 | AR72: 0.698 | AT72: PDWCUT PC | AU72: 1.288 | AV72: 0.672 | AX72: =AT72 -> PDWCUT PC | AY72: =SUM(AM72,AQ72,AU72) -> 1.288 | AZ72: =SUM(AN72,AR72,AV72) -> 2.048 | BG72: PDWCUT PC | BH72: 1.604 | BI72: 0.691 | BK72: PDWCUT PC | BL72: 1.786 | BM72: 0.688 | BO72: PDWCUT PC | BP72: 0.24 | BQ72: 0.622 | BS72: PDWCUT PC | BT72: 3.63 | BU72: 2.001 | CD72: PDWCUT PC | CE72: 1.017 | CF72: 0.685 | CH72: PDWCUT PC | CI72: 0.092 | CJ72: 0.66 | CL72: PDWCUT PC | CM72: 0 | CN72: 0.679 | CP72: =CL72 -> PDWCUT PC | CQ72: =CE72+CI72+CM72 -> 1.109 | CR72: 2.024
A73: PDWPLT2 PC | B73: 5.124 | C73: 5.27 | D73: 5.245 | E73: 5.052 | F73: 5.196 | G73: 5.004 | H73: 5.146 | I73: 5.121 | J73: 4.606 | K73: 5.075 | L73: 4.887 | M73: 5.028 | N73: 60.754 | R73: =A73 -> PDWPLT2 PC | S73: 4.812 | T73: 5.124 | V73: =R73 -> PDWPLT2 PC | W73: 4.299 | X73: 5.27 | Z73: =R73 -> PDWPLT2 PC | AA73: 4.315 | AB73: 5.245 | AD73: =R73 -> PDWPLT2 PC | AE73: 13.426 | AF73: 15.639 | AL73: PDWPLT2 PC | AM73: 3.902 | AN73: 5.052 | AP73: PDWPLT2 PC | AQ73: 3.875 | AR73: 5.196 | AT73: PDWPLT2 PC | AU73: 5.079 | AV73: 5.004 | AX73: PDWPLT2 PC | AY73: 12.856 | AZ73: 15.252 | BG73: PDWPLT2 PC | BH73: 4.375 | BI73: 5.146 | BK73: PDWPLT2 PC | BL73: 3.588 | BM73: 5.121 | BO73: PDWPLT2 PC | BP73: 3.703 | BQ73: 4.606 | BS73: PDWPLT2 PC | BT73: 11.666 | BU73: 14.873 | CD73: PDWPLT2 PC | CE73: 5.15 | CF73: 5.075 | CH73: PDWPLT2 PC | CI73: =VLOOKUP(CH73,CH$119:CI$203,2,FALSE) -> 4.882 | CJ73: 4.887 | CL73: PDWPLT2 PC | CM73: =VLOOKUP(CL73,CL$119:CM$203,2,FALSE) -> 5.204 | CN73: 5.028 | CP73: PDWPLT2 PC | CQ73: 15.236 | CR73: 14.99
A74: PDWPLT3 PC | B74: 5.82 | C74: 5.298 | D74: 5.267 | E74: 5.067 | F74: 5.205 | G74: 5.007 | H74: 5.143 | I74: 5.112 | J74: 4.592 | K74: 5.053 | L74: 4.863 | M74: 4.994 | N74: 61.421 | R74: PDWPLT3 PC | S74: 5.491 | T74: 5.82 | V74: PDWPLT3 PC | W74: 4.09 | X74: 5.298 | Z74: PDWPLT3 PC | AA74: 5.828 | AB74: 5.267 | AD74: PDWPLT3 PC | AE74: 15.409 | AF74: 16.385 | AL74: PDWPLT3 PC | AM74: 4.326 | AN74: 5.067 | AP74: PDWPLT3 PC | AQ74: 5.002 | AR74: 5.205 | AT74: PDWPLT3 PC | AU74: 5.138 | AV74: 5.007 | AX74: PDWPLT3 PC | AY74: 14.466 | AZ74: 15.279 | BG74: PDWPLT3 PC | BH74: 4.842 | BI74: 5.143 | BK74: PDWPLT3 PC | BL74: 4.027 | BM74: 5.112 | BO74: PDWPLT3 PC | BP74: 3.837 | BQ74: 4.592 | BS74: PDWPLT3 PC | BT74: 12.706 | BU74: 14.847 | CD74: PDWPLT3 PC | CE74: 4.518 | CF74: 5.053 | CH74: PDWPLT3 PC | CI74: 4.245 | CJ74: 4.863 | CL74: PDWPLT3 PC | CM74: 5.402 | CN74: 4.994 | CP74: PDWPLT3 PC | CQ74: 14.165 | CR74: 14.91
A75: SGRLF PC | B75: 35.694 | C75: 36.661 | D75: 36.434 | E75: 35.046 | F75: 35.994 | G75: 34.62 | H75: 35.554 | I75: 35.337 | J75: 31.724 | K75: 34.909 | L75: 33.576 | M75: 34.484 | N75: 420.033 | R75: SGRLF PC | S75: 3.509 | T75: 35.694 | V75: SGRLF PC | W75: 0 | X75: 36.661 | Z75: SGRLF PC | AA75: 34.312 | AB75: 36.434 | AD75: SGRLF PC | AE75: 37.821 | AF75: 108.789 | AL75: SGRLF PC | AM75: 42.428 | AN75: 35.046 | AP75: SGRLF PC | AQ75: 40.835 | AR75: 35.994 | AT75: SGRLF PC | AU75: 38.25 | AV75: 34.62 | AX75: SGRLF PC | AY75: 121.513 | AZ75: 105.66 | BG75: SGRLF PC | BH75: 34.412 | BI75: 35.554 | BK75: SGRLF PC | BL75: 37.166 | BM75: 35.337 | BO75: SGRLF PC | BP75: 31.066 | BQ75: 31.724 | BS75: SGRLF PC | BT75: 102.644 | BU75: 102.615 | CD75: SGRLF PC | CE75: 33.59 | CF75: 34.909 | CH75: SGRLF PC | CI75: 34.68 | CJ75: 33.576 | CL75: SGRLF PC | CM75: 36.477 | CN75: 34.484 | CP75: SGRLF PC | CQ75: 104.747 | CR75: 102.969
A76: TRAIL PC | B76: 1.221 | C76: 1.252 | D76: 1.243 | E76: 1.197 | F76: 1.228 | G76: 1.179 | H76: 1.209 | I76: 1.203 | J76: 1.078 | K76: 1.184 | L76: 1.14 | M76: 1.169 | N76: 14.303 | R76: TRAIL PC | S76: 0.316 | T76: 1.221 | V76: TRAIL PC | W76: 0 | X76: 1.252 | Z76: TRAIL PC | AA76: 1.342 | AB76: 1.243 | AD76: TRAIL PC | AE76: 1.658 | AF76: 3.716 | AL76: TRAIL PC | AM76: 1.089 | AN76: 1.197 | AP76: TRAIL PC | AQ76: 1.067 | AR76: 1.228 | AT76: TRAIL PC | AU76: 1.04 | AV76: 1.179 | AX76: TRAIL PC | AY76: 3.196 | AZ76: 3.604 | BG76: TRAIL PC | BH76: 0.738 | BI76: 1.209 | BK76: TRAIL PC | BL76: 1.003 | BM76: 1.203 | BO76: TRAIL PC | BP76: 0.831 | BQ76: 1.078 | BS76: TRAIL PC | BT76: 2.572 | BU76: 3.49 | CD76: TRAIL PC | CE76: 1.064 | CF76: 1.184 | CH76: TRAIL PC | CI76: 0.888 | CJ76: 1.14 | CL76: TRAIL PC | CM76: 0.931 | CN76: 1.169 | CP76: TRAIL PC | CQ76: 2.883 | CR76: 3.493
A77: WHLA PC | B77: 9.486 | C77: 9.746 | D77: 9.688 | E77: 9.321 | F77: 9.576 | G77: 9.213 | H77: 9.464 | I77: 9.412 | J77: 8.45 | K77: 9.3 | L77: 8.949 | M77: 9.195 | N77: 111.8 | R77: WHLA PC | S77: 5.501 | T77: 9.486 | V77: WHLA PC | W77: 8.908 | X77: 9.746 | Z77: WHLA PC | AA77: 5.278 | AB77: 9.688 | AD77: WHLA PC | AE77: 19.687 | AF77: 28.92 | AL77: WHLA PC | AM77: 6.84 | AN77: 9.321 | AP77: WHLA PC | AQ77: 3.98 | AR77: 9.576 | AT77: WHLA PC | AU77: 5.04 | AV77: 9.213 | AX77: WHLA PC | AY77: 15.86 | AZ77: 28.11 | BG77: WHLA PC | BH77: 5.442 | BI77: 9.464 | BK77: WHLA PC | BL77: 7.052 | BM77: 9.412 | BO77: WHLA PC | BP77: 1.302 | BQ77: 8.45 | BS77: WHLA PC | BT77: 13.796 | BU77: 27.326 | CD77: WHLA PC | CE77: 1.751 | CF77: 9.3 | CH77: WHLA PC | CI77: 1.568 | CJ77: 8.949 | CL77: WHLA PC | CM77: 1.14 | CN77: 9.195 | CP77: WHLA PC | CQ77: 4.459 | CR77: 27.444
A78: WWILSON PC | B78: 10.461 | C78: 10.741 | D78: 10.67 | E78: 10.257 | F78: 10.531 | G78: 10.125 | H78: 10.394 | I78: 10.326 | J78: 9.265 | K78: 10.19 | L78: 9.798 | M78: 10.06 | N78: 122.818 | R78: WWILSON PC | S78: 2.768 | T78: 10.461 | V78: WWILSON PC | W78: 0.889 | X78: 10.741 | Z78: WWILSON PC | AA78: 7.436 | AB78: 10.67 | AD78: WWILSON PC | AE78: 11.093 | AF78: 31.872 | AL78: WWILSON PC | AM78: 6.498 | AN78: 10.257 | AP78: WWILSON PC | AQ78: 5.755 | AR78: 10.531 | AT78: WWILSON PC | AU78: 7.149 | AV78: 10.125 | AX78: WWILSON PC | AY78: 19.402 | AZ78: 30.913 | BG78: WWILSON PC | BH78: 9.676 | BI78: 10.394 | BK78: WWILSON PC | BL78: 8.023 | BM78: 10.326 | BO78: WWILSON PC | BP78: 4.961 | BQ78: 9.265 | BS78: WWILSON PC | BT78: 22.66 | BU78: 29.985 | CD78: WWILSON PC | CE78: 6 | CF78: 10.19 | CH78: WWILSON PC | CI78: 8.478 | CJ78: 9.798 | CL78: WWILSON PC | CM78: 7.543 | CN78: 10.06 | CP78: WWILSON PC | CQ78: 22.021 | CR78: 30.048
A79: MOSU MT | B79: 0.492 | C79: 0.505 | D79: 0.502 | E79: 20.499 | F79: 17.853 | G79: 15.159 | H79: 14.093 | I79: 12.893 | J79: 10.786 | K79: 11.163 | L79: 10.173 | M79: 9.957 | N79: 124.075 | R79: MOSU MT | S79: 0.362 | T79: 0.492 | V79: MOSU MT | W79: 0.624 | X79: 0.505 | Z79: MOSU MT | AA79: 0.703 | AB79: 0.502 | AD79: MOSU MT | AE79: 1.689 | AF79: 1.499 | AL79: MOSU MT | AM79: 0.78 | AN79: 20.499 | AP79: MOSU MT | AQ79: 1.201 | AR79: 17.853 | AT79: MOSU MT | AU79: 1.216 | AV79: 15.159 | AX79: MOSU MT | AY79: 3.197 | AZ79: 53.511 | BG79: MOSU MT | BH79: 0.529 | BI79: 14.093 | BK79: MOSU MT | BL79: 0.235 | BM79: 12.893 | BO79: MOSU MT | BP79: 0.477 | BQ79: 10.786 | BS79: MOSU MT | BT79: 1.241 | BU79: 37.772 | CD79: MOSU MT | CE79: 0.412 | CF79: 11.163 | CH79: MOSU MT | CI79: 0.652 | CJ79: 10.173 | CL79: MOSU MT | CM79: 0.336 | CN79: 9.957 | CP79: MOSU MT | CQ79: 1.4 | CR79: 31.293
A80: PDW1A1B D21 | B80: 0.525 | C80: 0.539 | D80: 0.536 | E80: 0.516 | F80: 0.53 | G80: 0.507 | H80: 0.521 | I80: 0.518 | J80: 0.465 | K80: 0.512 | L80: 0.492 | M80: 0.502 | N80: 6.163 | R80: PDW1A1B D21 | S80: 0.855 | T80: 0.525 | V80: PDW1A1B D21 | W80: 0.108 | X80: =IFERROR(VLOOKUP(V80,$A$6:$M$123,3,FALSE),"") -> 0.539 | Z80: PDW1A1B D21 | AA80: 0.477 | AB80: 0.536 | AD80: PDW1A1B D21 | AE80: 1.44 | AF80: =SUM(T80,X81,AB80) -> 1.061 | AL80: PDW1A1B D21 | AM80: 0.023 | AN80: 0.516 | AP80: PDW1A1B D21 | AQ80: 0 | AR80: 0.53 | AT80: PDW1A1B D21 | AU80: 0.769 | AV80: 0.507 | AX80: PDW1A1B D21 | AY80: =SUM(AM80,AQ80,AU80) -> 0.792 | AZ80: =SUM(AN80,AR80,AV80) -> 1.553 | BG80: PDW1A1B D21 | BH80: 0.543 | BI80: 0.521 | BK80: PDW1A1B D21 | BL80: 0.156 | BM80: 0.518 | BO80: =A80 -> PDW1A1B D21 | BP80: 0.055 | BQ80: 0.465 | BS80: =A80 -> PDW1A1B D21 | BT80: 0.754 | BU80: 1.504 | CD80: PDW1A1B D21 | CE80: 0.187 | CF80: 0.512 | CH80: PDW1A1B D21 | CI80: 0.047 | CJ80: 0.492 | CL80: PDW1A1B D21 | CM80: 0.035 | CN80: 0.502 | CP80: PDW1A1B D21 | CQ80: 0.269 | CR80: 1.506
A81: NBXCAMP PC | R81: NBXCAMP PC | S81: 0 | T81: 0 | V81: NBXCAMP PC | W81: 0 | X81: 0 | Z81: NBXCAMP PC | AA81: 5.376 | AB81: 0 | AD81: NBXCAMP PC | AL81: NBXCAMP PC | AM81: 4.286 | AN81: 0 | AP81: NBXCAMP PC | AQ81: 4.2 | AR81: 0 | AT81: NBXCAMP PC | AU81: 4.201 | AV81: 0 | AX81: NBXCAMP PC | AY81: 12.687 | AZ81: 0 | BG81: NBXCAMP PC | BH81: 3.497 | BI81: 0 | BK81: NBXCAMP PC | BL81: 0 | BM81: 0 | BO81: NBXCAMP PC | BP81: 0 | BQ81: 0 | BS81: NBXCAMP PC | BT81: 3.497 | BU81: 0 | CD81: NBXCAMP PC | CE81: 0 | CF81: 0 | CH81: NBXCAMP PC | CI81: 0 | CJ81: 0 | CL81: NBXCAMP PC | CM81: 0 | CN81: 0 | CP81: NBXCAMP PC | CQ81: 0 | CR81: 0
A82: NOBXFLD PC | R82: NOBXFLD PC | S82: 0.145 | T82: 0 | V82: NOBXFLD PC | W82: 0 | X82: =IFERROR(VLOOKUP(V82,$A$6:$M$123,3,FALSE),"") -> 0 | Z82: NOBXFLD PC | AA82: 5.467 | AB82: 0 | AD82: NOBXFLD PC | AL82: NOBXFLD PC | AM82: 3.1 | AN82: 0 | AP82: NOBXFLD PC | AQ82: 4.703 | AR82: 0 | AT82: NOBXFLD PC | AU82: 3.836 | AV82: 0 | AX82: NOBXFLD PC | AY82: 11.639 | AZ82: 0 | BG82: NOBXFLD PC | BH82: 1.137 | BI82: 0 | BK82: NOBXFLD PC | BL82: 0 | BM82: 0 | BO82: NOBXFLD PC | BP82: 0 | BQ82: 0 | BS82: NOBXFLD PC | BT82: 1.137 | BU82: 0 | CD82: NOBXFLD PC | CE82: 0 | CF82: 0 | CH82: NOBXFLD PC | CI82: =VLOOKUP(CH82,CH$119:CI$203,2,FALSE) -> 0 | CJ82: 0 | CL82: NOBXFLD PC | CM82: =VLOOKUP(CL82,CL$119:CM$203,2,FALSE) -> 0 | CN82: 0 | CP82: NOBXFLD PC | CQ82: 0 | CR82: 0
A83: Legacy Total | B83: =SUM(B6:B80) -> 2754.771 | C83: 2820.299 | D83: 2833.23 | E83: 2695.62 | F83: 2820.343 | G83: 2911.029 | H83: 2978.984 | I83: 2950.805 | J83: 2640.239 | K83: 2895.417 | L83: 2577.645 | M83: =SUM(M6:M80) -> 2639.342 | N83: =SUM(N6:N80) -> 33517.724 | R83: =A83 -> Legacy Total | S83: =SUM(S6:S82) -> 2751.576 | T83: =SUM(T6:T79) -> 2754.246 | V83: =R83 -> Legacy Total | W83: =SUM(W6:W79) -> 2698.981 | X83: =SUM(X6:X82) -> 2820.299 | Z83: Legacy Total | AA83: =SUM(AA6:AA82) -> 2748.899 | AB83: =SUM(AB6:AB79) -> 2832.694 | AD83: Legacy Total | AE83: =SUM(AE6:AE82) -> 8188.576 | AF83: =SUM(AF6:AF79) -> 8406.7 | AL83: Legacy Total | AM83: =SUM(AM6:AM82) -> 2698.897 | AN83: =SUM(AN6:AN82) -> 2695.62 | AP83: Legacy Total | AQ83: =SUM(AQ6:AQ82) -> 2796.806 | AR83: =SUM(AR6:AR82) -> 2820.343 | AT83: Legacy Total | AU83: =SUM(AU6:AU82) -> 2690.514 | AV83: =SUM(AV6:AV82) -> 2911.029 | AX83: =AT83 -> Legacy Total | AY83: =SUM(AM83,AQ83,AU83) -> 8186.217 | AZ83: 8426.992 | BG83: =AX83 -> Legacy Total | BH83: =SUM(BH6:BH82) -> 2783.002 | BI83: =SUM(BI6:BI82) -> 2978.984 | BK83: Legacy Total | BL83: =SUM(BL6:BL82) -> 2722.515 | BM83: =SUM(BM6:BM82) -> 2950.805 | BO83: =BK83 -> Legacy Total | BP83: =SUM(BP6:BP82) -> 2432.331 | BQ83: =SUM(BQ6:BQ82) -> 2640.239 | BS83: =BO83 -> Legacy Total | BT83: =SUM(BT6:BT82) -> 7937.848 | BU83: =SUM(BU6:BU82) -> 8570.028 | CD83: Legacy Total | CE83: =SUM(CE6:CE82) -> 2631.4064 | CF83: =SUM(CF6:CF82) -> 2862.5074 | CH83: Legacy Total | CI83: =SUM(CI6:CI82) -> 2699.3324 | CJ83: =SUM(CJ6:CJ82) -> 2546.181 | CL83: Legacy Total | CM83: =SUM(CM6:CM82) -> 2717.7584 | CN83: =SUM(CN6:CN82) -> 2607.2132 | CP83: Legacy Total | CQ83: 8048.4972 | CR83: 8015.9016
X84: =IFERROR(VLOOKUP(V84,$A$6:$M$123,3,FALSE),"") ->  | AB84: =IFERROR(VLOOKUP(Z84,$A$6:$M$123,4,FALSE),"") ->  | BM84: =IFERROR(VLOOKUP($BK84,$A$6:$M$123,9,FALSE),"") ->  | CJ84: =IFERROR(VLOOKUP($A84,$A$6:$M$123,12,FALSE),"") ->  | CN84: =IFERROR(VLOOKUP($A84,$A$6:$M$123,13,FALSE),"") -> 
A85: Wexpro I | B85: =B5 -> 2021-06-01 | C85: 2021-07-01 | D85: 2021-08-01 | E85: 2021-09-01 | F85: 2021-10-01 | G85: 2021-11-01 | H85: 2021-12-01 | I85: 2022-01-01 | J85: 2022-02-01 | K85: 2022-03-01 | L85: 2022-04-01 | M85: 2022-05-01 | N85: Total | R85: =A85 -> Wexpro I | V85: =R85 -> Wexpro I | Z85: =R85 -> Wexpro I | AD85: =R85 -> Wexpro I | AL85: Wexpro I | AP85: Wexpro I | AT85: Wexpro I | AX85: =AL85 -> Wexpro I | BG85: =AX85 -> Wexpro I | BK85: =BG85 -> Wexpro I | BO85: =BK85 -> Wexpro I | BS85: =BO85 -> Wexpro I | CD85: Wexpro I | CH85: Wexpro I | CL85: Wexpro I | CP85: Wexpro I
A86: CCRUNIT D8 | B86: 183 | C86: 185.346 | D86: 181.796 | E86: 172.683 | F86: 175.252 | G86: 166.665 | H86: 169.337 | I86: 166.582 | J86: 148.084 | K86: 161.432 | L86: 153.891 | M86: 156.705 | N86: =SUM(B86:M86) -> 2020.773 | R86: CCRUNIT D8 | S86: =IFERROR(VLOOKUP(R86,$R$119:$S$213,2,FALSE),0) -> 177.079 | T86: =IFERROR(VLOOKUP(R86,$A$6:$M$123,2,FALSE),"") -> 183 | V86: CCRUNIT D8 | W86: =IFERROR(VLOOKUP(V86,$V$119:$W$213,2,FALSE),0) -> 179.785 | X86: =IFERROR(VLOOKUP(V86,$A$6:$M$123,3,FALSE),"") -> 185.346 | Z86: CCRUNIT D8 | AA86: =IFERROR(VLOOKUP(Z86,$Z$119:$AA$213,2,FALSE),0) -> 182.43 | AB86: =IFERROR(VLOOKUP(Z86,$A$6:$M$123,4,FALSE),"") -> 181.796 | AD86: CCRUNIT D8 | AE86: =SUM(S86,W86,AA86) -> 539.294 | AF86: =SUM(T86,X86,AB86) -> 550.142 | AL86: CCRUNIT D8 | AM86: 178.714 | AN86: 172.683 | AP86: CCRUNIT D8 | AQ86: 166.932 | AR86: 175.252 | AT86: CCRUNIT D8 | AU86: 146.56 | AV86: 166.665 | AX86: CCRUNIT D8 | AY86: =SUM(AM86,AQ86,AU86) -> 492.206 | AZ86: =SUM(AN86,AR86,AV86) -> 514.6 | BG86: =AX86 -> CCRUNIT D8 | BH86: =IFERROR(VLOOKUP(BG86,$BG$119:$BH$211,2,FALSE),0) -> 156.335 | BI86: =IFERROR(VLOOKUP($AT86,$A$6:$M$123,8,FALSE),"") -> 169.337 | BK86: =BG86 -> CCRUNIT D8 | BL86: =IFERROR(VLOOKUP($BK86,$BK$119:$BL$211,2,FALSE),0) -> 144.887 | BM86: =IFERROR(VLOOKUP($BK86,$A$6:$M$123,9,FALSE),"") -> 166.582 | BO86: =BK86 -> CCRUNIT D8 | BP86: =IFERROR(VLOOKUP($BO86,$BO$119:$BP$211,2,FALSE),0) -> 132.106 | BQ86: =IFERROR(VLOOKUP($BO86,$A$6:$M$123,10,FALSE),0) -> 148.084 | BS86: =BO86 -> CCRUNIT D8 | BT86: =SUM(BH86,BL86,BP86) -> 433.328 | BU86: =SUM(BI86,BM86,BQ86) -> 484.003 | CD86: CCRUNIT D8 | CE86: =VLOOKUP(CD86,CD$119:CE$203,2,FALSE) -> 142.557 | CF86: =IFERROR(VLOOKUP($A86,$A$6:$M$123,11,FALSE),"") -> 161.432 | CH86: CCRUNIT D8 | CI86: =VLOOKUP(CH86,CH$119:CI$203,2,FALSE) -> 148.119 | CJ86: 153.891 | CL86: CCRUNIT D8 | CM86: =VLOOKUP(CL86,CL$119:CM$203,2,FALSE) -> 139.357 | CN86: 156.705 | CP86: CCRUNIT D8 | CQ86: 430.033 | CR86: 472.028
A87: KNY FLD D8 | B87: 26.991 | C87: 26.992 | D87: 26.158 | E87: 24.564 | F87: 24.664 | G87: 23.214 | H87: 23.358 | I87: 22.766 | J87: 20.059 | K87: 21.681 | L87: 20.499 | M87: 20.714 | N87: =SUM(B87:M87) -> 281.66 | R87: KNY FLD D8 | S87: =IFERROR(VLOOKUP(R87,$R$119:$S$213,2,FALSE),0) -> 22.486 | T87: =IFERROR(VLOOKUP(R87,$A$6:$M$123,2,FALSE),"") -> 26.991 | V87: KNY FLD D8 | W87: =IFERROR(VLOOKUP(V87,$V$119:$W$213,2,FALSE),0) -> 23.906 | X87: =IFERROR(VLOOKUP(V87,$A$6:$M$123,3,FALSE),"") -> 26.992 | Z87: KNY FLD D8 | AA87: =IFERROR(VLOOKUP(Z87,$Z$119:$AA$213,2,FALSE),0) -> 19.582 | AB87: =IFERROR(VLOOKUP(Z87,$A$6:$M$123,4,FALSE),"") -> 26.158 | AD87: KNY FLD D8 | AE87: =SUM(S87,W87,AA87) -> 65.974 | AF87: =SUM(T87,X87,AB87) -> 80.141 | AL87: KNY FLD D8 | AM87: 16.765 | AN87: 24.564 | AP87: KNY FLD D8 | AQ87: 16.718 | AR87: 24.664 | AT87: KNY FLD D8 | AU87: 1.104 | AV87: 23.214 | AX87: KNY FLD D8 | AY87: =SUM(AM87,AQ87,AU87) -> 34.587 | AZ87: =SUM(AN87,AR87,AV87) -> 72.442 | BG87: KNY FLD D8 | BH87: =IFERROR(VLOOKUP(BG87,$BG$119:$BH$211,2,FALSE),0) -> 0 | BI87: =IFERROR(VLOOKUP($AT87,$A$6:$M$123,8,FALSE),"") -> 23.358 | BK87: KNY FLD D8 | BL87: =IFERROR(VLOOKUP($BK87,$BK$119:$BL$211,2,FALSE),0) -> 0 | BM87: =IFERROR(VLOOKUP($BK87,$A$6:$M$123,9,FALSE),"") -> 22.766 | BO87: KNY FLD D8 | BP87: =IFERROR(VLOOKUP($BO87,$BO$119:$BP$211,2,FALSE),0) -> 0 | BQ87: 20.059 | BS87: KNY FLD D8 | BT87: =SUM(BH87,BL87,BP87) -> 0 | BU87: =SUM(BI87,BM87,BQ87) -> 66.183 | CD87: KNY FLD D8 | CE87: 0 | CF87: =IFERROR(VLOOKUP($A87,$A$6:$M$123,11,FALSE),"") -> 21.681 | CH87: KNY FLD D8 | CI87: 0 | CJ87: 20.499 | CL87: KNY FLD D8 | CM87: 0 | CN87: 20.714 | CP87: KNY FLD D8 | CQ87: 0 | CR87: 62.894
A88: MESA D8 | B88: 518.673 | C88: 519.107 | D88: 503.756 | E88: 473.868 | F88: 476.65 | G88: 510.3 | H88: 516.045 | I88: 504.02 | J88: 445.211 | K88: 482.549 | L88: 457.587 | M88: 463.71 | N88: 5871.476 | R88: MESA D8 | S88: =IFERROR(VLOOKUP(R88,$R$119:$S$213,2,FALSE),0)+S211 -> 465.229 | T88: =IFERROR(VLOOKUP(R88,$A$6:$M$123,2,FALSE),"") -> 518.673 | V88: MESA D8 | W88: =IFERROR(VLOOKUP(V88,$V$119:$W$213,2,FALSE),0)+W199 -> 467.178 | X88: =IFERROR(VLOOKUP(V88,$A$6:$M$123,3,FALSE),"") -> 519.107 | Z88: MESA D8 | AA88: =IFERROR(VLOOKUP(Z88,$Z$119:$AA$213,2,FALSE),0)+AA209 -> 440.42 | AB88: =IFERROR(VLOOKUP(Z88,$A$6:$M$123,4,FALSE),"") -> 503.756 | AD88: MESA D8 | AE88: =SUM(S88,W88,AA88) -> 1372.827 | AF88: 1541.536 | AL88: MESA D8 | AM88: =IFERROR(VLOOKUP(AL88,$AL$119:$AM$209,2,FALSE),0)+AM207 -> 426.018 | AN88: 473.868 | AP88: MESA D8 | AQ88: =IFERROR(VLOOKUP(AP88,$AP$119:$AQ$218,2,FALSE),0)+AQ204 -> 430.91 | AR88: 476.65 | AT88: MESA D8 | AU88: =IFERROR(VLOOKUP(AT88,$AT$119:$AU$211,2,FALSE),0)+AU210 -> 412.712 | AV88: 510.3 | AX88: MESA D8 | AY88: 1269.64 | AZ88: 1460.818 | BG88: MESA D8 | BH88: 409.735 | BI88: 516.045 | BK88: MESA D8 | BL88: 316.196 | BM88: 504.02 | BO88: MESA D8 | BP88: 287.474 | BQ88: 445.211 | BS88: MESA D8 | BT88: 1013.405 | BU88: 1465.276 | CD88: MESA D8 | CE88: =VLOOKUP(CD88,CD$119:CE$203,2,FALSE) -> 305.798 | CF88: 482.549 | CH88: MESA D8 | CI88: =VLOOKUP(CH88,CH$119:CI$203,2,FALSE) -> 282.161 | CJ88: 457.587 | CL88: MESA D8 | CM88: =VLOOKUP(CL88,CL$119:CM$203,2,FALSE) -> 285.139 | CN88: 463.71 | CP88: MESA D8 | CQ88: 873.098 | CR88: 1403.846
A89: CCRUNIT MT | B89: 18.435 | C89: 18.783 | D89: 13.451 | E89: 12.84 | F89: 13.094 | G89: 17.415 | H89: 17.763 | I89: 17.537 | J89: 15.641 | K89: 17.106 | L89: 16.356 | M89: 16.7 | N89: 195.121 | R89: =A89 -> CCRUNIT MT | S89: 0 | T89: =IFERROR(VLOOKUP(R89,$A$86:$M$123,2,FALSE),"") -> 18.435 | V89: CCRUNIT MT | W89: 0 | X89: =IFERROR(VLOOKUP(V89,$A$85:$M$123,3,FALSE),"") -> 18.783 | Z89: CCRUNIT MT | AA89: 0 | AB89: =IFERROR(VLOOKUP(Z89,$A$85:$M$123,4,FALSE),"") -> 13.451 | AD89: CCRUNIT MT | AE89: 0 | AF89: 50.669 | AL89: CCRUNIT MT | AM89: 0 | AN89: 30.879 | AP89: CCRUNIT MT | AQ89: 0 | AR89: 31.487 | AT89: CCRUNIT MT | AU89: 0 | AV89: 41.877 | AX89: CCRUNIT MT | AY89: 0 | AZ89: 104.243 | BG89: CCRUNIT MT | BH89: 0 | BI89: 42.712 | BK89: CCRUNIT MT | BL89: 0 | BM89: 42.172 | BO89: CCRUNIT MT | BP89: 0 | BQ89: 37.615 | BS89: CCRUNIT MT | BT89: 0 | BU89: 122.499 | CD89: CCRUNIT MT | CE89: =VLOOKUP(CD89,CD$119:CE$203,2,FALSE)*0.8 -> 45.5936 | CF89: =IFERROR(VLOOKUP($A89,$A$6:$M$123,11,FALSE),"")*0.8 -> 32.9096 | CH89: CCRUNIT MT | CI89: =VLOOKUP(CH89,CH$119:CI$203,2,FALSE)*0.8 -> 45.8336 | CJ89: =IFERROR(VLOOKUP($A89,$A$6:$M$123,12,FALSE),"")*0.8 -> 31.464 | CL89: CCRUNIT MT | CM89: =VLOOKUP(CL89,CL$119:CM$203,2,FALSE)*0.8 -> 44.6456 | CN89: =IFERROR(VLOOKUP($A89,$A$6:$M$123,13,FALSE),"")*0.2 -> 8.0322 | CP89: CCRUNIT MT | CQ89: 136.0728 | CR89: 72.4058
A90: TRAIL D8 | B90: 111.033 | C90: 110.769 | D90: 97.104 | E90: 91.131 | F90: 91.54 | G90: 96.177 | H90: 97.101 | I90: 94.999 | J90: 84.048 | K90: 91.236 | L90: 86.649 | M90: 87.941 | N90: 1139.728 | R90: TRAIL D8 | S90: =IFERROR(VLOOKUP(R90,$R$119:$S$213,2,FALSE),0)+S209 -> 162.487 | T90: =IFERROR(VLOOKUP(R90,$A$6:$M$123,2,FALSE),"") -> 111.033 | V90: TRAIL D8 | W90: =IFERROR(VLOOKUP(V90,$V$119:$W$213,2,FALSE),0)+W197 -> 159.231 | X90: =IFERROR(VLOOKUP(V90,$A$6:$M$123,3,FALSE),"") -> 110.769 | Z90: TRAIL D8 | AA90: =IFERROR(VLOOKUP(Z90,$Z$119:$AA$213,2,FALSE),0)+AA207 -> 187.679 | AB90: =IFERROR(VLOOKUP(Z90,$A$6:$M$123,4,FALSE),"") -> 97.104 | AD90: TRAIL D8 | AE90: 509.397 | AF90: 318.906 | AL90: TRAIL D8 | AM90: =IFERROR(VLOOKUP(AL90,$AL$119:$AM$209,2,FALSE),0)+AM209+AM208+AM205 -> 170.816 | AN90: 91.131 | AP90: TRAIL D8 | AQ90: =IFERROR(VLOOKUP(AP90,$AP$119:$AQ$218,2,FALSE),0)+AQ205+AQ202 -> 179.702 | AR90: 91.54 | AT90: TRAIL D8 | AU90: =IFERROR(VLOOKUP(AT90,$AT$119:$AU$211,2,FALSE),0)+AU211+AU208 -> 172.444 | AV90: 96.177 | AX90: TRAIL D8 | AY90: =SUM(AM90,AQ90,AU90) -> 522.962 | AZ90: =SUM(AN90,AR90,AV90) -> 278.848 | BG90: TRAIL D8 | BH90: =IFERROR(VLOOKUP(BG90,$BG$119:$BH$211,2,FALSE),0)+BH209 -> 247.72 | BI90: 97.101 | BK90: TRAIL D8 | BL90: =IFERROR(VLOOKUP($BK90,$BK$119:$BL$211,2,FALSE),0)+BL209 -> 241.707 | BM90: 94.999 | BO90: TRAIL D8 | BP90: =IFERROR(VLOOKUP($BO90,$BO$119:$BP$211,2,FALSE),0)+BP209 -> 227.32 | BQ90: 84.048 | BS90: TRAIL D8 | BT90: 716.747 | BU90: 276.148 | CD90: TRAIL D8 | CE90: =VLOOKUP(CD90,CD$119:CE$203,2,FALSE) -> 231.575 | CF90: 91.236 | CH90: TRAIL D8 | CI90: =VLOOKUP(CH90,CH$119:CI$203,2,FALSE) -> 221.677 | CJ90: 86.649 | CL90: TRAIL D8 | CM90: =VLOOKUP(CL90,CL$119:CM$203,2,FALSE) -> 232.281 | CN90: 87.941 | CP90: TRAIL D8 | CQ90: 685.533 | CR90: 265.826
A91: z21 CCRK D8 | B91: 0 | C91: 0 | D91: 0 | E91: 0 | F91: 0 | G91: 55.965 | H91: 57.831 | I91: 57.831 | J91: 52.234 | K91: 50.927 | L91: 43.989 | M91: 41.239 | N91: 360.016 | R91: z21 CCRK D8 | S91: =IFERROR(VLOOKUP(R91,$R$119:$S$213,2,FALSE),0) -> 0 | T91: =IFERROR(VLOOKUP(R91,$A$6:$M$123,2,FALSE),"") -> 0 | V91: z21 CCRK D8 | W91: 0 | X91: =IFERROR(VLOOKUP(V91,$A$6:$M$123,3,FALSE),"") -> 0 | Z91: z21 CCRK D8 | AA91: =IFERROR(VLOOKUP(Z91,$Z$119:$AA$213,2,FALSE),0) -> 0 | AB91: =IFERROR(VLOOKUP(Z91,$A$6:$M$123,4,FALSE),"") -> 0 | AD91: z21 CCRK D8 | AE91: 0 | AF91: 0 | AL91: z21 CCRK D8 | AM91: 0 | AN91: 0 | AP91: z21 CCRK D8 | AQ91: 0 | AR91: 0 | AT91: z21 CCRK D8 | AU91: 0 | AV91: 55.965 | AX91: z21 CCRK D8 | BG91: z21 CCRK D8 | BH91: 0 | BI91: 57.831 | BK91: z21 CCRK D8 | BL91: 0 | BM91: 57.831 | BO91: z21 CCRK D8 | BP91: 0 | BQ91: 52.234 | BS91: z21 CCRK D8 | BT91: 0 | BU91: 167.896 | CD91: z21 CCRK D8 | CE91: =VLOOKUP(CD91,CD$119:CE$210,2,FALSE) -> 81.712 | CF91: 50.927 | CH91: z21 CCRK D8 | CI91: =VLOOKUP(CH91,CH$119:CI$210,2,FALSE) -> 75.274 | CJ91: 43.989 | CL91: z21 CCRK D8 | CM91: =VLOOKUP(CL91,CL$119:CM$210,2,FALSE) -> 76.588 | CN91: 41.239 | CP91: z21 CCRK D8 | CQ91: 233.574 | CR91: 136.155
A92: z21 TRAIL D8 | B92: 0 | C92: 0 | D92: 0 | E92: 0 | F92: 0 | G92: 91.053 | H92: 94.088 | I92: 94.088 | J92: 84.983 | K92: 91.912 | L92: 87.279 | M92: 88.858 | N92: 632.261 | R92: z21 TRAIL D8 | S92: =IFERROR(VLOOKUP(R92,$R$119:$S$213,2,FALSE),0) -> 0 | T92: =IFERROR(VLOOKUP(R92,$A$6:$M$123,2,FALSE),"") -> 0 | V92: z21 TRAIL D8 | W92: 0 | X92: =IFERROR(VLOOKUP(V92,$A$6:$M$123,3,FALSE),"") -> 0 | Z92: z21 TRAIL D8 | AA92: =IFERROR(VLOOKUP(Z92,$Z$119:$AA$213,2,FALSE),0) -> 0 | AB92: =IFERROR(VLOOKUP(Z92,$A$6:$M$123,4,FALSE),"") -> 0 | AD92: z21 TRAIL D8 | AE92: 0 | AF92: 0 | AL92: z21 TRAIL D8 | AM92: 0 | AN92: 0 | AP92: z21 TRAIL D8 | AQ92: 0 | AR92: 0 | AT92: z21 TRAIL D8 | AU92: 0 | AV92: 91.053 | AX92: z21 TRAIL D8 | AY92: 0 | AZ92: 91.053 | BG92: z21 TRAIL D8 | BH92: 0 | BI92: 94.088 | BK92: z21 TRAIL D8 | BL92: 0 | BM92: 94.088 | BO92: z21 TRAIL D8 | BP92: 0 | BQ92: 84.983 | BS92: z21 TRAIL D8 | BT92: 0 | BU92: 273.159 | CD92: z21 TRAIL D8 | CE92: =VLOOKUP(CD92,CD$119:CE$210,2,FALSE) -> 106.628 | CF92: 91.912 | CH92: z21 TRAIL D8 | CI92: =VLOOKUP(CH92,CH$119:CI$210,2,FALSE) -> 89.604 | CJ92: 87.279 | CL92: z21 TRAIL D8 | CM92: =VLOOKUP(CL92,CL$119:CM$210,2,FALSE) -> 51.054 | CN92: 88.858 | CP92: z21 TRAIL D8 | CQ92: 247.286 | CR92: 268.049
A93: Wexpro I Total | B93: =SUM(B86:B92) -> 858.132 | C93: 860.997 | D93: 822.265 | E93: 775.086 | F93: 781.2 | G93: 960.789 | H93: 975.523 | I93: 957.823 | J93: 850.26 | K93: 916.843 | L93: 866.25 | M93: =SUM(M86:M92) -> 875.867 | N93: =SUM(N86:N92) -> 10501.035 | R93: Wexpro l Total | S93: =SUM(S86:S92) -> 827.281 | T93: =SUM(T86:T92) -> 858.132 | V93: Wexpro l Total | W93: =SUM(W86:W92) -> 830.1 | X93: =SUM(X86:X92) -> 860.997 | Z93: Wexpro l Total | AA93: =SUM(AA86:AA92) -> 830.111 | AB93: =SUM(AB86:AB92) -> 822.265 | AD93: Wexpro l Total | AE93: 582.763 | AF93: 840.7417049 | AL93: Wexpro l Total | AM93: =SUM(AM86:AM92) -> 792.313 | AN93: =SUM(AN86:AN92) -> 793.125 | AP93: Wexpro l Total | AQ93: =SUM(AQ86:AQ92) -> 794.262 | AR93: =SUM(AR86:AR92) -> 799.593 | AT93: Wexpro l Total | AU93: =SUM(AU86:AU92) -> 732.82 | AV93: =SUM(AV86:AV92) -> 985.251 | AX93: Wexpro l Total | AY93: =SUM(AM93,AQ93,AU93) -> 2319.395 | AZ93: =SUM(AN93,AR93,AV93) -> 2577.969 | BG93: Wexpro l Total | BH93: =SUM(BH86:BH92) -> 813.79 | BI93: =SUM(BI86:BI92) -> 1000.472 | BK93: Wexpro l Total | BL93: =SUM(BL86:BL92) -> 702.79 | BM93: =SUM(BM86:BM92) -> 982.458 | BO93: Wexpro l Total | BP93: =SUM(BP86:BP92) -> 646.9 | BQ93: =SUM(BQ86:BQ92) -> 872.234 | BS93: Wexpro l Total | BT93: =SUM(BH93,BL93,BP93) -> 2163.48 | BU93: =SUM(BI93,BM93,BQ93) -> 2855.164 | CD93: Wexpro I Total | CE93: =SUM(CE86:CE92) -> 913.8636 | CF93: =SUM(CF86:CF92) -> 932.6466 | CH93: Wexpro I Total | CI93: =SUM(CI86:CI92) -> 862.6686 | CJ93: =SUM(CJ86:CJ92) -> 881.358 | CL93: Wexpro I Total | CM93: =SUM(CM86:CM92) -> 829.0646 | CN93: =SUM(CN86:CN92) -> 867.1992 | CP93: Wexpro I Total | CQ93: 2605.5968 | CR93: 2681.2038
A95: Wexpro II | B95: =B5 -> 2021-06-01 | C95: 2021-07-01 | D95: 2021-08-01 | E95: 2021-09-01 | F95: 2021-10-01 | G95: 2021-11-01 | H95: 2021-12-01 | I95: 2022-01-01 | J95: 2022-02-01 | K95: 2022-03-01 | L95: 2022-04-01 | M95: 2022-05-01 | N95: =N85 -> Total | R95: =A95 -> Wexpro II | V95: Wexpro II | Z95: Wexpro II | AD95: =V95 -> Wexpro II | AL95: Wexpro II | AP95: Wexpro II | AT95: Wexpro II | BG95: =AT95 -> Wexpro II | BK95: =BG95 -> Wexpro II | BO95: =BK95 -> Wexpro II | CD95: Wexpro II | CH95: Wexpro II | CL95: Wexpro II | CP95: Wexpro II
A96: CCOPA 2E | B96: 3.813 | C96: 3.922 | D96: 3.903 | E96: 3.759 | F96: 3.866 | G96: 3.723 | H96: 3.829 | I96: 3.81 | J96: 3.427 | K96: 3.776 | L96: 3.636 | M96: 3.739 | N96: =SUM(B96:M96) -> 45.203 | R96: =A96 -> CCOPA 2E | S96: =IFERROR(VLOOKUP(R96,$R$119:$S$213,2,FALSE),0) -> 3.561 | T96: =IFERROR(VLOOKUP(R96,$A$6:$M$123,2,FALSE),"") -> 3.813 | V96: CCOPA 2E | W96: =IFERROR(VLOOKUP(V96,$V$119:$W$213,2,FALSE),0) -> 2.899 | X96: =IFERROR(VLOOKUP(V96,$A$6:$M$123,3,FALSE),"") -> 3.922 | Z96: =R96 -> CCOPA 2E | AA96: =IFERROR(VLOOKUP(Z96,$Z$119:$AA$211,2,FALSE),0) -> 3.108 | AB96: =IFERROR(VLOOKUP(Z96,$A$6:$M$123,4,FALSE),"") -> 3.903 | AD96: CCOPA 2E | AE96: =SUM(S96,W96,AA96) -> 9.568 | AF96: =SUM(T96,X96,AB96) -> 11.638 | AH96: ='Ex 1 HDD'!I3 -> DEU Variance Exhibit | AI96: ='Ex 1 HDD'!I2 -> Docket No. 21-057-01 | AJ96: ='Ex 1 HDD'!I1 -> Dominion Energy Utah | AL96: CCOPA 2E | AM96: 2.916 | AN96: 3.759 | AP96: CCOPA 2E | AQ96: 3.982 | AR96: 3.866 | AT96: CCOPA 2E | AU96: 3.383 | AV96: 3.723 | BG96: =AT96 -> CCOPA 2E | BH96: =IFERROR(VLOOKUP(BG96,$BG$119:$BH$211,2,FALSE),0) -> 2.61 | BI96: =IFERROR(VLOOKUP($AT96,$A$6:$M$123,8,FALSE),"") -> 3.829 | BK96: CCOPA 2E | BL96: =IFERROR(VLOOKUP(BK96,$BK$119:$BL$218,2,FALSE),0) -> 2.72 | BM96: =IFERROR(VLOOKUP($AP96,$A$6:$M$123,9,FALSE),"") -> 3.81 | BO96: CCOPA 2E | BP96: =IFERROR(VLOOKUP(BO96,$BO$119:$BP$211,2,FALSE),0) -> 4.886 | BQ96: =IFERROR(VLOOKUP($AT96,$A$6:$M$123,10,FALSE),"") -> 3.427 | CD96: CCOPA 2E | CE96: =VLOOKUP(CD96,CD$119:CE$203,2,FALSE) -> 9.927 | CF96: =IFERROR(VLOOKUP($A96,$A$6:$M$123,11,FALSE),"") -> 3.776 | CH96: CCOPA 2E | CI96: =VLOOKUP(CH96,CH$119:CI$203,2,FALSE) -> 9.706 | CJ96: 3.636 | CL96: CCOPA 2E | CM96: =VLOOKUP(CL96,CL$119:CM$203,2,FALSE) -> 4.654 | CN96: 3.739 | CP96: CCOPA 2E | CQ96: 24.287 | CR96: 11.151
A97: CCRUNIT 2D8 | B97: 74.196 | C97: 75.125 | D97: 73.668 | E97: 69.957 | F97: 70.978 | G97: 67.485 | H97: 68.55 | I97: 67.419 | J97: 59.92 | K97: 65.308 | L97: 62.244 | M97: 63.37 | N97: =SUM(B97:M97) -> 818.22 | R97: =A97 -> CCRUNIT 2D8 | S97: =IFERROR(VLOOKUP(R97,$R$119:$S$213,2,FALSE),0) -> 79.457 | T97: 74.196 | V97: CCRUNIT 2D8 | W97: =IFERROR(VLOOKUP(V97,$V$119:$W$213,2,FALSE),0) -> 80.622 | X97: 75.125 | Z97: CCRUNIT 2D8 | AA97: =IFERROR(VLOOKUP(Z97,$Z$119:$AA$211,2,FALSE),0) -> 81.815 | AB97: 73.668 | AD97: CCRUNIT 2D8 | AE97: =SUM(S97,W97,AA97) -> 241.894 | AF97: =SUM(T97,X97,AB97) -> 222.989 | AL97: CCRUNIT 2D8 | AM97: 80.227 | AN97: 69.957 | AP97: CCRUNIT 2D8 | AQ97: 78.275 | AR97: 70.978 | AT97: CCRUNIT 2D8 | AU97: 68.576 | AV97: 67.485 | BG97: =AT97 -> CCRUNIT 2D8 | BH97: =IFERROR(VLOOKUP(BG97,$BG$119:$BH$211,2,FALSE),0) -> 73.008 | BI97: =IFERROR(VLOOKUP($AT97,$A$6:$M$123,8,FALSE),"") -> 68.55 | BK97: CCRUNIT 2D8 | BL97: =IFERROR(VLOOKUP(BK97,$BK$119:$BL$218,2,FALSE),0) -> 67.805 | BM97: =IFERROR(VLOOKUP($AP97,$A$6:$M$123,9,FALSE),"") -> 67.419 | BO97: CCRUNIT 2D8 | BP97: =IFERROR(VLOOKUP(BO97,$BO$119:$BP$211,2,FALSE),0) -> 61.793 | BQ97: =IFERROR(VLOOKUP($AT97,$A$6:$M$123,10,FALSE),"") -> 59.92 | CD97: CCRUNIT 2D8 | CE97: 66.328 | CF97: =IFERROR(VLOOKUP($A97,$A$6:$M$123,11,FALSE),"") -> 65.308 | CH97: CCRUNIT 2D8 | CI97: 69.492 | CJ97: 62.244 | CL97: CCRUNIT 2D8 | CM97: 65.366 | CN97: 63.37 | CP97: CCRUNIT 2D8 | CQ97: 201.186 | CR97: 190.922
A98: CCRUNIT 2E | B98: 253.572 | C98: 259.613 | D98: 228.892 | E98: 219.609 | F98: 225.007 | G98: 256.869 | H98: 262.275 | I98: 259.327 | J98: 231.714 | K98: 253.896 | L98: 243.258 | M98: 248.939 | N98: 2942.971 | R98: CCRUNIT 2E | S98: =IFERROR(VLOOKUP(R98,$R$119:$S$213,2,FALSE),0) -> 238.033 | T98: 253.572 | V98: CCRUNIT 2E | W98: 246.036 | X98: 259.613 | Z98: CCRUNIT 2E | AA98: =IFERROR(VLOOKUP(Z98,$Z$119:$AA$211,2,FALSE),0) -> 221.953 | AB98: 228.892 | AD98: CCRUNIT 2E | AE98: =SUM(S98,W98,AA98) -> 706.022 | AF98: =SUM(T98,X98,AB98) -> 742.077 | AL98: CCRUNIT 2E | AM98: 214.228 | AN98: 219.609 | AP98: CCRUNIT 2E | AQ98: 230.905 | AR98: 225.007 | AT98: CCRUNIT 2E | AU98: 302.405 | AV98: 256.869 | BG98: CCRUNIT 2E | BH98: 334.82 | BI98: 262.275 | BK98: CCRUNIT 2E | BL98: 326.386 | BM98: 259.327 | BO98: CCRUNIT 2E | BP98: 283.515 | BQ98: 231.714 | CD98: CCRUNIT 2E | CE98: 317.925 | CF98: 253.896 | CH98: CCRUNIT 2E | CI98: 310.918 | CJ98: 243.258 | CL98: CCRUNIT 2E | CM98: 308.111 | CN98: 248.939 | CP98: CCRUNIT 2E | CQ98: 936.954 | CR98: 746.093
A99: CCRUNIT2EMT | B99: 23.631 | C99: 24.279 | D99: 18.792 | E99: 18.084 | F99: 18.588 | G99: 23.067 | H99: 23.703 | I99: 23.569 | J99: 21.171 | K99: 23.306 | L99: 22.428 | M99: 23.045 | N99: 263.663 | R99: CCRUNIT2EMT | S99: =IFERROR(VLOOKUP(R99,$R$119:$S$213,2,FALSE),0) -> 23.12 | T99: 23.631 | V99: CCRUNIT2EMT | W99: 23.859 | X99: 24.279 | Z99: CCRUNIT2EMT | AA99: =IFERROR(VLOOKUP(Z99,$Z$119:$AA$211,2,FALSE),0) -> 22.772 | AB99: 18.792 | AD99: CCRUNIT2EMT | AE99: 69.751 | AF99: 66.702 | AL99: CCRUNIT2EMT | AM99: 22.683 | AN99: 18.084 | AP99: CCRUNIT2EMT | AQ99: 21.835 | AR99: 18.588 | AT99: CCRUNIT2EMT | AU99: 19.52 | AV99: 23.067 | BG99: CCRUNIT2EMT | BH99: 25.581 | BI99: 23.703 | BK99: CCRUNIT2EMT | BL99: 26.296 | BM99: 23.569 | BO99: CCRUNIT2EMT | BP99: 21.88 | BQ99: 21.171 | CD99: CCRUNIT2EMT | CE99: 23.579 | CF99: 23.306 | CH99: CCRUNIT2EMT | CI99: 23.486 | CJ99: 22.428 | CL99: CCRUNIT2EMT | CM99: 24.741 | CN99: 23.045 | CP99: CCRUNIT2EMT | CQ99: 71.806 | CR99: 68.779
A100: TRAIL 2D8 | B100: 257.34 | C100: 250.31 | D100: 233.396 | E100: 214.812 | F100: 211.978 | G100: 280.941 | H100: 282.376 | I100: 273.773 | J100: 239.131 | K100: 255.555 | L100: 239.553 | M100: 240.424 | N100: 2979.589 | R100: TRAIL 2D8 | S100: =IFERROR(VLOOKUP(R100,$R$119:$S$213,2,FALSE),0)+S210 -> 244.734 | T100: 257.34 | V100: TRAIL 2D8 | W100: =IFERROR(VLOOKUP(V100,$V$119:$W$213,2,FALSE),0)+W198 -> 238.005 | X100: 250.31 | Z100: TRAIL 2D8 | AA100: =IFERROR(VLOOKUP(Z100,$Z$119:$AA$211,2,FALSE),0)+AA208 -> 270.981 | AB100: 233.396 | AD100: TRAIL 2D8 | AE100: 753.72 | AF100: 741.046 | AL100: TRAIL 2D8 | AM100: =IFERROR(VLOOKUP(AL100,$AL$119:$AM$209,2,FALSE),0)+AM206 -> 243.31 | AN100: 214.812 | AP100: TRAIL 2D8 | AQ100: =IFERROR(VLOOKUP(AP100,$AP$119:$AQ$218,2,FALSE),0)+AQ203 -> 239.382 | AR100: 211.978 | AT100: TRAIL 2D8 | AU100: =IFERROR(VLOOKUP(AT100,$AT$119:$AU$211,2,FALSE),0)+AU209 -> 221.83 | AV100: 280.941 | BG100: TRAIL 2D8 | BH100: =IFERROR(VLOOKUP(BG100,$BG$119:$BH$211,2,FALSE),0)+BH208 -> 267.312 | BI100: 282.376 | BK100: TRAIL 2D8 | BL100: =IFERROR(VLOOKUP(BK100,$BK$119:$BL$218,2,FALSE),0)+BL208 -> 296.259 | BM100: 273.773 | BO100: TRAIL 2D8 | BP100: =IFERROR(VLOOKUP(BO100,$BO$119:$BP$211,2,FALSE),0)+BP208 -> 267.878 | BQ100: 239.131 | CD100: TRAIL 2D8 | CE100: 273.287 | CF100: 255.555 | CH100: TRAIL 2D8 | CI100: 257.506 | CJ100: 239.553 | CL100: TRAIL 2D8 | CM100: 271.662 | CN100: 240.424 | CP100: TRAIL 2D8 | CQ100: 802.455 | CR100: 735.532
A101: TRAIL 2E | B101: 337.971 | C101: 343.954 | D101: 272.564 | E101: 260.211 | F101: 265.363 | G101: 320.334 | H101: 326.666 | I101: 322.499 | J101: 287.675 | K101: 314.653 | L101: 300.915 | M101: 307.371 | N101: 3660.176 | R101: TRAIL 2E | S101: =IFERROR(VLOOKUP(R101,$R$119:$S$213,2,FALSE),0) -> 338.836 | T101: 337.971 | V101: TRAIL 2E | W101: 340.897 | X101: 343.954 | Z101: TRAIL 2E | AA101: =IFERROR(VLOOKUP(Z101,$Z$119:$AA$211,2,FALSE),0) -> 319.133 | AB101: 272.564 | AD101: TRAIL 2E | AE101: 998.866 | AF101: 954.489 | AL101: TRAIL 2E | AM101: 296.84 | AN101: 260.211 | AP101: TRAIL 2E | AQ101: 322.502 | AR101: 265.363 | AT101: TRAIL 2E | AU101: 322.287 | AV101: 320.334 | BG101: TRAIL 2E | BH101: 293.149 | BI101: 326.666 | BK101: TRAIL 2E | BL101: =IFERROR(VLOOKUP(BK101,$BK$119:$BL$212,2,FALSE),0) -> 313.017 | BM101: 322.499 | BO101: TRAIL 2E | BP101: 276.675 | BQ101: 287.675 | CD101: TRAIL 2E | CE101: 293.507 | CF101: 314.653 | CH101: TRAIL 2E | CI101: 284.021 | CJ101: 300.915 | CL101: TRAIL 2E | CM101: 268.384 | CN101: 307.371 | CP101: TRAIL 2E | CQ101: 845.912 | CR101: 922.939
A102: TRAIL 2E MT | B102: 45.204 | C102: 46.1 | D102: 45.517 | E102: 43.506 | F102: 44.423 | G102: 42.489 | H102: 43.409 | I102: 42.929 | J102: 38.354 | K102: 42.014 | L102: 40.236 | M102: 41.152 | N102: 515.333 | R102: TRAIL 2E MT | S102: 46.085 | T102: 45.204 | V102: TRAIL 2E MT | W102: 48.062 | X102: 46.1 | Z102: TRAIL 2E MT | AA102: =IFERROR(VLOOKUP(Z102,$Z$119:$AA$211,2,FALSE),0) -> 46.435 | AB102: 45.517 | AD102: TRAIL 2E MT | AE102: 140.582 | AF102: 136.821 | AL102: TRAIL 2E MT | AM102: 44.125 | AN102: 43.506 | AP102: TRAIL 2E MT | AQ102: 46.5 | AR102: 44.423 | AT102: TRAIL 2E MT | AU102: 42.956 | AV102: 42.489 | BG102: TRAIL 2E MT | BH102: 40.779 | BI102: 43.409 | BK102: TRAIL 2E MT | BL102: =IFERROR(VLOOKUP(BK102,$BK$119:$BL$212,2,FALSE),0) -> 46.138 | BM102: 42.929 | BO102: TRAIL 2E MT | BP102: 41.573 | BQ102: 38.354 | CD102: TRAIL 2E MT | CE102: 42.845 | CF102: 42.014 | CH102: TRAIL 2E MT | CI102: 41.29 | CJ102: 40.236 | CL102: TRAIL 2E MT | CM102: 37.031 | CN102: 41.152 | CP102: TRAIL 2E MT | CQ102: 121.166 | CR102: 123.402
A103: WHISKEY MT | B103: 26.685 | C103: 27.196 | D103: 13.513 | E103: 12.906 | F103: 13.166 | G103: 25.47 | H103: 25.984 | I103: 25.662 | J103: 22.898 | K103: 25.048 | L103: 23.958 | M103: 24.471 | N103: 266.957 | R103: WHISKEY MT | S103: 23.688 | T103: 26.685 | V103: WHISKEY MT | W103: 22.249 | X103: 27.196 | Z103: WHISKEY MT | AA103: =IFERROR(VLOOKUP(Z103,$Z$119:$AA$211,2,FALSE),0) -> 14.599 | AB103: 13.513 | AD103: WHISKEY MT | AE103: 60.536 | AF103: 67.394 | AL103: WHISKEY MT | AM103: 13.062 | AN103: 12.906 | AP103: WHISKEY MT | AQ103: 23.782 | AR103: 13.166 | AT103: WHISKEY MT | AU103: 25.455 | AV103: 25.47 | BG103: WHISKEY MT | BH103: 20.242 | BI103: 25.984 | BK103: WHISKEY MT | BL103: 18.866 | BM103: 25.662 | BO103: WHISKEY MT | BP103: 18.049 | BQ103: 22.898 | CD103: WHISKEY MT | CE103: 19.083 | CF103: 25.048 | CH103: WHISKEY MT | CI103: 18.152 | CJ103: 23.958 | CL103: WHISKEY MT | CM103: 22.231 | CN103: 24.471 | CP103: WHISKEY MT | CQ103: 59.466 | CR103: 73.477
A104: WHISKEYC 2E | B104: 83.517 | C104: 85.132 | D104: 59.641 | E104: 56.94 | F104: 58.06 | G104: 79.041 | H104: 80.668 | I104: 79.695 | J104: 71.128 | K104: 77.835 | L104: 74.466 | M104: 76.09 | N104: 882.213 | R104: WHISKEYC 2E | S104: 79.679 | T104: 83.517 | V104: WHISKEYC 2E | W104: 81.044 | X104: 85.132 | Z104: WHISKEYC 2E | AA104: =IFERROR(VLOOKUP(Z104,$Z$119:$AA$211,2,FALSE),0) -> 60.964 | AB104: 59.641 | AD104: WHISKEYC 2E | AE104: 221.687 | AF104: 228.29 | AL104: WHISKEYC 2E | AM104: 57.471 | AN104: 56.94 | AP104: WHISKEYC 2E | AQ104: 78.827 | AR104: 58.06 | AT104: WHISKEYC 2E | AU104: 84.555 | AV104: 79.041 | BG104: WHISKEYC 2E | BH104: 123.947 | BI104: 80.668 | BK104: WHISKEYC 2E | BL104: 113.398 | BM104: 79.695 | BO104: WHISKEYC 2E | BP104: 96.572 | BQ104: 71.128 | CD104: WHISKEYC 2E | CE104: 102.772 | CF104: 77.835 | CH104: WHISKEYC 2E | CI104: 72.354 | CJ104: 74.466 | CL104: WHISKEYC 2E | CM104: 74.322 | CN104: 76.09 | CP104: WHISKEYC 2E | CQ104: 249.448 | CR104: 228.391
A105: z21 CCRK 2D8 | B105: 0 | C105: 0 | D105: 0 | E105: 0 | F105: 0 | G105: 197.409 | H105: 199.442 | I105: 185.008 | J105: 158.242 | K105: 165.128 | L105: 150.087 | M105: 140.777 | N105: 1196.093 | R105: z21 CCRK 2D8 | S105: 0 | T105: 0 | V105: z21 CCRK 2D8 | W105: 0 | X105: 0 | Z105: z21 CCRK 2D8 | AA105: =IFERROR(VLOOKUP(Z105,$Z$119:$AA$211,2,FALSE),0) -> 0 | AB105: 0 | AD105: z21 CCRK 2D8 | AE105: 0 | AF105: 0 | AL105: z21 CCRK 2D8 | AM105: 0 | AN105: 0 | AP105: z21 CCRK 2D8 | AQ105: 0 | AR105: 0 | AT105: z21 CCRK 2D8 | AU105: 0 | AV105: 197.409 | BG105: z21 CCRK 2D8 | BH105: 0 | BI105: 199.442 | BK105: z21 CCRK 2D8 | BL105: 0 | BM105: 185.008 | BO105: z21 CCRK 2D8 | BP105: 0 | BQ105: 158.242 | CD105: z21 CCRK 2D8 | CE105: =VLOOKUP(CD105,CD$119:CE$210,2,FALSE) -> 10.798 | CF105: 165.128 | CH105: z21 CCRK 2D8 | CI105: =VLOOKUP(CH105,CH$119:CI$210,2,FALSE) -> 10.684 | CJ105: 150.087 | CL105: z21 CCRK 2D8 | CM105: =VLOOKUP(CL105,CL$119:CM$210,2,FALSE) -> 10.816 | CN105: 140.777 | CP105: z21 CCRK 2D8 | CQ105: 32.298 | CR105: 455.992
A106: z21 TRAIL2D8 | B106: 0 | C106: 0 | D106: 0 | E106: 0 | F106: 0 | G106: 90.027 | H106: 93.028 | I106: 93.028 | J106: 84.025 | K106: 90.877 | L106: 86.295 | M106: 87.857 | N106: 625.137 | R106: z21 TRAIL2D8 | S106: 0 | T106: 0 | V106: z21 TRAIL2D8 | W106: 0 | X106: 0 | Z106: z21 TRAIL2D8 | AA106: 0 | AB106: 0 | AD106: z21 TRAIL2D8 | AE106: 0 | AF106: 0 | AL106: z21 TRAIL2D8 | AM106: 0 | AN106: 0 | AP106: z21 TRAIL2D8 | AQ106: 0 | AR106: 0 | AT106: z21 TRAIL2D8 | AU106: 0 | AV106: 90.027 | BG106: z21 TRAIL2D8 | BH106: 0 | BI106: 93.028 | BK106: z21 TRAIL2D8 | BL106: 0 | BM106: 93.028 | BO106: z21 TRAIL2D8 | BP106: 0 | BQ106: 84.025 | CD106: z21 TRAIL2D8 | CE106: =VLOOKUP(CD106,CD$119:CE$210,2,FALSE) -> 105.413 | CF106: 90.877 | CH106: z21 TRAIL2D8 | CI106: =VLOOKUP(CH106,CH$119:CI$210,2,FALSE) -> 88.582 | CJ106: 86.295 | CL106: z21 TRAIL2D8 | CM106: =VLOOKUP(CL106,CL$119:CM$210,2,FALSE) -> 50.437 | CN106: 87.857 | CP106: z21 TRAIL2D8 | CQ106: 244.432 | CR106: 265.029
A107: z21 WSKY 2D8 | B107: 0 | C107: 0 | D107: 0 | E107: 0 | F107: 0 | G107: 35.586 | H107: 35.067 | I107: 29.655 | J107: 23.461 | K107: 23.278 | L107: 20.511 | M107: 19.53 | N107: 187.088 | R107: z21 WSKY 2D8 | S107: 0 | T107: 0 | V107: z21 WSKY 2D8 | W107: 0 | X107: 0 | Z107: z21 WSKY 2D8 | AA107: 0 | AB107: 0 | AD107: z21 WSKY 2D8 | AE107: 0 | AF107: 0 | AL107: z21 WSKY 2D8 | AM107: 0 | AN107: 0 | AP107: z21 WSKY 2D8 | AQ107: 0 | AR107: 0 | AT107: z21 WSKY 2D8 | AU107: 0 | AV107: 35.586 | BG107: z21 WSKY 2D8 | BH107: 0 | BI107: 35.067 | BK107: z21 WSKY 2D8 | BL107: 0 | BM107: 29.655 | BO107: z21 WSKY 2D8 | BP107: 0 | BQ107: 23.461 | CD107: z21 WSKY 2D8 | CE107: 0 | CF107: 23.278 | CH107: z21 WSKY 2D8 | CI107: 0 | CJ107: 20.511 | CL107: z21 WSKY 2D8 | CM107: 0 | CN107: 19.53 | CP107: z21 WSKY 2D8 | CQ107: 0 | CR107: 63.319
A108: Wexpro II Total | B108: =SUM(B96:B107) -> 1105.929 | C108: 1115.631 | D108: 949.886 | E108: 899.784 | F108: 911.429 | G108: 1422.441 | H108: 1444.997 | I108: 1406.374 | J108: 1241.146 | K108: 1340.674 | L108: 1267.587 | M108: 1276.765 | N108: =SUM(N96:N107) -> 14382.643 | R108: Wexpro II Total | S108: =SUM(S96:S107) -> 1077.193 | T108: =SUM(T96:T107) -> 1105.929 | V108: Wexpro II Total | W108: =SUM(W96:W107) -> 1083.673 | X108: =SUM(X96:X107) -> 1115.631 | Z108: Wexpro II Total | AA108: =SUM(AA96:AA107) -> 1041.76 | AB108: =SUM(AB96:AB107) -> 949.886 | AD108: Wexpro II Total | AE108: =SUM(AE96:AE107) -> 3202.626 | AF108: =SUM(AF96:AF107) -> 3171.446 | AL108: Wexpro II Total | AM108: =SUM(AM96:AM107) -> 974.862 | AN108: =SUM(AN96:AN107) -> 899.784 | AP108: Wexpro II Total | AQ108: 1045.99 | AR108: 911.429 | AT108: Wexpro II Total | AU108: 1090.967 | AV108: =SUM(AV96:AV107) -> 1422.441 | BG108: =AT108 -> Wexpro II Total | BH108: =SUM(BH96:BH107) -> 1181.448 | BI108: =SUM(BI96:BI107) -> 1444.997 | BK108: Wexpro II Total | BL108: =SUM(BL96:BL107) -> 1210.885 | BM108: =SUM(BM96:BM107) -> 1406.374 | BO108: Wexpro II Total | BP108: =SUM(BP96:BP107) -> 1072.821 | BQ108: =SUM(BQ96:BQ107) -> 1241.146 | CD108: Wexpro II Total | CE108: =SUM(CE96:CE107) -> 1265.464 | CF108: =SUM(CF96:CF107) -> 1340.674 | CH108: Wexpro II Total | CI108: =SUM(CI96:CI107) -> 1186.191 | CJ108: =SUM(CJ96:CJ107) -> 1267.587 | CL108: Wexpro II Total | CM108: =SUM(CM96:CM107) -> 1137.755 | CN108: =SUM(CN96:CN107) -> 1276.765 | CP108: Wexpro II Total | CQ108: 3589.41 | CR108: 3885.026
T109: =IFERROR(VLOOKUP(R109,$A$6:$M$123,2,FALSE),"") ->  | X109: =IFERROR(VLOOKUP(V109,$A$6:$M$123,3,FALSE),"") ->  | AB109: =IFERROR(VLOOKUP(Z109,$A$6:$M$123,4,FALSE),"") -> 
A110: Q50 | R110: Q50 | V110: Q50 | Z110: Q50 | AD110: Q50 | AL110: =AD110 -> Q50 | AP110: Q50 | AT110: Q50 | BG110: =AT110 -> Q50 | BK110: =BG110 -> Q50 | BO110: =BK110 -> Q50 | CD110: Q50 | CH110: Q50 | CL110: Q50 | CP110: Q50
A111: BRCH CRK Q50 | B111: 0.918 | C111: 0.927 | D111: 0.905 | E111: 0.855 | F111: 0.865 | G111: 0.819 | H111: 0.828 | I111: 0.809 | J111: 0.717 | K111: 0.778 | L111: 0.738 | M111: 0.747 | N111: 9.906 | R111: =A111 -> BRCH CRK Q50 | S111: =IFERROR(VLOOKUP(R111,$R$119:$S$213,2,FALSE),0) -> 0 | T111: =IFERROR(VLOOKUP(R111,$A$6:$M$123,2,FALSE),"") -> 0.918 | V111: =R111 -> BRCH CRK Q50 | W111: =IFERROR(VLOOKUP(V111,$V$119:$X$213,2,FALSE),0) -> 0 | X111: =IFERROR(VLOOKUP(V111,$A$6:$M$123,3,FALSE),"") -> 0.927 | Z111: =V111 -> BRCH CRK Q50 | AA111: =IFERROR(VLOOKUP(Z111,$Z$119:$AB$213,2,FALSE),0) -> 0 | AB111: =IFERROR(VLOOKUP(Z111,$A$6:$M$123,4,FALSE),"") -> 0.905 | AD111: =Z111 -> BRCH CRK Q50 | AE111: =AA111+W111+S111 -> 0 | AF111: =AB111+X111+T111 -> 2.75 | AL111: BRCH CRK Q50 | AM111: 0 | AN111: =IFERROR(VLOOKUP(AL111,$A$6:$M$123,5,FALSE),"") -> 0.855 | AP111: BRCH CRK Q50 | AQ111: 0 | AR111: 0.865 | AT111: BRCH CRK Q50 | AU111: 0 | AV111: 0.819 | BG111: =AT111 -> BRCH CRK Q50 | BH111: =IFERROR(VLOOKUP(BG111,$BG$119:$BH$211,2,FALSE),0) -> 0 | BI111: =IFERROR(VLOOKUP($AT111,$A$6:$M$123,7,FALSE),"") -> 0.819 | BK111: BRCH CRK Q50 | BL111: =IFERROR(VLOOKUP(BK111,$BK$119:$BL$218,2,FALSE),0) -> 0 | BM111: =IFERROR(VLOOKUP($AP111,$A$6:$M$123,6,FALSE),"") -> 0.865 | BO111: BRCH CRK Q50 | BP111: =IFERROR(VLOOKUP(BO111,$BO$119:$BP$211,2,FALSE),0) -> 0 | BQ111: =IFERROR(VLOOKUP($AT111,$A$6:$M$123,7,FALSE),"") -> 0.819 | CD111: BRCH CRK Q50 | CE111: 0 | CF111: =IFERROR(VLOOKUP($A111,$A$6:$M$123,11,FALSE),"") -> 0.778 | CH111: BRCH CRK Q50 | CI111: 0 | CJ111: 0.738 | CL111: BRCH CRK Q50 | CM111: 0 | CN111: 0.747 | CP111: BRCH CRK Q50 | CQ111: 0 | CR111: 2.263
A112: TRAIL Q50 | B112: 1.221 | C112: 1.246 | D112: 1.228 | E112: 1.173 | F112: 1.197 | G112: 1.146 | H112: 1.169 | I112: 1.156 | J112: 1.033 | K112: 1.128 | L112: 1.08 | M112: 1.104 | N112: 13.881 | R112: =A112 -> TRAIL Q50 | S112: =IFERROR(VLOOKUP(R112,$R$119:$S$213,2,FALSE),0) -> 0.116 | T112: =IFERROR(VLOOKUP(R112,$A$6:$M$123,2,FALSE),"") -> 1.221 | V112: =R112 -> TRAIL Q50 | W112: =IFERROR(VLOOKUP(V112,$V$119:$X$213,2,FALSE),0) -> 0.841 | X112: =IFERROR(VLOOKUP(V112,$A$6:$M$123,3,FALSE),"") -> 1.246 | Z112: =V112 -> TRAIL Q50 | AA112: =IFERROR(VLOOKUP(Z112,$Z$119:$AB$213,2,FALSE),0) -> 2.798 | AB112: =IFERROR(VLOOKUP(Z112,$A$6:$M$123,4,FALSE),"") -> 1.228 | AD112: =Z112 -> TRAIL Q50 | AE112: =AA112+W112+S112 -> 3.755 | AF112: =AB112+X112+T112 -> 3.695 | AL112: TRAIL Q50 | AM112: 2.57 | AN112: 1.173 | AP112: TRAIL Q50 | AQ112: 2.195 | AR112: 1.197 | AT112: TRAIL Q50 | AU112: 1.908 | AV112: 1.146 | BG112: =AT112 -> TRAIL Q50 | BH112: =IFERROR(VLOOKUP(BG112,$BG$119:$BH$211,2,FALSE),0) -> 2.079 | BI112: 1.146 | BK112: TRAIL Q50 | BL112: =IFERROR(VLOOKUP(BK112,$BK$119:$BL$218,2,FALSE),0) -> 1.607 | BM112: 1.197 | BO112: TRAIL Q50 | BP112: =IFERROR(VLOOKUP(BO112,$BO$119:$BP$211,2,FALSE),0) -> 1.627 | BQ112: 1.146 | CD112: TRAIL Q50 | CE112: =VLOOKUP(CD112,CD$119:CE$203,2,FALSE) -> 0.625 | CF112: =IFERROR(VLOOKUP($A112,$A$6:$M$123,11,FALSE),"") -> 1.128 | CH112: TRAIL Q50 | CI112: =VLOOKUP(CH112,CH$119:CI$203,2,FALSE) -> 1.656 | CJ112: 1.08 | CL112: TRAIL Q50 | CM112: =VLOOKUP(CL112,CL$119:CM$203,2,FALSE) -> 1.466 | CN112: 1.104 | CP112: TRAIL Q50 | CQ112: 3.747 | CR112: 3.312
A113: yTRAIL 2Q50 | B113: 1.206 | C113: 1.231 | D113: 1.215 | E113: 1.161 | F113: 1.184 | G113: 1.131 | H113: 1.156 | I113: 1.144 | J113: 1.019 | K113: 1.116 | L113: 1.068 | M113: 1.091 | N113: 13.723 | R113: yTRAIL 2Q50 | S113: =IFERROR(VLOOKUP(R113,$R$119:$S$213,2,FALSE),0) -> 0 | T113: =IFERROR(VLOOKUP(R113,$A$6:$M$123,2,FALSE),"") -> 1.206 | V113: yTRAIL 2Q50 | W113: =IFERROR(VLOOKUP(V113,$V$119:$X$213,2,FALSE),0) -> 0 | X113: =IFERROR(VLOOKUP(V113,$A$6:$M$123,3,FALSE),"") -> 1.231 | Z113: yTRAIL 2Q50 | AA113: 0 | AB113: =IFERROR(VLOOKUP(Z113,$A$6:$M$123,4,FALSE),"") -> 1.215 | AD113: yTRAIL 2Q50 | AE113: 0 | AF113: 3.652 | AL113: yTRAIL 2Q50 | AM113: 0 | AN113: 1.161 | AP113: yTRAIL 2Q50 | AQ113: 0 | AR113: 1.184 | AT113: yTRAIL 2Q50 | AU113: 0 | AV113: 1.131 | BG113: yTRAIL 2Q50 | BH113: 0 | BI113: 1.131 | BK113: yTRAIL 2Q50 | BL113: 0 | BM113: 1.184 | BO113: yTRAIL 2Q50 | BP113: 0 | BQ113: 1.131 | CD113: yTRAIL 2Q50 | CE113: 0 | CF113: 1.116 | CH113: yTRAIL 2Q50 | CI113: 0 | CJ113: 1.068 | CL113: yTRAIL 2Q50 | CM113: 0 | CN113: 1.091 | CP113: yTRAIL 2Q50 | CQ113: 0 | CR113: 3.275
B114: =SUM(B111:B113) -> 3.345 | C114: 3.404 | D114: 3.348 | E114: 3.189 | F114: 3.246 | G114: 3.096 | H114: 3.153 | I114: 3.109 | J114: 2.769 | K114: 3.022 | L114: 2.886 | M114: 2.942 | N114: 37.51 | R114: Q50 Total | S114: =SUM(S111:S113) -> 0.116 | T114: =SUM(T111:T113) -> 3.345 | V114: Q50 Total | W114: =SUM(W111:W113) -> 0.841 | X114: =SUM(X110:X113) -> 3.404 | Z114: Q50 Total | AA114: =SUM(AA111:AA113) -> 2.798 | AB114: =SUM(AB110:AB113) -> 3.348 | AD114: Q50 Total | AE114: 3.755 | AF114: 10.097 | AL114: Q50 Total | AM114: =SUM(AM111:AM113) -> 2.57 | AN114: =SUM(AN111:AN113) -> 3.189 | AP114: Q50 Total | AQ114: =SUM(AQ111:AQ113) -> 2.195 | AR114: =SUM(AR111:AR113) -> 3.246 | AT114: Q50 Total | AU114: =SUM(AU111:AU113) -> 1.908 | AV114: =SUM(AV111:AV113) -> 3.096 | BG114: Q50 Total | BH114: =SUM(BH111:BH113) -> 2.079 | BI114: =SUM(BI111:BI113) -> 3.096 | BK114: Q50 Total | BL114: =SUM(BL111:BL113) -> 1.607 | BM114: =SUM(BM111:BM113) -> 3.246 | BO114: Q50 Total | BP114: =SUM(BP111:BP113) -> 1.627 | BQ114: =SUM(BQ111:BQ113) -> 3.096 | CD114: Q50 Total | CE114: =SUM(CE111:CE113) -> 0.625 | CF114: =SUM(CF111:CF113) -> 3.022 | CH114: Q50 Total | CI114: =SUM(CI111:CI113) -> 1.656 | CJ114: =SUM(CJ111:CJ113) -> 2.886 | CL114: Q50 Total | CM114: =SUM(CM111:CM113) -> 1.466 | CN114: =SUM(CN111:CN113) -> 2.942 | CP114: Q50 Total | CQ114: 3.747 | CR114: =CF114+CJ114+CN114 -> 8.85
R115: Total | S115: =SUM(S83,S93,S108,S114) -> 4656.166 | T115: =SUM(T83,T93,T108,T114) -> 4721.652 | V115: Total | W115: =SUM(W83,W93,W108,W114) -> 4613.595 | X115: =SUM(X83,X93,X108,X114) -> 4800.331 | Z115: Total | AA115: =SUM(AA83,AA93,AA108,AA114) -> 4623.568 | AB115: =SUM(AB83,AB93,AB108) -> 4604.845 | AD115: Total | AE115: =SUM(AE83,AE93,AE108) -> 11973.965 | AF115: =SUM(AF83,AF93,AF108) -> 12418.8877 | AL115: Total | AM115: =AM114+AM108+AM93+AM83 -> 4468.642 | AN115: =AN114+AN108+AN93+AN83 -> 4391.718 | AP115: Total | AQ115: =SUM(AQ114+AQ108+AQ93+AQ83) -> 4639.253 | AR115: =SUM(AR114+AR108+AR93+AR83) -> 4534.611 | AT115: Total | AU115: =AU114+AU108+AU93+AU83 -> 4516.209 | AV115: =AV114+AV108+AV93+AV83 -> 5321.817 | BG115: =AT115 -> Total | BH115: =BH114+BH108+BH93+BH83 -> 4780.319 | BI115: =BI114+BI108+BI93+BI83 -> 5427.549 | BK115: Total | BL115: =SUM(BL114+BL108+BL93+BL83) -> 4637.797 | BM115: =SUM(BM114+BM108+BM93+BM83) -> 5342.883 | BO115: Total | BP115: =BP114+BP108+BP93+BP83 -> 4153.679 | BQ115: =BQ114+BQ108+BQ93+BQ83 -> 4756.715 | CD115: Total | CE115: =CE83+CE93+CE108+CE114 -> 4811.359 | CF115: =CF83+CF93+CF108+CF114 -> 5138.85 | CH115: Total | CI115: =CI83+CI93+CI108+CI114 -> 4749.848 | CJ115: =CJ83+CJ93+CJ108+CJ114 -> 4698.012 | CL115: Total | CM115: =CM83+CM93+CM108+CM114 -> 4686.044 | CN115: =CN83+CN93+CN108+CN114 -> 4754.1194 | CP115: Total | CQ115: 14247.251 | CR115: 14590.9814
A117: Off System | B117: =B5 -> 2021-06-01 | C117: 2021-07-01 | D117: 2021-08-01 | E117: 2021-09-01 | F117: 2021-10-01 | G117: 2021-11-01 | H117: 2021-12-01 | I117: 2022-01-01 | J117: 2022-02-01 | K117: 2022-03-01 | L117: 2022-04-01 | M117: 2022-05-01 | N117: =N95 -> Total
A118: OFF SYS D24 | B118: 30.659 | C118: 31.715 | D118: 31.752 | E118: 30.761 | F118: 31.824 | G118: 30.833 | H118: 31.895 | I118: 31.933 | J118: 28.873 | K118: 32.001 | L118: 31.002 | M118: 32.07 | N118: =SUM(B118:M118) -> 375.318 | R118: nomgroup | S118: value_6 | T118: month_tot | V118: nomgroup | W118: value_7 | X118: month_tot | Z118: nomgroup | AA118: value_8 | AB118: month_tot | AL118: nomgroup | AM118: value_9 | AN118: month_tot | AP118: nomgroup | AQ118: value_10 | AR118: month_tot | AT118: nomgroup | AU118: value_11 | AV118: month_tot | BG118: nomgroup | BH118: value_12 | BI118: month_tot | BK118: nomgroup | BL118: value_1 | BM118: month_tot | BO118: nomgroup | BP118: value_2 | BQ118: month_tot | CD118: nomgroup | CE118: value_03 | CF118: month_tot | CH118: nomgroup | CI118: value_04 | CJ118: month_tot | CL118: nomgroup | CM118: value_05 | CN118: month_tot
A119: OFF SYS PC | B119: 7.662 | C119: 7.883 | D119: 7.846 | E119: 7.56 | F119: 7.775 | G119: 7.491 | H119: 7.707 | I119: 7.669 | J119: 6.896 | K119: 7.601 | L119: 7.323 | M119: 7.533 | N119: =SUM(B119:M119) -> 90.946 | R119: ACEJDMT D24 | S119: 9.628 | T119: 4656.16 | V119: ACEJDMT D24 | W119: 9.788 | X119: 4613.7 | Z119: ACEJDMT D24 | AA119: 7.358 | AB119: 4623.57 | AL119: ACEJDMT D24 | AM119: 5.678 | AN119: 4468.64 | AP119: ACEJDMT D24 | AQ119: 9.1 | AR119: 4639.25 | AT119: ACEJDMT D24 | AU119: 7.945 | AV119: 4516.21 | BG119: ACEJDMT D24 | BH119: 10.644 | BI119: 4780.319 | BK119: ACEJDMT D24 | BL119: 10.187 | BM119: 4637.797 | BO119: ACEJDMT D24 | BP119: 8.79 | BQ119: 4153.679 | CD119: ACEJDMT D24 | CE119: 8.746 | CF119: 4811.359 | CH119: ACEJDMT D24 | CI119: 8.384 | CJ119: 4749.848 | CL119: ACEJDMT D24 | CM119: 8.174 | CN119: 4686.044
A120: OFF SYS PW | B120: 0.075 | C120: 0.078 | D120: 0.078 | E120: 0.075 | F120: 0.078 | G120: 0.072 | H120: 0.074 | I120: 0.074 | J120: 0.067 | K120: 0.074 | L120: 0.072 | M120: 0.074 | N120: =SUM(B120:M120) -> 0.891 | R120: ACEJDMT PC | S120: 3.586 | T120: 4656.16 | V120: ACEJDMT PC | W120: 3.732 | X120: 4613.7 | Z120: ACEJDMT PC | AA120: 4.367 | AB120: 4623.57 | AL120: BIRCH CREEK | AM120: 122.727 | AN120: 4468.64 | AP120: BIRCH CREEK | AQ120: 123.948 | AR120: 4639.25 | AT120: BIRCH CREEK | AU120: 116.887 | AV120: 4516.21 | BG120: BIRCH CREEK | BH120: 120.915 | BI120: 4780.319 | BK120: BIRCH CREEK | BL120: 124.309 | BM120: 4637.797 | BO120: BIRCH CREEK | BP120: 113.126 | BQ120: 4153.679 | CD120: BIRCH CREEK | CE120: 122.512 | CF120: 4811.359 | CH120: BIRCH CREEK | CI120: 113.696 | CJ120: 4749.848 | CL120: BIRCH CREEK | CM120: 134.923 | CN120: 4686.044
A121: Off System Total | B121: =SUM(B118:B120) -> 38.396 | C121: =SUM(C118:C120) -> 39.676 | D121: 39.676 | E121: 38.396 | F121: 39.677 | G121: 38.396 | H121: 39.676 | I121: 39.676 | J121: 35.836 | K121: 39.676 | L121: 38.397 | M121: 39.677 | N121: =SUM(B121:M121) -> 467.155 | R121: BIRCH CREEK | S121: 123.146 | T121: 4656.16 | V121: BIRCH CREEK | W121: 127.016 | X121: 4613.7 | Z121: BIRCH CREEK | AA121: 127.571 | AB121: 4623.57 | AL121: BRFM D24 | AM121: 1.358 | AN121: 4468.64 | AP121: BRFM D24 | AQ121: 1.78 | AR121: 4639.25 | AT121: BRFM D24 | AU121: 1.459 | AV121: 4516.21 | BG121: BRFM D24 | BH121: 1.875 | BI121: 4780.319 | BK121: BRFM D24 | BL121: 2.172 | BM121: 4637.797 | BO121: BRFM D24 | BP121: 2.233 | BQ121: 4153.679 | CD121: BRFM D24 | CE121: 2.178 | CF121: 4811.359 | CH121: BRFM D24 | CI121: 2.077 | CJ121: 4749.848 | CL121: BRFM D24 | CM121: 2.113 | CN121: 4686.044
R122: BRFM D24 | S122: 1.52 | T122: 4656.16 | V122: BRFM D24 | W122: 1.834 | X122: 4613.7 | Z122: BRFM D24 | AA122: 1.828 | AB122: 4623.57 | AL122: BRFM PC | AM122: 0.13 | AN122: 4468.64 | AP122: BRFM PC | AQ122: 0.13 | AR122: 4639.25 | AT122: BRFM PC | AU122: 0.127 | AV122: 4516.21 | BG122: BRFM PC | BH122: 0.152 | BI122: 4780.319 | BK122: BRFM PC | BL122: 0.144 | BM122: 4637.797 | BO122: BRFM PC | BP122: 0.128 | BQ122: 4153.679 | CD122: BRFM PC | CE122: 0.134 | CF122: 4811.359 | CH122: BRFM PC | CI122: 0.134 | CJ122: 4749.848 | CL122: BRFM PC | CM122: 0.145 | CN122: 4686.044
A123: Total without Off System | B123: =SUM(B83,B93,B108,B114) -> 4722.177 | C123: =SUM(C83,C93,C108,C114) -> 4800.331 | D123: =SUM(D83,D93,D108,D114) -> 4608.729 | E123: 4373.679 | F123: 4516.218 | G123: 5297.355 | H123: 5402.657 | I123: 5318.111 | J123: 4734.414 | K123: 5155.956 | L123: 4714.368 | M123: 4794.916 | N123: 58438.912 | R123: BRFM PC | S123: 0.147 | T123: 4656.16 | V123: BRFM PC | W123: 0.142 | X123: 4613.7 | Z123: BRFM PC | AA123: 0.136 | AB123: 4623.57 | AL123: BRFQ D24 | AM123: 136.891 | AN123: 4468.64 | AP123: BRFQ D24 | AQ123: 143.671 | AR123: 4639.25 | AT123: BRFQ D24 | AU123: 142.427 | AV123: 4516.21 | BG123: BRFQ D24 | BH123: 141.819 | BI123: 4780.319 | BK123: BRFQ D24 | BL123: 129.523 | BM123: 4637.797 | BO123: BRFQ D24 | BP123: 124.05 | BQ123: 4153.679 | CD123: BRFQ D24 | CE123: 132.546 | CF123: 4811.359 | CH123: BRFQ D24 | CI123: 149.46 | CJ123: 4749.848 | CL123: BRFQ D24 | CM123: 157.825 | CN123: 4686.044
A124: Days/Month | B124: =DAY(EOMONTH(B5,0)) -> 30 | C124: 31 | D124: 31 | E124: 30 | F124: 31 | G124: 30 | H124: 31 | I124: 31 | J124: 28 | K124: 31 | L124: 30 | M124: 31 | R124: BRFQ D24 | S124: 139.841 | T124: 4656.16 | V124: BRFQ D24 | W124: 141.413 | X124: 4613.7 | Z124: BRFQ D24 | AA124: 140.148 | AB124: 4623.57 | AL124: BRFQ PC | AM124: 12.063 | AN124: 4468.64 | AP124: BRFQ PC | AQ124: 12.388 | AR124: 4639.25 | AT124: BRFQ PC | AU124: 11.153 | AV124: 4516.21 | BG124: BRFQ PC | BH124: 11.789 | BI124: 4780.319 | BK124: BRFQ PC | BL124: 11.417 | BM124: 4637.797 | BO124: BRFQ PC | BP124: 10.115 | BQ124: 4153.679 | CD124: BRFQ PC | CE124: 11.604 | CF124: 4811.359 | CH124: BRFQ PC | CI124: 12.116 | CJ124: 4749.848 | CL124: BRFQ PC | CM124: 11.048 | CN124: 4686.044
A125: Per day | B125: =B123/B124 -> 157.4059 | C125: =C123/C124 -> 154.8493871 | D125: 148.6686774 | E125: 145.7893 | F125: 145.6844516 | G125: 176.5785 | H125: 174.2792581 | I125: 171.5519677 | J125: 169.0862143 | K125: 166.3211613 | L125: 157.1456 | M125: 154.6747097 | R125: BRFQ PC | S125: 11.42 | T125: 4656.16 | V125: BRFQ PC | W125: 10.901 | X125: 4613.7 | Z125: BRFQ PC | AA125: 11.492 | AB125: 4623.57 | AL125: BRFQMT PC | AM125: 4.094 | AN125: 4468.64 | AP125: BRFQMT D24 | AQ125: 6.036 | AR125: 4639.25 | AT125: BRFQMT PC | AU125: 3.615 | AV125: 4516.21 | BG125: BRFQMT PC | BH125: 3.193 | BI125: 4780.319 | BK125: BRFQMT PC | BL125: 2.402 | BM125: 4637.797 | BO125: BRFQMT PC | BP125: 3.757 | BQ125: 4153.679 | CD125: BRFQMT D24 | CE125: 0 | CF125: 4811.359 | CH125: BRFQMT D24 | CI125: 7.372 | CJ125: 4749.848 | CL125: BRFQMT D24 | CM125: 0 | CN125: 4686.044
R126: BRFQMT D24 | S126: 5.506 | T126: 4656.16 | V126: BRFQMT PC | W126: 4.401 | X126: 4613.7 | Z126: BRFQMT D24 | AA126: 4.425 | AB126: 4623.57 | AL126: BRFW D24 | AM126: 59.587 | AN126: 4468.64 | AP126: BRFQMT PC | AQ126: 3.825 | AR126: 4639.25 | AT126: BRFW D24 | AU126: 58.128 | AV126: 4516.21 | BG126: BRFW D24 | BH126: 59.03 | BI126: 4780.319 | BK126: BRFW D24 | BL126: 59.044 | BM126: 4637.797 | BO126: BRFW D24 | BP126: 52.579 | BQ126: 4153.679 | CD126: BRFQMT PC | CE126: 4.087 | CF126: 4811.359 | CH126: BRFQMT PC | CI126: 3.942 | CJ126: 4749.848 | CL126: BRFQMT PC | CM126: 3.788 | CN126: 4686.044
A127: Total with Off System | B127: =SUM(B121,B123) -> 4760.573 | C127: =SUM(C121,C123) -> 4840.007 | D127: 4648.405 | E127: 4412.075 | F127: 4555.895 | G127: 5335.751 | H127: 5442.333 | I127: =SUM(I121,I123) -> 5357.787 | J127: 4770.25 | K127: 5195.632 | L127: 4752.765 | M127: 4834.593 | N127: 58906.067 | R127: BRFQMT PC | S127: 4.307 | T127: 4656.16 | V127: BRFW D24 | W127: 64.664 | X127: 4613.7 | Z127: BRFQMT PC | AA127: 4.297 | AB127: 4623.57 | AL127: BRFW PC | AM127: 4.223 | AN127: 4468.64 | AP127: BRFW D24 | AQ127: 63.579 | AR127: 4639.25 | AT127: BRFW PC | AU127: 11.804 | AV127: 4516.21 | BG127: BRFW PC | BH127: 13.289 | BI127: 4780.319 | BK127: BRFW PC | BL127: 14.366 | BM127: 4637.797 | BO127: BRFW PC | BP127: 10.497 | BQ127: 4153.679 | CD127: BRFW D24 | CE127: 55.97 | CF127: 4811.359 | CH127: BRFW D24 | CI127: 59.087 | CJ127: 4749.848 | CL127: BRFW D24 | CM127: 49.855 | CN127: 4686.044
R128: BRFW D24 | S128: 64.286 | T128: 4656.16 | V128: BRFW PC | W128: 6.943 | X128: 4613.7 | Z128: BRFW D24 | AA128: 64.168 | AB128: 4623.57 | AL128: BRUFF MT | AM128: 8.32 | AN128: 4468.64 | AP128: BRFW PC | AQ128: 4.756 | AR128: 4639.25 | AT128: BRUFF MT | AU128: 4.81 | AV128: 4516.21 | BG128: BRUFF MT | BH128: 4.447 | BI128: 4780.319 | BK128: BRUFF MT | BL128: 4.529 | BM128: 4637.797 | BO128: BRUFF MT | BP128: 3.953 | BQ128: 4153.679 | CD128: BRFW PC | CE128: 10.887 | CF128: 4811.359 | CH128: BRFW PC | CI128: 10.095 | CJ128: 4749.848 | CL128: BRFW PC | CM128: 9.397 | CN128: 4686.044
A129: Total Possible Prod. From SendOut | B129: 4936.908343 | C129: 5020.999016 | D129: 4666.952814 | E129: 4512.285937 | F129: 4590.929025 | G129: 5301.550122 | H129: 5406.970879 | I129: 5322.393884 | J129: 4738.253276 | K129: 5160.188376 | L129: 4914.063903 | M129: 4999.484049 | N129: =SUM(B129:M129) -> 59570.97962 | R129: BRFW PC | S129: 10.495 | T129: 4656.16 | V129: BRUFF MT | W129: 8.124 | X129: 4613.7 | Z129: BRFW PC | AA129: 5.116 | AB129: 4623.57 | AL129: CBFR D24 | AM129: 13.731 | AN129: 4468.64 | AP129: BRUFF MT | AQ129: 7.69 | AR129: 4639.25 | AT129: CBFR D24 | AU129: 22.116 | AV129: 4516.21 | BG129: CBFR D24 | BH129: 19.477 | BI129: 4780.319 | BK129: CBFR D24 | BL129: 16.777 | BM129: 4637.797 | BO129: CBFR D24 | BP129: 16.618 | BQ129: 4153.679 | CD129: BRUFF MT | CE129: 8.627 | CF129: 4811.359 | CH129: BRUFF MT | CI129: 6.203 | CJ129: 4749.848 | CL129: BRUFF MT | CM129: 5.487 | CN129: 4686.044
A130: 1000 | R130: BRUFF MT | S130: 8.009 | T130: 4656.16 | V130: CCRUNIT 2D8 | W130: 80.622 | X130: 4613.7 | Z130: BRUFF MT | AA130: 8.433 | AB130: 4623.57 | AL130: CBFR PC | AM130: 85.467 | AN130: 4468.64 | AP130: CBFR D24 | AQ130: 18.358 | AR130: 4639.25 | AT130: CBFR PC | AU130: 73.561 | AV130: 4516.21 | BG130: CBFR PC | BH130: 67.324 | BI130: 4780.319 | BK130: CBFR PC | BL130: 63.821 | BM130: 4637.797 | BO130: CBFR PC | BP130: 58.141 | BQ130: 4153.679 | CD130: CBFR D24 | CE130: 13.481 | CF130: 4811.359 | CH130: CBFR D24 | CI130: 19.603 | CJ130: 4749.848 | CL130: CBFR D24 | CM130: 17.136 | CN130: 4686.044
A131: Shut-In per Month/dth | B131: =(B129-B123)*$A$130 -> 214731.3426 | C131: =(C129-C123)*$A$130 -> 220668.0156 | D131: 58223.81433 | E131: 138606.9366 | F131: =(F129-F123)*$A$130 -> 74711.02525 | G131: 4195.121967 | H131: 4313.878792 | I131: 4282.884231 | J131: 3839.276178 | K131: 4232.376001 | L131: 199695.9031 | M131: 204568.0492 | R131: CBFR D24 | S131: 1.383 | T131: 4656.16 | V131: CCRUNIT 2E | W131: 246.036 | X131: 4613.7 | Z131: CBFR D24 | AA131: 3.132 | AB131: 4623.57 | AL131: CCRUNIT 2D8 | AM131: 80.227 | AN131: 4468.64 | AP131: CBFR PC | AQ131: 70.485 | AR131: 4639.25 | AT131: CCRUNIT 2D8 | AU131: 68.576 | AV131: 4516.21 | BG131: CCRUNIT 2D8 | BH131: 73.008 | BI131: 4780.319 | BK131: CCRUNIT 2D8 | BL131: 67.805 | BM131: 4637.797 | BO131: CCRUNIT 2D8 | BP131: 61.793 | BQ131: 4153.679 | CD131: CBFR PC | CE131: 43.836 | CF131: 4811.359 | CH131: CBFR PC | CI131: 64.14 | CJ131: 4749.848 | CL131: CBFR PC | CM131: 65.496 | CN131: 4686.044
A132: Shut-In per Day/dth | B132: =B131/B124 -> 7157.71142 | C132: =C131/C124 -> 7118.323083 | D132: 1878.187559 | E132: 4620.23122 | F132: 2410.033073 | G132: 139.8373989 | H132: 139.1573804 | I132: 138.1575558 | J132: 137.1170063 | K132: 136.5282581 | L132: 6656.530102 | M132: 6598.96933 | R132: CBFR PC | S132: 4.972 | T132: 4656.16 | V132: CCRUNIT2EMT | W132: 23.859 | X132: 4613.7 | Z132: CBFR PC | AA132: 18.273 | AB132: 4623.57 | AL132: CCRUNIT 2E | AM132: 214.228 | AN132: 4468.64 | AP132: CCRUNIT 2D8 | AQ132: 78.275 | AR132: 4639.25 | AT132: CCRUNIT 2E | AU132: 302.405 | AV132: 4516.21 | BG132: CCRUNIT 2E | BH132: 334.82 | BI132: 4780.319 | BK132: CCRUNIT 2E | BL132: 326.386 | BM132: 4637.797 | BO132: CCRUNIT 2E | BP132: 283.515 | BQ132: 4153.679 | CD132: CCOPA 2E | CE132: 9.927 | CF132: 4811.359 | CH132: CCOPA 2E | CI132: 9.706 | CJ132: 4749.848 | CL132: CCOPA 2E | CM132: 4.654 | CN132: 4686.044
A133: Total New Drill | B133: =SUM(B91:B92,B105:B107) -> 0 | C133: 0 | D133: 0 | E133: 0 | F133: 0 | G133: 470.04 | H133: 479.456 | I133: 459.61 | J133: 402.945 | K133: 422.122 | L133: 388.161 | M133: 378.261 | N133: =SUM(B133:M133) -> 3000.595 | R133: CCRUNIT 2D8 | S133: 79.457 | T133: 4656.16 | V133: CCRUNIT D24 | W133: 454.24 | X133: 4613.7 | Z133: CCRUNIT 2D8 | AA133: 81.815 | AB133: 4623.57 | AL133: CCRUNIT2EMT | AM133: 22.683 | AN133: 4468.64 | AP133: CCRUNIT 2E | AQ133: 230.905 | AR133: 4639.25 | AT133: CCRUNIT2EMT | AU133: 19.52 | AV133: 4516.21 | BG133: CCRUNIT2EMT | BH133: 25.581 | BI133: 4780.319 | BK133: CCRUNIT2EMT | BL133: 26.296 | BM133: 4637.797 | BO133: CCRUNIT2EMT | BP133: 21.88 | BQ133: 4153.679 | CD133: CCRUNIT 2D8 | CE133: 66.328 | CF133: 4811.359 | CH133: CCRUNIT 2D8 | CI133: 69.492 | CJ133: 4749.848 | CL133: CCRUNIT 2D8 | CM133: 65.366 | CN133: 4686.044
R134: CCRUNIT 2E | S134: 238.033 | T134: 4656.16 | V134: CCRUNIT D8 | W134: 179.785 | X134: 4613.7 | Z134: CCRUNIT 2E | AA134: 221.953 | AB134: 4623.57 | AL134: CCRUNIT D24 | AM134: 406.11 | AN134: 4468.64 | AP134: CCRUNIT2EMT | AQ134: 21.835 | AR134: 4639.25 | AT134: CCRUNIT D24 | AU134: 355.622 | AV134: 4516.21 | BG134: CCRUNIT D24 | BH134: 376.351 | BI134: 4780.319 | BK134: CCRUNIT D24 | BL134: 380.027 | BM134: 4637.797 | BO134: CCRUNIT D24 | BP134: 332.3 | BQ134: 4153.679 | CD134: CCRUNIT 2E | CE134: 317.925 | CF134: 4811.359 | CH134: CCRUNIT 2E | CI134: 310.918 | CJ134: 4749.848 | CL134: CCRUNIT 2E | CM134: 308.111 | CN134: 4686.044
R135: CCRUNIT2EMT | S135: 23.12 | T135: 4656.16 | V135: CCRUNIT MT | W135: 56.072 | X135: 4613.7 | Z135: CCRUNIT2EMT | AA135: 22.772 | AB135: 4623.57 | AL135: CCRUNIT D8 | AM135: 178.714 | AN135: 4468.64 | AP135: CCRUNIT D24 | AQ135: 414.149 | AR135: 4639.25 | AT135: CCRUNIT D8 | AU135: 146.56 | AV135: 4516.21 | BG135: CCRUNIT D8 | BH135: 156.335 | BI135: 4780.319 | BK135: CCRUNIT D8 | BL135: 144.887 | BM135: 4637.797 | BO135: CCRUNIT D8 | BP135: 132.106 | BQ135: 4153.679 | CD135: CCRUNIT D24 | CE135: 381.023 | CF135: 4811.359 | CH135: CCRUNIT D24 | CI135: 377.003 | CJ135: 4749.848 | CL135: CCRUNIT D24 | CM135: 385.997 | CN135: 4686.044
R136: CCRUNIT D24 | S136: 446.313 | T136: 4656.16 | V136: CCRUNIT PC | W136: 49.343 | X136: 4613.7 | Z136: CCRUNIT D24 | AA136: 423.459 | AB136: 4623.57 | AL136: CCRUNIT MT | AM136: 45.059 | AN136: 4468.64 | AP136: CCRUNIT D8 | AQ136: 166.932 | AR136: 4639.25 | AT136: CCRUNIT MT | AU136: 48.216 | AV136: 4516.21 | BG136: CCRUNIT MT | BH136: 69.979 | BI136: 4780.319 | BK136: CCRUNIT MT | BL136: 60.625 | BM136: 4637.797 | BO136: CCRUNIT MT | BP136: 51.229 | BQ136: 4153.679 | CD136: CCRUNIT D8 | CE136: 142.557 | CF136: 4811.359 | CH136: CCRUNIT D8 | CI136: 148.119 | CJ136: 4749.848 | CL136: CCRUNIT D8 | CM136: 139.357 | CN136: 4686.044
R137: CCRUNIT D8 | S137: 177.079 | T137: 4656.16 | V137: CCRUNITMT PC | W137: 16.336 | X137: 4613.7 | Z137: CCRUNIT D8 | AA137: 182.43 | AB137: 4623.57 | AL137: CCRUNIT PC | AM137: 40.599 | AN137: 4468.64 | AP137: CCRUNIT MT | AQ137: 46.273 | AR137: 4639.25 | AT137: CCRUNIT PC | AU137: 30.316 | AV137: 4516.21 | BG137: CCRUNIT PC | BH137: 51.895 | BI137: 4780.319 | BK137: CCRUNIT PC | BL137: 47.978 | BM137: 4637.797 | BO137: CCRUNIT PC | BP137: 39.435 | BQ137: 4153.679 | CD137: CCRUNIT MT | CE137: 56.992 | CF137: 4811.359 | CH137: CCRUNIT MT | CI137: 57.292 | CJ137: 4749.848 | CL137: CCRUNIT MT | CM137: 55.807 | CN137: 4686.044
R138: CCRUNIT MT | S138: 59.738 | T138: 4656.16 | V138: CCRUNITMTD24 | W138: 35.586 | X138: 4613.7 | Z138: CCRUNIT MT | AA138: 45.084 | AB138: 4623.57 | AL138: CCRUNITMT PC | AM138: 17.533 | AN138: 4468.64 | AP138: CCRUNIT PC | AQ138: 34.589 | AR138: 4639.25 | AT138: CCRUNITMT PC | AU138: 13.075 | AV138: 4516.21 | BG138: CCRUNITMT PC | BH138: 15.402 | BI138: 4780.319 | BK138: CCRUNITMT PC | BL138: 15.792 | BM138: 4637.797 | BO138: CCRUNITMT PC | BP138: 14.598 | BQ138: 4153.679 | CD138: CCRUNIT PC | CE138: 44.127 | CF138: 4811.359 | CH138: CCRUNIT PC | CI138: 47.272 | CJ138: 4749.848 | CL138: CCRUNIT PC | CM138: 41.905 | CN138: 4686.044
R139: CCRUNIT PC | S139: 46.007 | T139: 4656.16 | V139: CCOPA 2E | W139: 2.899 | X139: 4613.7 | Z139: CCRUNIT PC | AA139: 37.084 | AB139: 4623.57 | AL139: CCRUNITMTD24 | AM139: 31.818 | AN139: 4468.64 | AP139: CCRUNITMT PC | AQ139: 15.633 | AR139: 4639.25 | AT139: CCRUNITMTD24 | AU139: 27.489 | AV139: 4516.21 | BG139: CCRUNITMTD24 | BH139: 37.772 | BI139: 4780.319 | BK139: CCRUNITMTD24 | BL139: 38.865 | BM139: 4637.797 | BO139: CCRUNITMTD24 | BP139: 30.881 | BQ139: 4153.679 | CD139: CCRUNIT2EMT | CE139: 23.579 | CF139: 4811.359 | CH139: CCRUNIT2EMT | CI139: 23.486 | CJ139: 4749.848 | CL139: CCRUNIT2EMT | CM139: 24.741 | CN139: 4686.044
M140: WE are now broken out between wexpro one and 2 based on y's | R140: CCRUNITMT PC | S140: 14.906 | T140: 4656.16 | V140: CHBT MT | W140: 23.989 | X140: 4613.7 | Z140: CCRUNITMT PC | AA140: 17.482 | AB140: 4623.57 | AL140: CCOPA 2E | AM140: 2.916 | AN140: 4468.64 | AP140: CCRUNITMTD24 | AQ140: 29.745 | AR140: 4639.25 | AT140: CCOPA 2E | AU140: 3.383 | AV140: 4516.21 | BG140: CCOPA 2E | BH140: 2.61 | BI140: 4780.319 | BK140: CCOPA 2E | BL140: 2.72 | BM140: 4637.797 | BO140: CCOPA 2E | BP140: 4.886 | BQ140: 4153.679 | CD140: CCRUNITMT PC | CE140: 15.227 | CF140: 4811.359 | CH140: CCRUNITMT PC | CI140: 15.352 | CJ140: 4749.848 | CL140: CCRUNITMT PC | CM140: 15.334 | CN140: 4686.044
M141: Divide CCRUNIT MT Between Legacy and Wexpro II | R141: CCRUNITMTD24 | S141: 35.406 | T141: 4656.16 | V141: CHBTBUFF D24 | W141: 0.831 | X141: 4613.7 | Z141: CCRUNITMTD24 | AA141: 32.072 | AB141: 4623.57 | AL141: CHBT MT | AM141: 21.479 | AN141: 4468.64 | AP141: CCOPA 2E | AQ141: 3.982 | AR141: 4639.25 | AT141: CHBT MT | AU141: 20.894 | AV141: 4516.21 | BG141: CHBT MT | BH141: 25.335 | BI141: 4780.319 | BK141: CHBT MT | BL141: 24.692 | BM141: 4637.797 | BO141: CHBT MT | BP141: 21.931 | BQ141: 4153.679 | CD141: CCRUNITMTD24 | CE141: 33.769 | CF141: 4811.359 | CH141: CCRUNITMTD24 | CI141: 33.465 | CJ141: 4749.848 | CL141: CCRUNITMTD24 | CM141: 36.089 | CN141: 4686.044
L142: Month | M142: Legacy | N142: Wexpro II | R142: CCOPA 2E | S142: 3.561 | T142: 4656.16 | V142: CHBTC1 MT PC | W142: 18.676 | X142: 4613.7 | Z142: CCOPA 2E | AA142: 3.108 | AB142: 4623.57 | AL142: CHBTBUFF D24 | AM142: 0.821 | AN142: 4468.64 | AP142: CHBT MT | AQ142: 23.676 | AR142: 4639.25 | AT142: CHBTBUFF D24 | AU142: 0.648 | AV142: 4516.21 | BG142: CHBTBUFF D24 | BH142: 0.655 | BI142: 4780.319 | BK142: CHBTBUFF D24 | BL142: 0.712 | BM142: 4637.797 | BO142: CHBTBUFF D24 | BP142: 0.638 | BQ142: 4153.679 | CD142: CHBT MT | CE142: 26.761 | CF142: 4811.359 | CH142: CHBT MT | CI142: 32.516 | CJ142: 4749.848 | CL142: CHBT MT | CM142: 34.872 | CN142: 4686.044
L143: June | M143: =B55 -> 15.954 | N143: =B97 -> 74.196 | R143: CHBT MT | S143: 22.226 | T143: 4656.16 | V143: CHBTCAT1 PC | W143: 32.167 | X143: 4613.7 | Z143: CHBT MT | AA143: 22.326 | AB143: 4623.57 | AL143: CHBTC1 MT PC | AM143: 17.694 | AN143: 4468.64 | AP143: CHBTBUFF D24 | AQ143: 0.67 | AR143: 4639.25 | AT143: CHBTC1 MT PC | AU143: 16.947 | AV143: 4516.21 | BG143: CHBTC1 MT PC | BH143: 19.061 | BI143: 4780.319 | BK143: CHBTC1 MT PC | BL143: 19.586 | BM143: 4637.797 | BO143: CHBTC1 MT PC | BP143: 15.31 | BQ143: 4153.679 | CD143: CHBTBUFF D24 | CE143: 0.757 | CF143: 4811.359 | CH143: CHBTBUFF D24 | CI143: 0.794 | CJ143: 4749.848 | CL143: CHBTBUFF D24 | CM143: 0.808 | CN143: 4686.044
L144: July | M144: =C55 -> 16.414 | N144: =C97 -> 75.125 | R144: CHBTBUFF D24 | S144: 0.89 | T144: 4656.16 | V144: CHBTCAT2 D24 | W144: 85.2 | X144: 4613.7 | Z144: CHBTBUFF D24 | AA144: 0.918 | AB144: 4623.57 | AL144: CHBTCAT1 PC | AM144: 29.501 | AN144: 4468.64 | AP144: CHBTC1 MT PC | AQ144: 17.957 | AR144: 4639.25 | AT144: CHBTCAT1 PC | AU144: 32.282 | AV144: 4516.21 | BG144: CHBTCAT1 PC | BH144: 30.548 | BI144: 4780.319 | BK144: CHBTCAT1 PC | BL144: 30.847 | BM144: 4637.797 | BO144: CHBTCAT1 PC | BP144: 27.987 | BQ144: 4153.679 | CD144: CHBTC1 MT PC | CE144: 21.527 | CF144: 4811.359 | CH144: CHBTC1 MT PC | CI144: 27.074 | CJ144: 4749.848 | CL144: CHBTC1 MT PC | CM144: 27.546 | CN144: 4686.044
L145: Aug | M145: =D55 -> 16.34 | N145: =D97 -> 73.668 | R145: CHBTC1 MT PC | S145: 19.21 | T145: 4656.16 | V145: CHBTCAT2 PC | W145: 2.019 | X145: 4613.7 | Z145: CHBTC1 MT PC | AA145: 18.323 | AB145: 4623.57 | AL145: CHBTCAT2 D24 | AM145: 94.764 | AN145: 4468.64 | AP145: CHBTCAT1 PC | AQ145: 37.683 | AR145: 4639.25 | AT145: CHBTCAT2 D24 | AU145: 85.995 | AV145: 4516.21 | BG145: CHBTCAT2 D24 | BH145: 88.934 | BI145: 4780.319 | BK145: CHBTCAT2 D24 | BL145: 87.425 | BM145: 4637.797 | BO145: CHBTCAT2 D24 | BP145: 79.757 | BQ145: 4153.679 | CD145: CHBTCAT1 PC | CE145: 38.364 | CF145: 4811.359 | CH145: CHBTCAT1 PC | CI145: 49.522 | CJ145: 4749.848 | CL145: CHBTCAT1 PC | CM145: 49.115 | CN145: 4686.044
L146: Sept | M146: =E55 -> 15.744 | N146: =E97 -> 69.957 | P146: Add into CCRUNIT 2E | R146: CHBTCAT1 PC | S146: 24.702 | T146: 4656.16 | V146: CHBTCAT3 D24 | W146: 148.588 | X146: 4613.7 | Z146: CHBTCAT1 PC | AA146: 32.612 | AB146: 4623.57 | AL146: CHBTCAT2 PC | AM146: 1.947 | AN146: 4468.64 | AP146: CHBTCAT2 D24 | AQ146: 89.641 | AR146: 4639.25 | AT146: CHBTCAT2 PC | AU146: 1.766 | AV146: 4516.21 | BG146: CHBTCAT2 PC | BH146: 1.758 | BI146: 4780.319 | BK146: CHBTCAT2 PC | BL146: 1.725 | BM146: 4637.797 | BO146: CHBTCAT2 PC | BP146: 1.879 | BQ146: 4153.679 | CD146: CHBTCAT2 D24 | CE146: 99.002 | CF146: 4811.359 | CH146: CHBTCAT2 D24 | CI146: 132.808 | CJ146: 4749.848 | CL146: CHBTCAT2 D24 | CM146: 128.05 | CN146: 4686.044
L147: Oct | M147: =F55 -> 16.197 | N147: =F97 -> 70.978 | R147: CHBTCAT2 D24 | S147: 92.72 | T147: 4656.16 | V147: DRY PINY MT | W147: 4.428 | X147: 4613.7 | Z147: CHBTCAT2 D24 | AA147: 88.692 | AB147: 4623.57 | AL147: CHBTCAT3 D24 | AM147: 149.892 | AN147: 4468.64 | AP147: CHBTCAT2 PC | AQ147: 1.848 | AR147: 4639.25 | AT147: CHBTCAT3 D24 | AU147: 144.857 | AV147: 4516.21 | BG147: CHBTCAT3 D24 | BH147: 165.52 | BI147: 4780.319 | BK147: CHBTCAT3 D24 | BL147: 162.04 | BM147: 4637.797 | BO147: CHBTCAT3 D24 | BP147: 136.609 | BQ147: 4153.679 | CD147: CHBTCAT2 PC | CE147: 2.265 | CF147: 4811.359 | CH147: CHBTCAT2 PC | CI147: 2.751 | CJ147: 4749.848 | CL147: CHBTCAT2 PC | CM147: 2.756 | CN147: 4686.044
L148: Nov | M148: =G55 -> 15.606 | N148: =G97 -> 67.485 | R148: CHBTCAT2 PC | S148: 2.044 | T148: 4656.16 | V148: DRYPINY6 D24 | W148: 1.299 | X148: 4613.7 | Z148: CHBTCAT2 PC | AA148: 2.029 | AB148: 4623.57 | AL148: DRY PINY MT | AM148: 3.186 | AN148: 4468.64 | AP148: CHBTCAT3 D24 | AQ148: 153.885 | AR148: 4639.25 | AT148: DRY PINY MT | AU148: 3.414 | AV148: 4516.21 | BG148: DRY PINY MT | BH148: 3.679 | BI148: 4780.319 | BK148: DRY PINY MT | BL148: 3.808 | BM148: 4637.797 | BO148: DRY PINY MT | BP148: 3.215 | BQ148: 4153.679 | CD148: CHBTCAT3 D24 | CE148: 178.325 | CF148: 4811.359 | CH148: CHBTCAT3 D24 | CI148: 193.929 | CJ148: 4749.848 | CL148: CHBTCAT3 D24 | CM148: 200.585 | CN148: 4686.044
L149: Dec | M149: =H55 -> 16.055 | N149: =H97 -> 68.55 | R149: CHBTCAT3 D24 | S149: 147.553 | T149: 4656.16 | V149: DRYPINY6 PC | W149: 1.06 | X149: 4613.7 | Z149: CHBTCAT3 D24 | AA149: 153.068 | AB149: 4623.57 | AL149: DRYPINY6 D24 | AM149: 1.734 | AN149: 4468.64 | AP149: DRY PINY MT | AQ149: 3.534 | AR149: 4639.25 | AT149: DRYPINY6 D24 | AU149: 1.334 | AV149: 4516.21 | BG149: DRYPINY6 D24 | BH149: 1.908 | BI149: 4780.319 | BK149: DRYPINY6 D24 | BL149: 1.882 | BM149: 4637.797 | BO149: DRYPINY6 D24 | BP149: 1.54 | BQ149: 4153.679 | CD149: DRY PINY MT | CE149: 2.945 | CF149: 4811.359 | CH149: DRY PINY MT | CI149: 3.447 | CJ149: 4749.848 | CL149: DRY PINY MT | CM149: 2.398 | CN149: 4686.044
L150: Jan | M150: =I55 -> 15.984 | N150: =I97 -> 67.419 | R150: DRY PINY MT | S150: 4.069 | T150: 4656.16 | V150: DRYPINYU D24 | W150: 1.944 | X150: 4613.7 | Z150: DRY PINY MT | AA150: 3.493 | AB150: 4623.57 | AL150: DRYPINY6 PC | AM150: 0.104 | AN150: 4468.64 | AP150: DRYPINY6 D24 | AQ150: 1.602 | AR150: 4639.25 | AT150: DRYPINY6 PC | AU150: 0.113 | AV150: 4516.21 | BG150: DRYPINY6 PC | BH150: 0.11 | BI150: 4780.319 | BK150: DRYPINY6 PC | BL150: 0.114 | BM150: 4637.797 | BO150: DRYPINY6 PC | BP150: 0.104 | BQ150: 4153.679 | CD150: DRYPINY6 D24 | CE150: 1.244 | CF150: 4811.359 | CH150: DRYPINY6 D24 | CI150: 1.251 | CJ150: 4749.848 | CL150: DRYPINY6 D24 | CM150: 0.61 | CN150: 4686.044
L151: Feb | M151: =J55 -> 14.372 | N151: =J97 -> 59.92 | R151: DRYPINY6 D24 | S151: 0.579 | T151: 4656.16 | V151: DRYPINYU PC | W151: 10.789 | X151: 4613.7 | Z151: DRYPINY6 D24 | AA151: 2.437 | AB151: 4623.57 | AL151: DRYPINYU D24 | AM151: 2.353 | AN151: 4468.64 | AP151: DRYPINY6 PC | AQ151: 0.119 | AR151: 4639.25 | AT151: DRYPINYU D24 | AU151: 2.235 | AV151: 4516.21 | BG151: DRYPINYU D24 | BH151: 2.239 | BI151: 4780.319 | BK151: DRYPINYU D24 | BL151: 0.14 | BM151: 4637.797 | BO151: DRYPINYU D24 | BP151: 0 | BQ151: 4153.679 | CD151: DRYPINY6 PC | CE151: 0.115 | CF151: 4811.359 | CH151: DRYPINY6 PC | CI151: 0.109 | CJ151: 4749.848 | CL151: DRYPINY6 PC | CM151: 0.072 | CN151: 4686.044
L152: Mar | R152: DRYPINY6 PC | S152: 0.938 | T152: 4656.16 | V152: FOGARTY PC | W152: 1.007 | X152: 4613.7 | Z152: DRYPINY6 PC | AA152: 0.106 | AB152: 4623.57 | AL152: DRYPINYU PC | AM152: 8.568 | AN152: 4468.64 | AP152: DRYPINYU D24 | AQ152: 2.346 | AR152: 4639.25 | AT152: DRYPINYU PC | AU152: 8.023 | AV152: 4516.21 | BG152: DRYPINYU PC | BH152: 9.542 | BI152: 4780.319 | BK152: DRYPINYU PC | BL152: 8.058 | BM152: 4637.797 | BO152: DRYPINYU PC | BP152: 7.58 | BQ152: 4153.679 | CD152: DRYPINYU D24 | CE152: 0 | CF152: 4811.359 | CH152: DRYPINYU D24 | CI152: 0.786 | CJ152: 4749.848 | CL152: DRYPINYU D24 | CM152: 2.965 | CN152: 4686.044
L153: Apr | O153: % Legacy | P153: % Wexpro II | R153: DRYPINYU D24 | S153: 1.803 | T153: 4656.16 | V153: HWA DEEP D24 | W153: 0.416 | X153: 4613.7 | Z153: DRYPINYU D24 | AA153: 2.381 | AB153: 4623.57 | AL153: FOGARTY PC | AM153: 0.873 | AN153: 4468.64 | AP153: DRYPINYU PC | AQ153: 8.614 | AR153: 4639.25 | AT153: FOGARTY PC | AU153: 0.243 | AV153: 4516.21 | BG153: FOGARTY PC | BH153: 0.213 | BI153: 4780.319 | BK153: FOGARTY PC | BL153: 0 | BM153: 4637.797 | BO153: FOGARTY PC | BP153: 0 | BQ153: 4153.679 | CD153: DRYPINYU PC | CE153: 8.647 | CF153: 4811.359 | CH153: DRYPINYU PC | CI153: 8.839 | CJ153: 4749.848 | CL153: DRYPINYU PC | CM153: 7.017 | CN153: 4686.044
L154: May | O154: =M143/SUM(M143:N143) -> 0.1769717138 | P154: =N143/SUM(M143:N143) -> 0.8230282862 | R154: DRYPINYU PC | S154: 9.738 | T154: 4656.16 | V154: HWA DEEP PC | W154: 0.061 | X154: 4613.7 | Z154: DRYPINYU PC | AA154: 8.711 | AB154: 4623.57 | AL154: HWA DEEP D24 | AM154: 0.294 | AN154: 4468.64 | AP154: FOGARTY PC | AQ154: 0.864 | AR154: 4639.25 | AT154: HWA DEEP D24 | AU154: 0.474 | AV154: 4516.21 | BG154: HWA DEEP D24 | BH154: 0.252 | BI154: 4780.319 | BK154: HWA DEEP D24 | BL154: 0.148 | BM154: 4637.797 | BO154: HWA DEEP D24 | BP154: 0.212 | BQ154: 4153.679 | CD154: HWA DEEP D24 | CE154: 0.26 | CF154: 4811.359 | CH154: HWA DEEP D24 | CI154: 0.064 | CJ154: 4749.848 | CL154: HWA DEEP D24 | CM154: 0.436 | CN154: 4686.044
O155: 0.1793115503 | P155: 0.8206884497 | R155: FOGARTY PC | S155: 1.144 | T155: 4656.16 | V155: HWA MT | W155: 1.514 | X155: 4613.7 | Z155: FOGARTY PC | AA155: 0.961 | AB155: 4623.57 | AL155: HWA DEEP PC | AM155: 0.18 | AN155: 4468.64 | AP155: HWA MT | AQ155: 1.802 | AR155: 4639.25 | AT155: HWA DEEP PC | AU155: 0.192 | AV155: 4516.21 | BG155: HWA DEEP PC | BH155: 0.181 | BI155: 4780.319 | BK155: HWA DEEP PC | BL155: 0.255 | BM155: 4637.797 | BO155: HWA DEEP PC | BP155: 0.202 | BQ155: 4153.679 | CD155: HWA DEEP PC | CE155: 0.239 | CF155: 4811.359 | CH155: HWA DEEP PC | CI155: 0.033 | CJ155: 4749.848 | CL155: HWA DEEP PC | CM155: 0.201 | CN155: 4686.044
O156: 0.1815394187 | P156: 0.8184605813 | R156: HWA DEEP D24 | S156: 0.214 | T156: 4656.16 | V156: HWADEEPMTD24 | W156: 10.357 | X156: 4613.7 | Z156: HWA DEEP D24 | AA156: 0.302 | AB156: 4623.57 | AL156: HWA MT | AM156: 0.437 | AN156: 4468.64 | AP156: HWPL1&3MTD24 | AQ156: 6.293 | AR156: 4639.25 | AT156: HWA MT | AU156: 0.934 | AV156: 4516.21 | BG156: HWA MT | BH156: 0.853 | BI156: 4780.319 | BK156: HWA MT | BL156: 0.464 | BM156: 4637.797 | BO156: HWA MT | BP156: 0.376 | BQ156: 4153.679 | CD156: HWA MT | CE156: 0.797 | CF156: 4811.359 | CH156: HWA MT | CI156: 0.582 | CJ156: 4749.848 | CL156: HWA MT | CM156: 1.235 | CN156: 4686.044
O157: 0.1837084748 | P157: 0.8162915252 | R157: HWA DEEP PC | S157: 0.125 | T157: 4656.16 | V157: HWPL1&3MTD24 | W157: 4.56 | X157: 4613.7 | Z157: HWA DEEP PC | AA157: 0.122 | AB157: 4623.57 | AL157: HWADEEPMTD24 | AM157: 14.619 | AN157: 4468.64 | AP157: HWPL1&3MTPC | AQ157: 6.58 | AR157: 4639.25 | AT157: HWADEEPMTD24 | AU157: 11.976 | AV157: 4516.21 | BG157: HWADEEPMTD24 | BH157: 15.094 | BI157: 4780.319 | BK157: HWADEEPMTD24 | BL157: 16.74 | BM157: 4637.797 | BO157: HWADEEPMTD24 | BP157: 13.638 | BQ157: 4153.679 | CD157: HWADEEPMTD24 | CE157: 15.208 | CF157: 4811.359 | CH157: HWADEEPMTD24 | CI157: 9.333 | CJ157: 4749.848 | CL157: HWADEEPMTD24 | CM157: 13.785 | CN157: 4686.044
O158: 0.1857986808 | P158: 0.8142013192 | R158: HWA MT | S158: 1.087 | T158: 4656.16 | V158: HWPL1&3MTPC | W158: 5.84 | X158: 4613.7 | Z158: HWA MT | AA158: 1.318 | AB158: 4623.57 | AL158: HWPL1&3MTD24 | AM158: 5.058 | AN158: 4468.64 | AP158: HWPLT1&3 D24 | AQ158: 57.464 | AR158: 4639.25 | AT158: HWPL1&3MTD24 | AU158: 7.683 | AV158: 4516.21 | BG158: HWPL1&3MTD24 | BH158: 7.672 | BI158: 4780.319 | BK158: HWPL1&3MTD24 | BL158: 7.076 | BM158: 4637.797 | BO158: HWPL1&3MTD24 | BP158: 7.283 | BQ158: 4153.679 | CD158: HWPL1&3MTD24 | CE158: 7.559 | CF158: 4811.359 | CH158: HWPL1&3MTD24 | CI158: 7.238 | CJ158: 4749.848 | CL158: HWPL1&3MTD24 | CM158: 7.528 | CN158: 4686.044
O159: 0.1878181753 | P159: 0.8121818247 | R159: HWADEEPMTD24 | S159: 12.411 | T159: 4656.16 | V159: HWPLT1&3 D24 | W159: 47.184 | X159: 4613.7 | Z159: HWADEEPMTD24 | AA159: 16.704 | AB159: 4623.57 | AL159: HWPL1&3MTPC | AM159: 4.3 | AN159: 4468.64 | AP159: HWPLT1&3 PC | AQ159: 46.603 | AR159: 4639.25 | AT159: HWPL1&3MTPC | AU159: 8.001 | AV159: 4516.21 | BG159: HWPL1&3MTPC | BH159: 7.231 | BI159: 4780.319 | BK159: HWPL1&3MTPC | BL159: 8.474 | BM159: 4637.797 | BO159: HWPL1&3MTPC | BP159: 7.134 | BQ159: 4153.679 | CD159: HWPL1&3MTPC | CE159: 7.943 | CF159: 4811.359 | CH159: HWPL1&3MTPC | CI159: 7.691 | CJ159: 4749.848 | CL159: HWPL1&3MTPC | CM159: 7.903 | CN159: 4686.044
O160: 0.1897641983 | P160: 0.8102358017 | R160: HWPL1&3MTD24 | S160: 7.899 | T160: 4656.16 | V160: HWPLT1&3 PC | W160: 5.153 | X160: 4613.7 | Z160: HWPL1&3MTD24 | AA160: 8.103 | AB160: 4623.57 | AL160: HWPLT1&3 D24 | AM160: 60.013 | AN160: 4468.64 | AP160: HWPLT2 D24 | AQ160: 4.146 | AR160: 4639.25 | AT160: HWPLT1&3 D24 | AU160: 71.155 | AV160: 4516.21 | BG160: HWPLT1&3 D24 | BH160: 73.554 | BI160: 4780.319 | BK160: HWPLT1&3 D24 | BL160: 77.715 | BM160: 4637.797 | BO160: HWPLT1&3 D24 | BP160: 74.822 | BQ160: 4153.679 | CD160: HWPLT1&3 D24 | CE160: 79.464 | CF160: 4811.359 | CH160: HWPLT1&3 D24 | CI160: 78.571 | CJ160: 4749.848 | CL160: HWPLT1&3 D24 | CM160: 72.361 | CN160: 4686.044
O161: 0.1916477825 | P161: 0.8083522175 | R161: HWPL1&3MTPC | S161: 7.72 | T161: 4656.16 | V161: HWPLT2 D24 | W161: 5.632 | X161: 4613.7 | Z161: HWPL1&3MTPC | AA161: 7.523 | AB161: 4623.57 | AL161: HWPLT1&3 PC | AM161: 48.61 | AN161: 4468.64 | AP161: HWPLT2 PC | AQ161: 0.944 | AR161: 4639.25 | AT161: HWPLT1&3 PC | AU161: 52.656 | AV161: 4516.21 | BG161: HWPLT1&3 PC | BH161: 53.568 | BI161: 4780.319 | BK161: HWPLT1&3 PC | BL161: 48.498 | BM161: 4637.797 | BO161: HWPLT1&3 PC | BP161: 40.808 | BQ161: 4153.679 | CD161: HWPLT1&3 PC | CE161: 46.085 | CF161: 4811.359 | CH161: HWPLT1&3 PC | CI161: 56.836 | CJ161: 4749.848 | CL161: HWPLT1&3 PC | CM161: 57.554 | CN161: 4686.044
O162: 0.1934528617 | P162: 0.8065471383 | R162: HWPLT1&3 D24 | S162: 60.701 | T162: 4656.16 | V162: HWPLT2 PC | W162: 0.784 | X162: 4613.7 | Z162: HWPLT1&3 D24 | AA162: 74.793 | AB162: 4623.57 | AL162: HWPLT2 D24 | AM162: 6.116 | AN162: 4468.64 | AP162: HWPLT2MT D24 | AQ162: 1.08 | AR162: 4639.25 | AT162: HWPLT2 D24 | AU162: 5.171 | AV162: 4516.21 | BG162: HWPLT2 D24 | BH162: 8.62 | BI162: 4780.319 | BK162: HWPLT2 D24 | BL162: 7.02 | BM162: 4637.797 | BO162: HWPLT2 D24 | BP162: 4.694 | BQ162: 4153.679 | CD162: HWPLT2 D24 | CE162: 6.216 | CF162: 4811.359 | CH162: HWPLT2 D24 | CI162: 1.918 | CJ162: 4749.848 | CL162: HWPLT2 D24 | CM162: 3.588 | CN162: 4686.044
R163: HWPLT1&3 PC | S163: 14.976 | T163: 4656.16 | V163: HWPLT2MT D24 | W163: 1.073 | X163: 4613.7 | Z163: HWPLT1&3 PC | AA163: 35.28 | AB163: 4623.57 | AL163: HWPLT2 PC | AM163: 0.61 | AN163: 4468.64 | AP163: ISLAND D24 | AQ163: 60.119 | AR163: 4639.25 | AT163: HWPLT2 PC | AU163: 0.96 | AV163: 4516.21 | BG163: HWPLT2 PC | BH163: 0.87 | BI163: 4780.319 | BK163: HWPLT2 PC | BL163: 0.705 | BM163: 4637.797 | BO163: HWPLT2 PC | BP163: 0.642 | BQ163: 4153.679 | CD163: HWPLT2 PC | CE163: 0.825 | CF163: 4811.359 | CH163: HWPLT2 PC | CI163: 0.771 | CJ163: 4749.848 | CL163: HWPLT2 PC | CM163: 0.752 | CN163: 4686.044
R164: HWPLT2 D24 | S164: 8.941 | T164: 4656.16 | V164: ISLAND D24 | W164: 43.097 | X164: 4613.7 | Z164: HWPLT2 D24 | AA164: 10.005 | AB164: 4623.57 | AL164: HWPLT2MT D24 | AM164: 1.34 | AN164: 4468.64 | AP164: ISLAND PC | AQ164: 0.099 | AR164: 4639.25 | AT164: HWPLT2MT D24 | AU164: 1.283 | AV164: 4516.21 | BG164: HWPLT2MT D24 | BH164: 1.231 | BI164: 4780.319 | BK164: HWPLT2MT D24 | BL164: 1.343 | BM164: 4637.797 | BO164: HWPLT2MT D24 | BP164: 1.059 | BQ164: 4153.679 | CD164: HWPLT2MT D24 | CE164: 0.731 | CF164: 4811.359 | CH164: HWPLT2MT D24 | CI164: 1.296 | CJ164: 4749.848 | CL164: HWPLT2MT D24 | CM164: 1.298 | CN164: 4686.044
R165: HWPLT2 PC | S165: 0.809 | T165: 4656.16 | V165: ISLAND PC | W165: 0.497 | X165: 4613.7 | Z165: HWPLT2 PC | AA165: 0.906 | AB165: 4623.57 | AL165: ISLAND D24 | AM165: 42.639 | AN165: 4468.64 | AP165: JNSNRDG D24 | AQ165: 2.983 | AR165: 4639.25 | AT165: ISLAND D24 | AU165: 53.586 | AV165: 4516.21 | BG165: ISLAND D24 | BH165: 64.45 | BI165: 4780.319 | BK165: ISLAND D24 | BL165: 58.871 | BM165: 4637.797 | BO165: ISLAND D24 | BP165: 50.635 | BQ165: 4153.679 | CD165: ISLAND D24 | CE165: 52.23 | CF165: 4811.359 | CH165: ISLAND D24 | CI165: 59.959 | CJ165: 4749.848 | CL165: ISLAND D24 | CM165: 60.652 | CN165: 4686.044
R166: HWPLT2MT D24 | S166: 1.256 | T166: 4656.16 | V166: JNSNRDG D24 | W166: 3.181 | X166: 4613.7 | Z166: HWPLT2MT D24 | AA166: 1.696 | AB166: 4623.57 | AL166: ISLAND PC | AM166: 0.65 | AN166: 4468.64 | AP166: JNSNRDG PC | AQ166: 2.39 | AR166: 4639.25 | AT166: ISLAND PC | AU166: 0.701 | AV166: 4516.21 | BG166: ISLAND PC | BH166: 0.493 | BI166: 4780.319 | BK166: ISLAND PC | BL166: 0.641 | BM166: 4637.797 | BO166: ISLAND PC | BP166: 0.55 | BQ166: 4153.679 | CD166: ISLAND PC | CE166: 0.623 | CF166: 4811.359 | CH166: ISLAND PC | CI166: 0.627 | CJ166: 4749.848 | CL166: ISLAND PC | CM166: 0.638 | CN166: 4686.044
R167: ISLAND D24 | S167: 49.443 | T167: 4656.16 | V167: JNSNRDG PC | W167: 3.013 | X167: 4613.7 | Z167: ISLAND D24 | AA167: 28.861 | AB167: 4623.57 | AL167: JNSNRDG D24 | AM167: 2.579 | AN167: 4468.64 | AP167: JRDG WFS D24 | AQ167: 3.262 | AR167: 4639.25 | AT167: JNSNRDG D24 | AU167: 2.233 | AV167: 4516.21 | BG167: JNSNRDG D24 | BH167: 0.414 | BI167: 4780.319 | BK167: JNSNRDG D24 | BL167: 0 | BM167: 4637.797 | BO167: JNSNRDG D24 | BP167: 0 | BQ167: 4153.679 | CD167: JRDG WFS D24 | CE167: 0 | CF167: 4811.359 | CH167: JRDG WFS D24 | CI167: 0 | CJ167: 4749.848 | CL167: JRDG WFS D24 | CM167: 0.029 | CN167: 4686.044
R168: ISLAND PC | S168: 0.666 | T168: 4656.16 | V168: JRDG WFS D24 | W168: 4.266 | X168: 4613.7 | Z168: ISLAND PC | AA168: 0.418 | AB168: 4623.57 | AL168: JNSNRDG PC | AM168: 2.391 | AN168: 4468.64 | AP168: KNY FLD D24 | AQ168: 13.447 | AR168: 4639.25 | AT168: JNSNRDG PC | AU168: 2.231 | AV168: 4516.21 | BG168: JNSNRDG PC | BH168: 0.422 | BI168: 4780.319 | BK168: JNSNRDG PC | BL168: 0 | BM168: 4637.797 | BO168: JNSNRDG PC | BP168: 0 | BQ168: 4153.679 | CD168: KNY FLD D24 | CE168: 3.457 | CF168: 4811.359 | CH168: KNY FLD D24 | CI168: 5.233 | CJ168: 4749.848 | CL168: KNY FLD D24 | CM168: 8.121 | CN168: 4686.044
R169: JNSNRDG D24 | S169: 5.636 | T169: 4656.16 | V169: KNY FLD D24 | W169: 10.306 | X169: 4613.7 | Z169: JNSNRDG D24 | AA169: 2.771 | AB169: 4623.57 | AL169: JRDG WFS D24 | AM169: 3.646 | AN169: 4468.64 | AP169: KNY FLD D8 | AQ169: 16.718 | AR169: 4639.25 | AT169: JRDG WFS D24 | AU169: 2.555 | AV169: 4516.21 | BG169: JRDG WFS D24 | BH169: 0.382 | BI169: 4780.319 | BK169: JRDG WFS D24 | BL169: 0 | BM169: 4637.797 | BO169: JRDG WFS D24 | BP169: 0 | BQ169: 4153.679 | CD169: KNY FLD PC | CE169: 3.561 | CF169: 4811.359 | CH169: KNY FLD PC | CI169: 2.286 | CJ169: 4749.848 | CL169: KNY FLD PC | CM169: 2.848 | CN169: 4686.044
R170: JNSNRDG PC | S170: 3.561 | T170: 4656.16 | V170: KNY FLD D8 | W170: 23.906 | X170: 4613.7 | Z170: JNSNRDG PC | AA170: 2.274 | AB170: 4623.57 | AL170: KNY FLD D24 | AM170: 13.937 | AN170: 4468.64 | AP170: KNY FLD PC | AQ170: 3.713 | AR170: 4639.25 | AT170: KNY FLD D24 | AU170: 4.33 | AV170: 4516.21 | BG170: KNY FLD D24 | BH170: 4.643 | BI170: 4780.319 | BK170: KNY FLD D24 | BL170: 3.723 | BM170: 4637.797 | BO170: KNY FLD D24 | BP170: 3.847 | BQ170: 4153.679 | CD170: MESA D24 | CE170: 505.754 | CF170: 4811.359 | CH170: MESA D24 | CI170: 481.131 | CJ170: 4749.848 | CL170: MESA D24 | CM170: 496.33 | CN170: 4686.044
R171: JRDG WFS D24 | S171: 6.355 | T171: 4656.16 | V171: MESA D24 | W171: 617.211 | X171: 4613.7 | Z171: JRDG WFS D24 | AA171: 3.334 | AB171: 4623.57 | AL171: KNY FLD D8 | AM171: 16.765 | AN171: 4468.64 | AP171: MESA D24 | AQ171: 578.083 | AR171: 4639.25 | AT171: KNY FLD D8 | AU171: 1.104 | AV171: 4516.21 | BG171: KNY FLD D8 | BH171: 0 | BI171: 4780.319 | BK171: KNY FLD D8 | BL171: 0 | BM171: 4637.797 | BO171: KNY FLD D8 | BP171: 0 | BQ171: 4153.679 | CD171: MESA D8 | CE171: 305.798 | CF171: 4811.359 | CH171: MESA D8 | CI171: 282.161 | CJ171: 4749.848 | CL171: MESA D8 | CM171: 285.139 | CN171: 4686.044
R172: KNY FLD D24 | S172: 4.105 | T172: 4656.16 | V172: MESA D8 | W172: 313.038 | X172: 4613.7 | Z172: KNY FLD D24 | AA172: 17.816 | AB172: 4623.57 | AL172: KNY FLD PC | AM172: 3.499 | AN172: 4468.64 | AP172: MESA D8 | AQ172: 285.507 | AR172: 4639.25 | AT172: KNY FLD PC | AU172: 3.456 | AV172: 4516.21 | BG172: KNY FLD PC | BH172: 2.176 | BI172: 4780.319 | BK172: KNY FLD PC | BL172: 2.726 | BM172: 4637.797 | BO172: KNY FLD PC | BP172: 2.33 | BQ172: 4153.679 | CD172: MOSU MT | CE172: 0.412 | CF172: 4811.359 | CH172: MOSU MT | CI172: 0.652 | CJ172: 4749.848 | CL172: MOSU MT | CM172: 0.336 | CN172: 4686.044
R173: KNY FLD D8 | S173: 22.486 | T173: 4656.16 | V173: MOSU MT | W173: 0.624 | X173: 4613.7 | Z173: KNY FLD D8 | AA173: 19.582 | AB173: 4623.57 | AL173: MESA D24 | AM173: 570.718 | AN173: 4468.64 | AP173: MOSU MT | AQ173: 1.201 | AR173: 4639.25 | AT173: MESA D24 | AU173: 542.855 | AV173: 4516.21 | BG173: MESA D24 | BH173: 545.579 | BI173: 4780.319 | BK173: MESA D24 | BL173: 500.289 | BM173: 4637.797 | BO173: MESA D24 | BP173: 480.122 | BQ173: 4153.679 | CD173: MOSUMT D24 | CE173: 0.937 | CF173: 4811.359 | CH173: MOSUMT D24 | CI173: 0.92 | CJ173: 4749.848 | CL173: MOSUMT D24 | CM173: 1.001 | CN173: 4686.044
R174: KNY FLD PC | S174: 0.75 | T174: 4656.16 | V174: MOSUMT D24 | W174: 0.988 | X174: 4613.7 | Z174: KNY FLD PC | AA174: 2.468 | AB174: 4623.57 | AL174: MESA D8 | AM174: 280.186 | AN174: 4468.64 | AP174: MOSUMT D24 | AQ174: 1.932 | AR174: 4639.25 | AT174: MESA D8 | AU174: 274.712 | AV174: 4516.21 | BG174: MESA D8 | BH174: 409.735 | BI174: 4780.319 | BK174: MESA D8 | BL174: 316.196 | BM174: 4637.797 | BO174: MESA D8 | BP174: 287.474 | BQ174: 4153.679 | CD174: MOSUMT PC | CE174: 7.441 | CF174: 4811.359 | CH174: MOSUMT PC | CI174: 6.337 | CJ174: 4749.848 | CL174: MOSUMT PC | CM174: 7.034 | CN174: 4686.044
R175: MESA D24 | S175: 602.341 | T175: 4656.16 | V175: MOSUMT PC | W175: 2.759 | X175: 4613.7 | Z175: MESA D24 | AA175: 602.447 | AB175: 4623.57 | AL175: MOSU MT | AM175: 0.78 | AN175: 4468.64 | AP175: MOSUMT PC | AQ175: 5.345 | AR175: 4639.25 | AT175: MOSU MT | AU175: 1.216 | AV175: 4516.21 | BG175: MOSU MT | BH175: 0.529 | BI175: 4780.319 | BK175: MOSU MT | BL175: 0.235 | BM175: 4637.797 | BO175: MOSU MT | BP175: 0.477 | BQ175: 4153.679 | CD175: NOBXFLD PC | CE175: 0 | CF175: 4811.359 | CH175: NOBXFLD PC | CI175: 0 | CJ175: 4749.848 | CL175: NOBXFLD PC | CM175: 0 | CN175: 4686.044
R176: MESA D8 | S176: 309.131 | T176: 4656.16 | V176: PDW MT | W176: 169.673 | X176: 4613.7 | Z176: MESA D8 | AA176: 292.532 | AB176: 4623.57 | AL176: MOSUMT D24 | AM176: 1.046 | AN176: 4468.64 | AP176: NBXCAMP PC | AQ176: 4.2 | AR176: 4639.25 | AT176: MOSUMT D24 | AU176: 1.739 | AV176: 4516.21 | BG176: MOSUMT D24 | BH176: 3.182 | BI176: 4780.319 | BK176: MOSUMT D24 | BL176: 1.174 | BM176: 4637.797 | BO176: MOSUMT D24 | BP176: 0.866 | BQ176: 4153.679 | CD176: PDW MT | CE176: 167.771 | CF176: 4811.359 | CH176: PDW MT | CI176: 150.672 | CJ176: 4749.848 | CL176: PDW MT | CM176: 149.644 | CN176: 4686.044
R177: MOSU MT | S177: 0.362 | T177: 4656.16 | V177: PDW1A1B D21 | W177: 0.108 | X177: 4613.7 | Z177: MOSU MT | AA177: 0.703 | AB177: 4623.57 | AL177: MOSUMT PC | AM177: 4.421 | AN177: 4468.64 | AP177: NOBXFLD PC | AQ177: 4.703 | AR177: 4639.25 | AT177: MOSUMT PC | AU177: 8.008 | AV177: 4516.21 | BG177: MOSUMT PC | BH177: 6.166 | BI177: 4780.319 | BK177: MOSUMT PC | BL177: 5.701 | BM177: 4637.797 | BO177: MOSUMT PC | BP177: 5.544 | BQ177: 4153.679 | CD177: PDW1A1B D21 | CE177: 0.187 | CF177: 4811.359 | CH177: PDW1A1B D21 | CI177: 0.047 | CJ177: 4749.848 | CL177: PDW1A1B D21 | CM177: 0.035 | CN177: 4686.044
R178: MOSUMT D24 | S178: 0.69 | T178: 4656.16 | V178: PDW1AB MT PC | W178: 2.749 | X178: 4613.7 | Z178: MOSUMT D24 | AA178: 1.258 | AB178: 4623.57 | AL178: NBXCAMP PC | AM178: 4.286 | AN178: 4468.64 | AP178: PDW MT | AQ178: 153.379 | AR178: 4639.25 | AT178: NBXCAMP PC | AU178: 4.201 | AV178: 4516.21 | BG178: NBXCAMP PC | BH178: 3.497 | BI178: 4780.319 | BK178: NBXCAMP PC | BL178: 0 | BM178: 4637.797 | BO178: NBXCAMP PC | BP178: 0 | BQ178: 4153.679 | CD178: PDW1A1B D24 | CE178: 0.438 | CF178: 4811.359 | CH178: PDW1A1B D24 | CI178: 0.542 | CJ178: 4749.848 | CL178: PDW1A1B D24 | CM178: 0.581 | CN178: 4686.044
R179: MOSUMT PC | S179: 7.02 | T179: 4656.16 | V179: PDWCUT PC | W179: 0.034 | X179: 4613.7 | Z179: MOSUMT PC | AA179: 8.417 | AB179: 4623.57 | AL179: NOBXFLD PC | AM179: 3.1 | AN179: 4468.64 | AP179: PDW1A1B D24 | AQ179: 0.769 | AR179: 4639.25 | AT179: NOBXFLD PC | AU179: 3.836 | AV179: 4516.21 | BG179: NOBXFLD PC | BH179: 1.137 | BI179: 4780.319 | BK179: NOBXFLD PC | BL179: 0 | BM179: 4637.797 | BO179: NOBXFLD PC | BP179: 0 | BQ179: 4153.679 | CD179: PDW1AB MT PC | CE179: 1.459 | CF179: 4811.359 | CH179: PDW1AB MT PC | CI179: 0.229 | CJ179: 4749.848 | CL179: PDW1AB MT PC | CM179: 0.966 | CN179: 4686.044
R180: NOBXFLD PC | S180: 0.145 | T180: 4656.16 | V180: PDWMT D24 | W180: 19.707 | X180: 4613.7 | Z180: NBXCAMP PC | AA180: 5.376 | AB180: 4623.57 | AL180: PDW MT | AM180: 110.934 | AN180: 4468.64 | AP180: PDW1AB MT PC | AQ180: 4.725 | AR180: 4639.25 | AT180: PDW MT | AU180: 172.992 | AV180: 4516.21 | AX180: NBXCAMP PC | BG180: PDW MT | BH180: 174.595 | BI180: 4780.319 | BK180: PDW MT | BL180: 180.475 | BM180: 4637.797 | BO180: PDW MT | BP180: 157.391 | BQ180: 4153.679 | CD180: PDW1A1B PC | CE180: 0.693 | CF180: 4811.359 | CH180: PDW1A1B PC | CI180: 0.103 | CJ180: 4749.848 | CL180: PDW1A1B PC | CM180: 0.206 | CN180: 4686.044
R181: PDW MT | S181: 189.286 | T181: 4656.16 | V181: PDWPLT2 D24 | W181: 3.877 | X181: 4613.7 | Z181: NOBXFLD PC | AA181: 5.467 | AB181: 4623.57 | AL181: PDW1A1B D21 | AM181: 0.023 | AN181: 4468.64 | AP181: PDWMT D24 | AQ181: 16.5 | AR181: 4639.25 | AT181: PDW1A1B D21 | AU181: 0.769 | AV181: 4516.21 | AX181: NOBXFLD PC | BG181: PDW1A1B D21 | BH181: 0.543 | BI181: 4780.319 | BK181: PDW1A1B D21 | BL181: 0.156 | BM181: 4637.797 | BO181: PDW1A1B D21 | BP181: 0.055 | BQ181: 4153.679 | CD181: PDWCUT D24 | CE181: 1.181 | CF181: 4811.359 | CH181: PDWCUT D24 | CI181: 0.065 | CJ181: 4749.848 | CL181: PDWCUT D24 | CM181: 0.131 | CN181: 4686.044
R182: PDW1A1B D21 | S182: 0.855 | T182: 4656.16 | V182: PDWPLT2 PC | W182: 4.299 | X182: 4613.7 | Z182: PDW MT | AA182: 142.2 | AB182: 4623.57 | AL182: PDW1A1B D24 | AM182: 0.762 | AN182: 4468.64 | AP182: PDWPLT2 D24 | AQ182: 3.308 | AR182: 4639.25 | AT182: PDW1A1B D24 | AU182: 0.694 | AV182: 4516.21 | AX182: OFF SYS D24 | BG182: PDW1A1B D24 | BH182: 0.605 | BI182: 4780.319 | BK182: PDW1A1B D24 | BL182: 0.564 | BM182: 4637.797 | BO182: PDW1A1B D24 | BP182: 0.433 | BQ182: 4153.679 | CD182: PDWCUT PC | CE182: 1.017 | CF182: 4811.359 | CH182: PDWCUT PC | CI182: 0.092 | CJ182: 4749.848 | CL182: PDWCUT PC | CM182: 0 | CN182: 4686.044
R183: PDW1A1B D24 | S183: 0.05 | T183: 4656.16 | V183: PDWPLT3 PC | W183: 4.09 | X183: 4613.7 | Z183: PDW1A1B D21 | AA183: 0.477 | AB183: 4623.57 | AL183: PDW1AB MT PC | AM183: 3.108 | AN183: 4468.64 | AP183: PDWPLT2 PC | AQ183: 3.875 | AR183: 4639.25 | AT183: PDW1AB MT PC | AU183: 4.843 | AV183: 4516.21 | AX183: OFF SYS PC | BG183: PDW1AB MT PC | BH183: 3.85 | BI183: 4780.319 | BK183: PDW1AB MT PC | BL183: 3.953 | BM183: 4637.797 | BO183: PDW1AB MT PC | BP183: 1.888 | BQ183: 4153.679 | CD183: PDWMT D24 | CE183: 23.368 | CF183: 4811.359 | CH183: PDWMT D24 | CI183: 22.505 | CJ183: 4749.848 | CL183: PDWMT D24 | CM183: 20.456 | CN183: 4686.044
R184: PDW1AB MT PC | S184: 3.994 | T184: 4656.16 | V184: TRAIL 2D8 | W184: 66.445 | X184: 4613.7 | Z184: PDW1A1B D24 | AA184: 0.942 | AB184: 4623.57 | AL184: PDWMT D24 | AM184: 15.73 | AN184: 4468.64 | AP184: PDWPLT3 PC | AQ184: 5.002 | AR184: 4639.25 | AT184: PDW1A1B PC | AU184: 0.769 | AV184: 4516.21 | AX184: OFF SYS PW | BG184: PDW1A1B PC | BH184: 0.856 | BI184: 4780.319 | BK184: PDW1A1B PC | BL184: 1.914 | BM184: 4637.797 | BO184: PDW1A1B PC | BP184: 0.399 | BQ184: 4153.679 | CD184: PDWPLT2 D24 | CE184: 4.333 | CF184: 4811.359 | CH184: PDWPLT2 D24 | CI184: 4.058 | CJ184: 4749.848 | CL184: PDWPLT2 D24 | CM184: 4.176 | CN184: 4686.044
R185: PDW1A1B PC | S185: 0.194 | T185: 4656.16 | V185: TRAIL 2E | W185: 340.897 | X185: 4613.7 | Z185: PDW1AB MT PC | AA185: 4.581 | AB185: 4623.57 | AL185: PDWPLT2 D24 | AM185: 2.397 | AN185: 4468.64 | AP185: SGRLF D24 | AQ185: 1.657 | AR185: 4639.25 | AT185: PDWCUT D24 | AU185: 2.37 | AV185: 4516.21 | BG185: PDWCUT D24 | BH185: 1.852 | BI185: 4780.319 | BK185: PDWCUT D24 | BL185: 1.728 | BM185: 4637.797 | BO185: PDWCUT D24 | BP185: 1.38 | BQ185: 4153.679 | CD185: PDWPLT2 PC | CE185: 5.15 | CF185: 4811.359 | CH185: PDWPLT2 PC | CI185: 4.882 | CJ185: 4749.848 | CL185: PDWPLT2 PC | CM185: 5.204 | CN185: 4686.044
R186: PDWCUT D24 | S186: 0.099 | T186: 4656.16 | V186: TRAIL 2E MT | W186: 48.062 | X186: 4613.7 | Z186: PDWMT D24 | AA186: 13.53 | AB186: 4623.57 | AL186: PDWPLT2 PC | AM186: 3.902 | AN186: 4468.64 | AP186: SGRLF PC | AQ186: 40.835 | AR186: 4639.25 | AT186: PDWCUT PC | AU186: 1.288 | AV186: 4516.21 | BG186: PDWCUT PC | BH186: 1.604 | BI186: 4780.319 | BK186: PDWCUT PC | BL186: 1.786 | BM186: 4637.797 | BO186: PDWCUT PC | BP186: 0.24 | BQ186: 4153.679 | CD186: PDWPLT3 PC | CE186: 4.518 | CF186: 4811.359 | CH186: PDWPLT3 PC | CI186: 4.245 | CJ186: 4749.848 | CL186: PDWPLT3 PC | CM186: 5.402 | CN186: 4686.044
R187: PDWCUT PC | S187: 0.686 | T187: 4656.16 | V187: TRAIL D24 | W187: 311.73 | X187: 4613.7 | Z187: PDWPLT2 D24 | AA187: 3.717 | AB187: 4623.57 | AL187: PDWPLT3 PC | AM187: 4.326 | AN187: 4468.64 | AP187: SGRLFMT D24 | AQ187: 20.207 | AR187: 4639.25 | AT187: PDWMT D24 | AU187: 18.519 | AV187: 4516.21 | BG187: PDWMT D24 | BH187: 19.298 | BI187: 4780.319 | BK187: PDWMT D24 | BL187: 22.412 | BM187: 4637.797 | BO187: PDWMT D24 | BP187: 19.864 | BQ187: 4153.679 | CD187: SGRLF D24 | CE187: 1.019 | CF187: 4811.359 | CH187: SGRLF D24 | CI187: 1.572 | CJ187: 4749.848 | CL187: SGRLF D24 | CM187: 2.159 | CN187: 4686.044
R188: PDWMT D24 | S188: 21.538 | T188: 4656.16 | V188: TRAIL D8 | W188: 72.95 | X188: 4613.7 | Z188: PDWPLT2 PC | AA188: 4.315 | AB188: 4623.57 | AL188: SGRLF D24 | AM188: 1.775 | AN188: 4468.64 | AP188: TRAIL 2D8 | AQ188: 78.107 | AR188: 4639.25 | AT188: PDWPLT2 D24 | AU188: 3.383 | AV188: 4516.21 | BG188: PDWPLT2 D24 | BH188: 4.134 | BI188: 4780.319 | BK188: PDWPLT2 D24 | BL188: 4.135 | BM188: 4637.797 | BO188: PDWPLT2 D24 | BP188: 4.881 | BQ188: 4153.679 | CD188: SGRLF PC | CE188: 33.59 | CF188: 4811.359 | CH188: SGRLF PC | CI188: 34.68 | CJ188: 4749.848 | CL188: SGRLF PC | CM188: 36.477 | CN188: 4686.044
R189: PDWPLT2 D24 | S189: 4.936 | T189: 4656.16 | V189: TRAIL Q50 | W189: 0.841 | X189: 4613.7 | Z189: PDWPLT3 PC | AA189: 5.828 | AB189: 4623.57 | AL189: SGRLF PC | AM189: 42.428 | AN189: 4468.64 | AP189: TRAIL 2E | AQ189: 322.502 | AR189: 4639.25 | AT189: PDWPLT2 PC | AU189: 5.079 | AV189: 4516.21 | BG189: PDWPLT2 PC | BH189: 4.375 | BI189: 4780.319 | BK189: PDWPLT2 PC | BL189: 3.588 | BM189: 4637.797 | BO189: PDWPLT2 PC | BP189: 3.703 | BQ189: 4153.679 | CD189: SGRLFMT D24 | CE189: 12.982 | CF189: 4811.359 | CH189: SGRLFMT D24 | CI189: 13.639 | CJ189: 4749.848 | CL189: SGRLFMT D24 | CM189: 13.495 | CN189: 4686.044
R190: PDWPLT2 PC | S190: 4.812 | T190: 4656.16 | V190: TRAILMT D24 | W190: 48.633 | X190: 4613.7 | Z190: SGRLF D24 | AA190: 1.901 | AB190: 4623.57 | AL190: SGRLFMT D24 | AM190: 17.433 | AN190: 4468.64 | AP190: TRAIL 2E MT | AQ190: 46.5 | AR190: 4639.25 | AT190: PDWPLT3 PC | AU190: 5.138 | AV190: 4516.21 | BG190: PDWPLT3 PC | BH190: 4.842 | BI190: 4780.319 | BK190: PDWPLT3 PC | BL190: 4.027 | BM190: 4637.797 | BO190: PDWPLT3 PC | BP190: 3.837 | BQ190: 4153.679 | CD190: TRAIL 2D8 | CE190: 273.287 | CF190: 4811.359 | CH190: TRAIL 2D8 | CI190: 257.506 | CJ190: 4749.848 | CL190: TRAIL 2D8 | CM190: 271.662 | CN190: 4686.044
R191: PDWPLT3 PC | S191: 5.491 | T191: 4656.16 | V191: WHISKEY MT | W191: 22.249 | X191: 4613.7 | Z191: SGRLF PC | AA191: 34.312 | AB191: 4623.57 | AL191: TRAIL 2D8 | AM191: 78.092 | AN191: 4468.64 | AP191: TRAIL D24 | AQ191: 295.459 | AR191: 4639.25 | AT191: SGRLF D24 | AU191: 1.234 | AV191: 4516.21 | BG191: SGRLF D24 | BH191: 1.89 | BI191: 4780.319 | BK191: SGRLF D24 | BL191: 1.795 | BM191: 4637.797 | BO191: SGRLF D24 | BP191: 1.083 | BQ191: 4153.679 | CD191: TRAIL 2E | CE191: 293.507 | CF191: 4811.359 | CH191: TRAIL 2E | CI191: 284.021 | CJ191: 4749.848 | CL191: TRAIL 2E | CM191: 268.384 | CN191: 4686.044
R192: SGRLF D24 | S192: 0.162 | T192: 4656.16 | V192: WHISKEYC 2E | W192: 81.044 | X192: 4613.7 | Z192: SGRLFMT D24 | AA192: 9.052 | AB192: 4623.57 | AL192: TRAIL 2E | AM192: 296.84 | AN192: 4468.64 | AP192: TRAIL D8 | AQ192: 89.78 | AR192: 4639.25 | AT192: SGRLF PC | AU192: 38.25 | AV192: 4516.21 | BG192: SGRLF PC | BH192: 34.412 | BI192: 4780.319 | BK192: SGRLF PC | BL192: 37.166 | BM192: 4637.797 | BO192: SGRLF PC | BP192: 31.066 | BQ192: 4153.679 | CD192: TRAIL 2E MT | CE192: 42.845 | CF192: 4811.359 | CH192: TRAIL 2E MT | CI192: 41.29 | CJ192: 4749.848 | CL192: TRAIL 2E MT | CM192: 37.031 | CN192: 4686.044
R193: SGRLF PC | S193: 3.509 | T193: 4656.16 | V193: WHLA D24 | W193: 31.157 | X193: 4613.7 | Z193: TRAIL 2D8 | AA193: 84.836 | AB193: 4623.57 | AL193: TRAIL 2E MT | AM193: 44.125 | AN193: 4468.64 | AP193: TRAIL PC | AQ193: 1.067 | AR193: 4639.25 | AT193: SGRLFMT D24 | AU193: 17.596 | AV193: 4516.21 | BG193: SGRLFMT D24 | BH193: 15.267 | BI193: 4780.319 | BK193: SGRLFMT D24 | BL193: 15.37 | BM193: 4637.797 | BO193: SGRLFMT D24 | BP193: 12.667 | BQ193: 4153.679 | CD193: TRAIL D24 | CE193: 268.075 | CF193: 4811.359 | CH193: TRAIL D24 | CI193: 261.674 | CJ193: 4749.848 | CL193: TRAIL D24 | CM193: 243.62 | CN193: 4686.044
R194: SGRLFMT D24 | S194: 1.329 | T194: 4656.16 | V194: WHLA PC | W194: 8.908 | X194: 4613.7 | Z194: TRAIL 2E | AA194: 319.133 | AB194: 4623.57 | AL194: TRAIL D24 | AM194: 275.296 | AN194: 4468.64 | AP194: TRAIL Q50 | AQ194: 2.195 | AR194: 4639.25 | AT194: TRAIL 2D8 | AU194: 73.305 | AV194: 4516.21 | BG194: TRAIL 2D8 | BH194: 67.069 | BI194: 4780.319 | BK194: TRAIL 2D8 | BL194: 66.902 | BM194: 4637.797 | BO194: TRAIL 2D8 | BP194: 57.806 | BQ194: 4153.679 | CD194: TRAIL D8 | CE194: 231.575 | CF194: 4811.359 | CH194: TRAIL D8 | CI194: 221.677 | CJ194: 4749.848 | CL194: TRAIL D8 | CM194: 232.281 | CN194: 4686.044
R195: TRAIL 2D8 | S195: 64.461 | T195: 4656.16 | V195: WWILSON D24 | W195: 2.187 | X195: 4613.7 | Z195: TRAIL 2E MT | AA195: 46.435 | AB195: 4623.57 | AL195: TRAIL D8 | AM195: 79.548 | AN195: 4468.64 | AP195: TRAILMT D24 | AQ195: 47.05 | AR195: 4639.25 | AT195: TRAIL 2E | AU195: 322.287 | AV195: 4516.21 | BG195: TRAIL 2E | BH195: 293.149 | BI195: 4780.319 | BK195: TRAIL 2E | BL195: 313.017 | BM195: 4637.797 | BO195: TRAIL 2E | BP195: 276.675 | BQ195: 4153.679 | CD195: TRAIL PC | CE195: 1.064 | CF195: 4811.359 | CH195: TRAIL PC | CI195: 0.888 | CJ195: 4749.848 | CL195: TRAIL PC | CM195: 0.931 | CN195: 4686.044
R196: TRAIL 2E | S196: 338.836 | T196: 4656.16 | V196: WWILSON PC | W196: 0.889 | X196: 4613.7 | Z196: TRAIL D24 | AA196: 297.259 | AB196: 4623.57 | AL196: TRAIL PC | AM196: 1.089 | AN196: 4468.64 | AP196: WHISKEY MT | AQ196: 23.782 | AR196: 4639.25 | AT196: TRAIL 2E MT | AU196: 42.956 | AV196: 4516.21 | BG196: TRAIL 2E MT | BH196: 40.779 | BI196: 4780.319 | BK196: TRAIL 2E MT | BL196: 46.138 | BM196: 4637.797 | BO196: TRAIL 2E MT | BP196: 41.573 | BQ196: 4153.679 | CD196: TRAIL Q50 | CE196: 0.625 | CF196: 4811.359 | CH196: TRAIL Q50 | CI196: 1.656 | CJ196: 4749.848 | CL196: TRAIL Q50 | CM196: 1.466 | CN196: 4686.044
R197: TRAIL 2E MT | S197: 46.085 | T197: 4656.16 | V197: TRAIL D8 | W197: 86.281 | X197: 4613.7 | Z197: TRAIL D8 | AA197: 85.604 | AB197: 4623.57 | AL197: TRAIL Q50 | AM197: 2.57 | AN197: 4468.64 | AP197: WHISKEYC 2E | AQ197: 78.827 | AR197: 4639.25 | AT197: TRAIL D24 | AU197: 292.786 | AV197: 4516.21 | BG197: TRAIL D24 | BH197: 271.257 | BI197: 4780.319 | BK197: TRAIL D24 | BL197: 284.828 | BM197: 4637.797 | BO197: TRAIL D24 | BP197: 252.858 | BQ197: 4153.679 | CD197: TRAILMT D24 | CE197: 43.346 | CF197: 4811.359 | CH197: TRAILMT D24 | CI197: 41.773 | CJ197: 4749.848 | CL197: TRAILMT D24 | CM197: 37.466 | CN197: 4686.044
R198: TRAIL D24 | S198: 310.996 | T198: 4656.16 | V198: TRAIL 2D8 | W198: 171.56 | X198: 4613.7 | Z198: TRAIL PC | AA198: 1.342 | AB198: 4623.57 | AL198: TRAILMT D24 | AM198: 44.634 | AN198: 4468.64 | AP198: WHLA D24 | AQ198: 36.173 | AR198: 4639.25 | AT198: TRAIL D8 | AU198: 85.388 | AV198: 4516.21 | BG198: TRAIL D8 | BH198: 191.339 | BI198: 4780.319 | BK198: TRAIL D8 | BL198: 189.851 | BM198: 4637.797 | BO198: TRAIL D8 | BP198: 182.213 | BQ198: 4153.679 | CD198: WHISKEY MT | CE198: 19.083 | CF198: 4811.359 | CH198: WHISKEY MT | CI198: 18.152 | CJ198: 4749.848 | CL198: WHISKEY MT | CM198: 22.231 | CN198: 4686.044
R199: TRAIL D8 | S199: 69.4 | T199: 4656.16 | V199: MESA D8 | W199: 154.14 | X199: 4613.7 | Z199: TRAIL Q50 | AA199: 2.798 | AB199: 4623.57 | AL199: WHISKEY MT | AM199: 13.062 | AN199: 4468.64 | AP199: WHLA PC | AQ199: 3.98 | AR199: 4639.25 | AT199: TRAIL PC | AU199: 1.04 | AV199: 4516.21 | BG199: TRAIL PC | BH199: 0.738 | BI199: 4780.319 | BK199: TRAIL PC | BL199: 1.003 | BM199: 4637.797 | BO199: TRAIL PC | BP199: 0.831 | BQ199: 4153.679 | CD199: WHISKEYC 2E | CE199: 102.772 | CF199: 4811.359 | CH199: WHISKEYC 2E | CI199: 72.354 | CJ199: 4749.848 | CL199: WHISKEYC 2E | CM199: 74.322 | CN199: 4686.044
R200: TRAIL PC | S200: 0.316 | T200: 4656.16 | Z200: TRAILMT D24 | AA200: 46.975 | AB200: 4623.57 | AL200: WHISKEYC 2E | AM200: 57.471 | AN200: 4468.64 | AP200: WWILSON D24 | AQ200: 2.102 | AR200: 4639.25 | AT200: TRAIL Q50 | AU200: 1.908 | AV200: 4516.21 | BG200: TRAIL Q50 | BH200: 2.079 | BI200: 4780.319 | BK200: TRAIL Q50 | BL200: 1.607 | BM200: 4637.797 | BO200: TRAIL Q50 | BP200: 1.627 | BQ200: 4153.679 | CD200: WHLA D24 | CE200: 33.344 | CF200: 4811.359 | CH200: WHLA D24 | CI200: 31.179 | CJ200: 4749.848 | CL200: WHLA D24 | CM200: 30.595 | CN200: 4686.044
R201: TRAIL Q50 | S201: 0.116 | T201: 4656.16 | Z201: WHISKEY MT | AA201: 14.599 | AB201: 4623.57 | AL201: WHLA D24 | AM201: 36.458 | AN201: 4468.64 | AP201: WWILSON PC | AQ201: 5.755 | AR201: 4639.25 | AT201: TRAILMT D24 | AU201: 43.504 | AV201: 4516.21 | BG201: TRAILMT D24 | BH201: 35.835 | BI201: 4780.319 | BK201: TRAILMT D24 | BL201: 46.682 | BM201: 4637.797 | BO201: TRAILMT D24 | BP201: 42.061 | BQ201: 4153.679 | CD201: WHLA PC | CE201: 1.751 | CF201: 4811.359 | CH201: WHLA PC | CI201: 1.568 | CJ201: 4749.848 | CL201: WHLA PC | CM201: 1.14 | CN201: 4686.044
R202: TRAILMT D24 | S202: 46.652 | T202: 4656.16 | Z202: WHISKEYC 2E | AA202: 60.964 | AB202: 4623.57 | AL202: WHLA PC | AM202: 6.84 | AN202: 4468.64 | AP202: z20 TRAIL D8 | AQ202: 40.823 | AR202: 4639.25 | AT202: WHISKEY MT | AU202: 25.455 | AV202: 4516.21 | BG202: WHISKEY MT | BH202: 20.242 | BI202: 4780.319 | BK202: WHISKEY MT | BL202: 18.866 | BM202: 4637.797 | BO202: WHISKEY MT | BP202: 18.049 | BQ202: 4153.679 | CD202: WWILSON D24 | CE202: 0.274 | CF202: 4811.359 | CH202: WWILSON D24 | CI202: 0.278 | CJ202: 4749.848 | CL202: WWILSON D24 | CM202: 1.234 | CN202: 4686.044
... 10 more rows

Sheet Normal Purchase % (hidden)
A2: Source: The whole numbers come from Purchase Gas and Company Owned Gas sheets. The percentages are then calculated from those numbers.
B3: 2 | C3: 3 | D3: 4 | E3: 5 | F3: 6 | G3: 7 | H3: 8 | I3: 9
A4: Month | B4: Actual Purchase Mdth | C4: Normal Purchase Mdth | D4: Actual Company Mdth | E4: Normal Company Mdths | F4: Actual Purchase as Percent of Total | G4: Normal Purchase as Percent of Total | H4: Actual Cost-of-Service as Percent of Total | I4: Normal Cost-of-Service as Percent of Total | K4: Check Should = 100% | L4: Check Should = 100%
A5: ='Ex 1 HDD'!A8 -> 2021-06-01 | B5: ='Ex 4 Purchase Gas'!B8 -> 0 | C5: ='Ex 4 Purchase Gas'!C8 -> 528.775 | D5: ='Ex 7 Co. Owned Gas'!B8 -> 4656.166 | E5: ='Ex 7 Co. Owned Gas'!C8 -> 4722.177 | F5: =IFERROR(B5/(B5+D5),0) -> 0 | G5: =C5/(C5+E5) -> 0.1007007872 | H5: =IFERROR(D5/(D5+B5),0) -> 1 | I5: =E5/(E5+C5) -> 0.8992992128 | K5: =F5+H5 -> 1 | L5: =G5+I5 -> 1
A6: ='Ex 1 HDD'!A9 -> 2021-07-01 | B6: ='Ex 4 Purchase Gas'!B9 -> 0 | C6: ='Ex 4 Purchase Gas'!C9 -> 58.162 | D6: ='Ex 7 Co. Owned Gas'!B9 -> 4613.595 | E6: ='Ex 7 Co. Owned Gas'!C9 -> 4800.331 | F6: =IFERROR(B6/(B6+D6),0) -> 0 | G6: 0.01197120177 | H6: =IFERROR(D6/(D6+B6),0) -> 1 | I6: 0.9880287982 | K6: 1 | L6: 1
A7: ='Ex 1 HDD'!A10 -> 2021-08-01 | B7: ='Ex 4 Purchase Gas'!B10 -> 70 | C7: ='Ex 4 Purchase Gas'!C10 -> 91.244 | D7: ='Ex 7 Co. Owned Gas'!B10 -> 4623.568 | E7: ='Ex 7 Co. Owned Gas'!C10 -> 4608.729 | F7: 0.01491402703 | G7: 0.01941372855 | H7: 0.985085973 | I7: 0.9805862715 | K7: 1 | L7: 1
A8: ='Ex 1 HDD'!A11 -> 2021-09-01 | B8: ='Ex 4 Purchase Gas'!B11 -> 558.699 | C8: ='Ex 4 Purchase Gas'!C11 -> 1151.47 | D8: ='Ex 7 Co. Owned Gas'!B11 -> 4468.642 | E8: ='Ex 7 Co. Owned Gas'!C11 -> 4373.679 | F8: 0.1111321074 | G8: 0.2084052394 | H8: 0.8888678926 | I8: 0.7915947606 | K8: 1 | L8: 1
A9: ='Ex 1 HDD'!A12 -> 2021-10-01 | B9: ='Ex 4 Purchase Gas'!B12 -> 5376.806 | C9: ='Ex 4 Purchase Gas'!C12 -> 4409.59 | D9: ='Ex 7 Co. Owned Gas'!B12 -> 4639.253 | E9: ='Ex 7 Co. Owned Gas'!C12 -> 4516.218 | F9: 0.5368185231 | G9: 0.4940269833 | H9: 0.4631814769 | I9: 0.5059730167 | K9: 1 | L9: 1
A10: ='Ex 1 HDD'!A13 -> 2021-11-01 | B10: ='Ex 4 Purchase Gas'!B13 -> 6573.12 | C10: ='Ex 4 Purchase Gas'!C13 -> 6661.925 | D10: ='Ex 7 Co. Owned Gas'!B13 -> 4516.209 | E10: ='Ex 7 Co. Owned Gas'!C13 -> 5297.355 | F10: 0.5927428071 | G10: 0.5570506753 | H10: 0.4072571929 | I10: 0.4429493247 | K10: =F10+H10 -> 1 | L10: 1
A11: ='Ex 1 HDD'!A14 -> 2021-12-01 | B11: ='Ex 4 Purchase Gas'!B14 -> 12438.054 | C11: ='Ex 4 Purchase Gas'!C14 -> 9621.875 | D11: ='Ex 7 Co. Owned Gas'!B14 -> 4780 | E11: ='Ex 7 Co. Owned Gas'!C14 -> 5402.657 | F11: 0.7223844228 | G11: 0.6404109626 | H11: 0.2776155772 | I11: 0.3595890374 | K11: 1 | L11: 1
A12: ='Ex 1 HDD'!A15 -> 2022-01-01 | B12: ='Ex 4 Purchase Gas'!B15 -> 12925.585 | C12: ='Ex 4 Purchase Gas'!C15 -> 11451.82 | D12: ='Ex 7 Co. Owned Gas'!B15 -> 4638 | E12: ='Ex 7 Co. Owned Gas'!C15 -> 5318.111 | F12: 0.7359309048 | G12: 0.6828781824 | H12: 0.2640690952 | I12: 0.3171218176 | K12: 1 | L12: 1
A13: ='Ex 1 HDD'!A16 -> 2022-02-01 | B13: ='Ex 4 Purchase Gas'!B16 -> 11200.611 | C13: ='Ex 4 Purchase Gas'!C16 -> 10038.777 | D13: ='Ex 7 Co. Owned Gas'!B16 -> 4154 | E13: ='Ex 7 Co. Owned Gas'!C16 -> 4734.414 | F13: 0.7294623745 | G13: 0.6795266507 | H13: 0.2705376255 | I13: 0.3204733493 | K13: 1 | L13: 1
A14: ='Ex 1 HDD'!A17 -> 2022-03-01 | B14: ='Ex 4 Purchase Gas'!B17 -> 5376.039 | C14: ='Ex 4 Purchase Gas'!C17 -> 7286.468 | D14: ='Ex 7 Co. Owned Gas'!B17 -> 4811.359 | E14: ='Ex 7 Co. Owned Gas'!C17 -> 5155.956 | F14: 0.5277146333 | G14: 0.5856148288 | H14: 0.4722853667 | I14: 0.4143851712 | K14: 1 | L14: 1
A15: ='Ex 1 HDD'!A18 -> 2022-04-01 | B15: ='Ex 4 Purchase Gas'!B18 -> 2945.827 | C15: ='Ex 4 Purchase Gas'!C18 -> 5658.297 | D15: ='Ex 7 Co. Owned Gas'!B18 -> 4749.848 | E15: ='Ex 7 Co. Owned Gas'!C18 -> 4714.368 | F15: 0.3827899437 | G15: 0.5455007946 | H15: 0.6172100563 | I15: 0.4544992054 | K15: 1 | L15: 1
A16: ='Ex 1 HDD'!A19 -> 2022-05-01 | B16: ='Ex 4 Purchase Gas'!B19 -> 1018.369 | C16: ='Ex 4 Purchase Gas'!C19 -> 3102.498 | D16: ='Ex 7 Co. Owned Gas'!B19 -> 4686.044 | E16: ='Ex 7 Co. Owned Gas'!C19 -> 4794.916 | F16: 0.1785230137 | G16: 0.392849862 | H16: 0.8214769863 | I16: 0.607150138 | K16: 1 | L16: 1
A18: Q1 | B18: =SUM(B5:B7) -> 70 | C18: =SUM(C5:C7) -> 678.181 | D18: =SUM(D5:D7) -> 13893.329 | E18: =SUM(E5:E7) -> 14131.237 | F18: =IFERROR(B18/(B18+D18),0) -> 0.005013131181 | G18: =C18/(C18+E18) -> 0.04579389953 | H18: =IFERROR(D18/(D18+B18),0) -> 0.9949868688 | I18: =E18/(E18+C18) -> 0.9542061005 | K18: =F18+H18 -> 1 | L18: 1
A19: Q2 | B19: =SUM(B8:B10) -> 12508.625 | C19: =SUM(C8:C10) -> 12222.985 | D19: =SUM(D8:D10) -> 13624.104 | E19: =SUM(E8:E10) -> 14187.252 | F19: =IFERROR(B19/(B19+D19),0) -> 0.4786574337 | G19: =C19/(C19+E19) -> 0.4628123935 | H19: =IFERROR(D19/(D19+B19),0) -> 0.5213425663 | I19: =E19/(E19+C19) -> 0.5371876065 | K19: 1 | L19: 1
A20: Q3 | B20: =SUM(B11:B13) -> 36564.25 | C20: =SUM(C11:C13) -> 31112.472 | D20: =SUM(D11:D13) -> 13572 | E20: =SUM(E11:E13) -> 15455.182 | F20: 0.7292976639 | G20: 0.6681133647 | H20: 0.2707023361 | I20: 0.3318866353 | K20: 1 | L20: 1
A21: Q4 | B21: =SUM(B14:B16) -> 9340.235 | C21: =SUM(C14:C16) -> 16047.263 | D21: =SUM(D14:D16) -> 14247.251 | E21: =SUM(E14:E16) -> 14665.24 | F21: 0.395982641 | G21: 0.5224993547 | H21: 0.604017359 | I21: =E21/(E21+C21) -> 0.4775006453 | K21: =F21+H21 -> 1 | L21: =G21+I21 -> 1
B22: IRP | C22: Actual | D22: IRP | E22: Actual | F22: 0 | G22: Actual | H22: 0 | I22: Actual
F24: =F4 -> Actual Purchase as Percent of Total | G24: =G4 -> Normal Purchase as Percent of Total | H24: =H4 -> Actual Cost-of-Service as Percent of Total | I24: =I4 -> Normal Cost-of-Service as Percent of Total
E25: =A14 -> 2022-03-01 | F25: =VLOOKUP($E25,$A$5:$I$16,F$3,FALSE) -> 0.5277146333 | G25: =VLOOKUP($E25,$A$5:$I$16,G$3,FALSE) -> 0.5856148288 | H25: 0.4722853667 | I25: 0.4143851712 | K25: =F25+H25 -> 1 | L25: 1
E26: =A15 -> 2022-04-01 | F26: =VLOOKUP($E26,$A$5:$I$16,F$3,FALSE) -> 0.3827899437 | G26: 0.5455007946 | H26: 0.6172100563 | I26: 0.4544992054 | K26: 1 | L26: 1
E27: 2022-05-01 | F27: =VLOOKUP($E27,$A$5:$I$16,F$3,FALSE) -> 0.1785230137 | G27: 0.392849862 | H27: 0.8214769863 | I27: 0.607150138 | K27: 1 | L27: 1
E29: =A18 -> Q1 | F29: =VLOOKUP($E29,$A$18:$I$21,F$3,FALSE) -> 0.005013131181 | G29: =VLOOKUP($E29,$A$18:$I$21,G$3,FALSE) -> 0.04579389953 | H29: 0.9949868688 | I29: 0.9542061005 | K29: =F29+H29 -> 1 | L29: 1
E30: =A19 -> Q2 | F30: =VLOOKUP($E30,$A$18:$I$21,F$3,FALSE) -> 0.4786574337 | G30: 0.4628123935 | H30: 0.5213425663 | I30: 0.5371876065 | K30: 1 | L30: 1
E31: =A20 -> Q3 | F31: =VLOOKUP($E31,$A$18:$I$21,F$3,FALSE) -> 0.7292976639 | G31: 0.6681133647 | H31: 0.2707023361 | I31: 0.3318866353 | K31: 1 | L31: 1
E32: Q4 | F32: =VLOOKUP($E32,$A$18:$I$21,F$3,FALSE) -> 0.395982641 | G32: 0.5224993547 | H32: 0.604017359 | I32: 0.4775006453 | K32: 1 | L32: 1 | N32: =F32-G32 -> -0.1265167138 | O32: =I32-H32 -> -0.1265167138
F34: =AVERAGE((F25:F27)) -> 0.3630091969 | G34: =AVERAGE((G25:G27)) -> 0.5079884951 | H34: =AVERAGE((H25:H27)) -> 0.6369908031 | I34: =AVERAGE((I25:I27)) -> 0.4920115049

Sheet IRP Pruch Cover Sheet (hidden)
C1: 2 | D1: 3 | E1: 4 | F1: 5
C2: ='Normal Purchase %'!F24 -> Actual Purchase as Percent of Total | D2: ='Normal Purchase %'!G24 -> Normal Purchase as Percent of Total | E2: ='Normal Purchase %'!H24 -> Actual Cost-of-Service as Percent of Total | F2: ='Normal Purchase %'!I24 -> Normal Cost-of-Service as Percent of Total
B4: ='Normal Purchase %'!E25 -> 2022-03-01 | C4: =VLOOKUP($B4,'Normal Purchase %'!$E$25:$I$27,'IRP Pruch Cover Sheet'!C$1,FALSE) -> 0.5277146333 | D4: =VLOOKUP($B4,'Normal Purchase %'!$E$25:$I$27,'IRP Pruch Cover Sheet'!D$1,FALSE) -> 0.5856148288 | E4: =VLOOKUP($B4,'Normal Purchase %'!$E$25:$I$27,'IRP Pruch Cover Sheet'!E$1,FALSE) -> 0.4722853667 | F4: =VLOOKUP($B4,'Normal Purchase %'!$E$25:$I$27,'IRP Pruch Cover Sheet'!F$1,FALSE) -> 0.4143851712
B5: ='Normal Purchase %'!E26 -> 2022-04-01 | C5: =VLOOKUP($B5,'Normal Purchase %'!$E$25:$I$27,'IRP Pruch Cover Sheet'!C$1,FALSE) -> 0.3827899437 | D5: =VLOOKUP($B5,'Normal Purchase %'!$E$25:$I$27,'IRP Pruch Cover Sheet'!D$1,FALSE) -> 0.5455007946 | E5: =VLOOKUP($B5,'Normal Purchase %'!$E$25:$I$27,'IRP Pruch Cover Sheet'!E$1,FALSE) -> 0.6172100563 | F5: =VLOOKUP($B5,'Normal Purchase %'!$E$25:$I$27,'IRP Pruch Cover Sheet'!F$1,FALSE) -> 0.4544992054
B6: ='Normal Purchase %'!E27 -> 2022-05-01 | C6: =VLOOKUP($B6,'Normal Purchase %'!$E$25:$I$27,'IRP Pruch Cover Sheet'!C$1,FALSE) -> 0.1785230137 | D6: =VLOOKUP($B6,'Normal Purchase %'!$E$25:$I$27,'IRP Pruch Cover Sheet'!D$1,FALSE) -> 0.392849862 | E6: =VLOOKUP($B6,'Normal Purchase %'!$E$25:$I$27,'IRP Pruch Cover Sheet'!E$1,FALSE) -> 0.8214769863 | F6: =VLOOKUP($B6,'Normal Purchase %'!$E$25:$I$27,'IRP Pruch Cover Sheet'!F$1,FALSE) -> 0.607150138
B8: ='Normal Purchase %'!A21 -> Q4 | C8: =VLOOKUP($B$8,'Normal Purchase %'!$E$29:$I$32,'IRP Pruch Cover Sheet'!C$1,FALSE) -> 0.395982641 | D8: =VLOOKUP($B$8,'Normal Purchase %'!$E$29:$I$32,'IRP Pruch Cover Sheet'!D$1,FALSE) -> 0.5224993547 | E8: =VLOOKUP($B$8,'Normal Purchase %'!$E$29:$I$32,'IRP Pruch Cover Sheet'!E$1,FALSE) -> 0.604017359 | F8: =VLOOKUP($B$8,'Normal Purchase %'!$E$29:$I$32,'IRP Pruch Cover Sheet'!F$1,FALSE) -> 0.4775006453
D15: =C8-D8 -> -0.1265167138 | E15: =F8-E8 -> -0.1265167138

Sheet Shut-In (hidden)
B1: Actual Data from Jennifer Beasley
B2: Estimates…See Company Nom Groups herein
C4: September | D4: October | E4: November | F4: Total Dth for Quarter | I4: December | J4: January | K4: February | L4: Total Dth for Quarter | O4: March | P4: April | Q4: May | R4: Total Dth for Quarter
B5: Estimated Shut-in (dth/day) | C5: ='Company Nom Groups'!E132 -> 4620.23122 | D5: ='Company Nom Groups'!F132 -> 2410.033073 | E5: ='Company Nom Groups'!G132 -> 139.8373989 | F5: =C5*30+D5*31+E5*30 -> 217513.0838 | H5: Estimated Shut-in (dth/day) | I5: ='Company Nom Groups'!H132 -> 139.1573804 | J5: ='Company Nom Groups'!I132 -> 138.1575558 | K5: ='Company Nom Groups'!J132 -> 137.1170063 | L5: =I5*31+J5*31+K5*28 -> 12436.0392 | N5: Estimated Shut-in (dth/day) | O5: ='Company Nom Groups'!K132 -> 136.5282581 | P5: ='Company Nom Groups'!L132 -> 6656.530102 | Q5: ='Company Nom Groups'!M132 -> 6598.96933 | R5: =O5*31+P5*30+Q5*31 -> 408496.3283
B6: Actual Shut-in (dth/day) | C6: 0 | D6: 0 | E6: 0 | F6: =C6*30+D6*31+E6*31 -> 0 | H6: Acutal Shut-in (dth/day) | I6: =I75/30 -> 0 | J6: =J75/31 -> 0 | K6: 0 | L6: =L75 -> 0 | N6: Actual Shut-in (dth/day) | O6: 0 | P6: 0 | Q6: 0 | R6: =O6*30+P6*31+Q6*31 -> 0
B10: 1 | C10: 59 | D10: =D5 -> 2410.033073 | E10: 0 | H10: =B10 -> 1
B11: 2 | C11: 59 | D11: 780 | E11: 0 | H11: =B11 -> 2
B12: 3 | C12: 59 | D12: 780 | E12: 0 | H12: 3
B13: 4 | C13: 59 | D13: 780 | E13: 0 | H13: 4
B14: 5 | C14: 59 | D14: 780 | E14: 0 | H14: 5
B15: 6 | C15: 59 | D15: 780 | E15: 0 | H15: 6
B16: 7 | C16: 59 | D16: =D11 -> 780 | E16: 0 | H16: 7
B17: 8 | C17: 59 | D17: 780 | E17: 0 | H17: 8
B18: 9 | C18: 59 | D18: 780 | E18: 0 | H18: 9
B19: 10 | C19: 59 | D19: =D14 -> 780 | E19: 0 | H19: 10
B20: 11 | C20: 59 | D20: 780 | E20: 0 | H20: 11
B21: 12 | C21: 59 | D21: 780 | E21: 0 | H21: 12
B22: 13 | C22: 59 | D22: =D17 -> 780 | E22: 0 | H22: 13
B23: 14 | C23: 59 | D23: 780 | E23: 0 | H23: 14
B24: 15 | C24: 59 | D24: 780 | E24: 0 | H24: 15
B25: 16 | C25: 59 | D25: =D20 -> 780 | E25: 0 | H25: 16
B26: 17 | C26: 59 | D26: 780 | E26: 0 | H26: 17
B27: 18 | C27: 59 | D27: 780 | E27: 0 | H27: 18
B28: 19 | C28: 59 | D28: =D23 -> 780 | E28: 0 | H28: 19
B29: 20 | C29: 59 | D29: 780 | E29: 0 | H29: 20
B30: 21 | C30: 59 | D30: 780 | E30: 0 | H30: 21
B31: 22 | C31: 59 | D31: =D26 -> 780 | E31: 0 | H31: 22
B32: 23 | C32: 59 | D32: 780 | E32: 0 | H32: 23
B33: 24 | C33: 59 | D33: 780 | E33: 0 | H33: 24
B34: 25 | C34: 59 | D34: =D29 -> 780 | E34: 0 | H34: 25
B35: 26 | C35: 59 | D35: 780 | E35: 0 | H35: 26
B36: 27 | C36: 59 | D36: 780 | E36: 0 | H36: 27
B37: 28 | C37: 59 | D37: =D32 -> 780 | E37: 0 | H37: 28
B38: 29 | C38: 59 | D38: 780 | E38: 0 | H38: 29
B39: 30 | C39: 59 | D39: 780 | E39: 0 | H39: 30
B40: 31 | C40: 0 | D40: =D35 -> 780 | E40: 0 | H40: 31
C41: =SUM(C10:C40) -> 1770 | D41: =SUM(D10:D40) -> 25810.03307 | E41: =SUM(E10:E40) -> 0 | F41: =SUM(C41:E41) -> 27580.03307 | I41: 0 | J41: 0 | K41: 0 | L41: =SUM(I41:K41) -> 0
B44: 1 | C44: 0 | D44: 0 | E44: 0 | H44: 1 | I44: 0 | J44: 0 | K44: 0
B45: 2 | C45: 0 | D45: 0 | E45: 0 | H45: 2 | I45: 0 | J45: 0 | K45: 0
B46: 3 | C46: 0 | D46: 0 | E46: 0 | H46: 3 | I46: 0 | J46: 0 | K46: 0
B47: 4 | C47: 0 | D47: 0 | E47: 5724 | H47: 4 | I47: 0 | J47: 0 | K47: 0
B48: 5 | C48: 0 | D48: 0 | E48: 5724 | H48: 5 | I48: 0 | J48: 0 | K48: 0
B49: 6 | C49: 0 | D49: 0 | E49: 5724 | H49: 6 | I49: 0 | J49: 0 | K49: 0
B50: 7 | C50: 0 | D50: 0 | E50: 5724 | H50: 7 | I50: 0 | J50: 0 | K50: 0
B51: 8 | C51: 0 | D51: 0 | E51: 5724 | H51: 8 | I51: 0 | J51: 0 | K51: 0
B52: 9 | C52: 0 | D52: 0 | E52: 5724 | H52: 9 | I52: 0 | J52: 0 | K52: 0
B53: 10 | C53: 0 | D53: 0 | E53: 5724 | H53: 10 | I53: 0 | J53: 0 | K53: 0
B54: 11 | C54: 0 | D54: 0 | E54: 5724 | H54: 11 | I54: 0 | J54: 0 | K54: 0
B55: 12 | C55: 0 | D55: 0 | E55: 5724 | H55: 12 | I55: 0 | J55: 0 | K55: 0
B56: 13 | C56: 0 | D56: 0 | E56: 5724 | H56: 13 | I56: 0 | J56: 0 | K56: 0
B57: 14 | C57: 0 | D57: 0 | E57: 5724 | H57: 14 | I57: 0 | J57: 0 | K57: 0
B58: 15 | C58: 0 | D58: 0 | E58: 5724 | H58: 15 | I58: 0 | J58: 0 | K58: 0
B59: 16 | C59: 0 | D59: 0 | E59: 5724 | H59: 16 | I59: 0 | J59: 0 | K59: 0
B60: 17 | C60: 0 | D60: 0 | E60: 5724 | H60: 17 | I60: 0 | J60: 0 | K60: 0
B61: 18 | C61: 0 | D61: 0 | E61: 5724 | H61: 18 | I61: 0 | J61: 0 | K61: 0
B62: 19 | C62: 0 | D62: 0 | E62: 5724 | H62: 19 | I62: 0 | J62: 0 | K62: 0
B63: 20 | C63: 0 | D63: 0 | E63: 5724 | H63: 20 | I63: 0 | J63: 0 | K63: 0
B64: 21 | C64: 0 | D64: 0 | E64: 5724 | H64: 21 | I64: 0 | J64: 0 | K64: 0
B65: 22 | C65: 0 | D65: 0 | E65: 5724 | H65: 22 | I65: 0 | J65: 0 | K65: 0
B66: 23 | C66: 0 | D66: 0 | E66: 5724 | H66: 23 | I66: 0 | J66: 0 | K66: 0
B67: 24 | C67: 0 | D67: 0 | E67: 5724 | H67: 24 | I67: 0 | J67: 0 | K67: 0
B68: 25 | C68: 0 | D68: 0 | E68: 5724 | H68: 25 | I68: 0 | J68: 0 | K68: 0
B69: 26 | C69: 0 | D69: 0 | E69: 5724 | H69: 26 | I69: 0 | J69: 0 | K69: 0
B70: 27 | C70: 0 | D70: 0 | E70: 5724 | H70: 27 | I70: 0 | J70: 0 | K70: 0
B71: 28 | C71: 0 | D71: 0 | E71: 5724 | H71: 28 | I71: 0 | J71: 0 | K71: 0
B72: 29 | C72: 0 | D72: 0 | E72: 5724 | H72: 29 | I72: 0 | J72: 0 | K72: 0
B73: 30 | C73: 0 | D73: 0 | E73: 5724 | H73: 30 | I73: 0 | J73: 0 | K73: 0
B74: 31 | C74: 0 | D74: 0 | E74: 5724 | H74: 31 | J74: 0
C75: =SUM(C44:C74) -> 0 | D75: =SUM(D44:D74) -> 0 | E75: =SUM(E44:E74) -> 160272 | F75: =SUM(C75:E75) -> 160272 | I75: =SUM(I44:I74) -> 0 | J75: =SUM(J44:J74) -> 0 | K75: =SUM(K44:K74) -> 0 | L75: =SUM(I75:K75) -> 0

Sheet Deleted Exhibit 2.5 (hidden)
O31: ='Exhibit 1.1'!O31 -> DEU Variance Exhibit | P31: ='Exhibit 1.1'!P31 -> Docket No. 21-057-01 | Q31: ='Exhibit 1.1'!Q31 -> Dominion Energy Utah
O32: 2.5

Sheet Deleted Exhibit 2.6 (hidden)
O31: ='Exhibit 1.1'!O31 -> DEU Variance Exhibit | P31: ='Exhibit 1.1'!P31 -> Docket No. 21-057-01 | Q31: ='Exhibit 1.1'!Q31 -> Dominion Energy Utah
O32: 2.6
